Workbook

Sheet Sheet1
A1: UNITED BROTHERS
A2: CONSIGNMENT STOCKIST OF GAIL (INDIA) LTD
A3: 301,HERITAGE PLAZA, R.S.MAHARAJ MARG,( TELI GALLI CROSS LANE), ANDHERI (E), MUMBAI - 400 069
A4: TEL: 26844612(4 LINES) FAX: 26822914 E-MAIL:,info@unibrothers.com , prashant@unibrothers.com , jyoti@unibrothers.com
A5: EX-WORKS PRICE OF HDPE "G-LEX / G-LENE " W.E.F. 1st AUGUST 2014
B7: Freight | C7: 2156.68 | G7: Freight | I7: 2169.74 | L7: Freight | N7: 2696.11 | Q7: Freight | S7: 2046.23 | V7: Freight | W7: 1755.44 | AA7: Freight | AC7: 2347.02 | AF7: Freight 3205.47
B8: DAMAN | G8: SILVASSA | L8: MUMBAI/BHIWANDI/THANE | Q8: JALGAON | V8: NAGPUR | AA8: AURANGABAD | AF8: SANGLI
B9: BASIC | C9: DISC | D9: LOC | E9: EXCISE | F9: EX-WKS | G9: BASIC | H9: DISC | I9: LOC | J9: EXCISE | K9: EX-WKS | L9: BASIC | M9: DISC | N9: LOC | O9: EXCISE | P9: EX-WKS | Q9: BASIC | R9: DISC | S9: LOC | T9: EXCISE | U9: EX-WKS | V9: BASIC | W9: DISC | X9: LOC | Y9: EXCISE | Z9: EX-WKS | AA9: BASIC | AB9: DISC | AC9: LOC | AD9: EXCISE | AE9: EX-WKS | AF9: BASIC | AG9: DISC | AH9: LOC | AI9: EXCISE | AJ9: EX-WKS
A10: BM
A11: B52A003A | B11: =IF(B$8="Daman",HLOOKUP($A11,'[1]EX WORKS'!$D$2:$AE$90,3,0)) -> 109650 | C11: 1000 | D11: 0 | E11: =(B11-C11-D11)*12.36% -> 13429.14 | F11: =B11-C11-D11+E11 -> 122079.14 | G11: =IF(G$8="SILVASSA",HLOOKUP($A11,'[1]EX WORKS'!$D$2:$AE$90,4,0)) -> 109650 | H11: 1000 | I11: 0 | J11: =(G11-H11-I11)*12.36% -> 13429.14 | K11: =G11-H11-I11+J11 -> 122079.14 | L11: =IF(L$8="MUMBAI/BHIWANDI/THANE",HLOOKUP($A11,'[1]EX WORKS'!$D$2:$AE$90,5,0)) -> 109010 | M11: 1000 | N11: 0 | O11: =(L11-M11-N11)*12.36% -> 13350.036 | P11: =L11-M11-N11+O11 -> 121360.036 | Q11: =IF(Q$8="JALGAON",HLOOKUP($A11,'[1]EX WORKS'!$D$2:$AE$90,6,0)) -> 110040 | R11: 1000 | S11: 0 | T11: =(Q11-R11-S11)*12.36% -> 13477.344 | U11: =Q11-R11-S11+T11 -> 122517.344 | V11: =IF(V$8="NAGPUR",HLOOKUP($A11,'[1]EX WORKS'!$D$2:$AE$90,7,0)) -> 111090 | W11: 1000 | X11: 0 | Y11: =(V11-W11-X11)*12.36% -> 13607.124 | Z11: =V11-W11-X11+Y11 -> 123697.124 | AA11: =IF(AA$8="AURANGABAD",HLOOKUP($A11,'[1]EX WORKS'!$D$2:$AE$90,8,0)) -> 109660 | AB11: 1000 | AC11: 0 | AD11: =(AA11-AB11-AC11)*12.36% -> 13430.376 | AE11: =AA11-AB11-AC11+AD11 -> 122090.376 | AF11: =IF(AF$8="SANGLI",HLOOKUP($A11,'[1]EX WORKS'!$D$2:$AE$90,9,0)) -> 109030 | AG11: 1000 | AH11: 0 | AI11: =(AF11-AG11-AH11)*12.36% -> 13352.508 | AJ11: =AF11-AG11-AH11+AI11 -> 121382.508
A12: B63A003A | B12: =IF(B$8="Daman",HLOOKUP($A12,'[1]EX WORKS'!$D$2:$AE$90,3,0)) -> 109650 | C12: 1000 | D12: 0 | E12: =(B12-C12-D12)*12.36% -> 13429.14 | F12: =B12-C12-D12+E12 -> 122079.14 | G12: =IF(G$8="SILVASSA",HLOOKUP($A12,'[1]EX WORKS'!$D$2:$AE$90,4,0)) -> 109650 | H12: 1000 | I12: 0 | J12: =(G12-H12-I12)*12.36% -> 13429.14 | K12: =G12-H12-I12+J12 -> 122079.14 | L12: =IF(L$8="MUMBAI/BHIWANDI/THANE",HLOOKUP($A12,'[1]EX WORKS'!$D$2:$AE$90,5,0)) -> 109010 | M12: 1000 | N12: 0 | O12: =(L12-M12-N12)*12.36% -> 13350.036 | P12: =L12-M12-N12+O12 -> 121360.036 | Q12: =IF(Q$8="JALGAON",HLOOKUP($A12,'[1]EX WORKS'!$D$2:$AE$90,6,0)) -> 110040 | R12: 1000 | S12: 0 | T12: =(Q12-R12-S12)*12.36% -> 13477.344 | U12: =Q12-R12-S12+T12 -> 122517.344 | V12: =IF(V$8="NAGPUR",HLOOKUP($A12,'[1]EX WORKS'!$D$2:$AE$90,7,0)) -> 111090 | W12: 1000 | X12: 0 | Y12: =(V12-W12-X12)*12.36% -> 13607.124 | Z12: =V12-W12-X12+Y12 -> 123697.124 | AA12: =IF(AA$8="AURANGABAD",HLOOKUP($A12,'[1]EX WORKS'!$D$2:$AE$90,8,0)) -> 109660 | AB12: 1000 | AC12: 0 | AD12: =(AA12-AB12-AC12)*12.36% -> 13430.376 | AE12: =AA12-AB12-AC12+AD12 -> 122090.376 | AF12: =IF(AF$8="SANGLI",HLOOKUP($A12,'[1]EX WORKS'!$D$2:$AE$90,9,0)) -> 109030 | AG12: 1000 | AH12: 0 | AI12: =(AF12-AG12-AH12)*12.36% -> 13352.508 | AJ12: =AF12-AG12-AH12+AI12 -> 121382.508
A13: B55HM0003A | B13: =IF(B$8="Daman",HLOOKUP($A13,'[1]EX WORKS'!$D$2:$AE$90,3,0)) -> 113100 | C13: 1000 | D13: 0 | E13: =(B13-C13-D13)*12.36% -> 13855.56 | F13: =B13-C13-D13+E13 -> 125955.56 | G13: =IF(G$8="SILVASSA",HLOOKUP($A13,'[1]EX WORKS'!$D$2:$AE$90,4,0)) -> 113110 | H13: 1000 | I13: 0 | J13: =(G13-H13-I13)*12.36% -> 13856.796 | K13: =G13-H13-I13+J13 -> 125966.796 | L13: =IF(L$8="MUMBAI/BHIWANDI/THANE",HLOOKUP($A13,'[1]EX WORKS'!$D$2:$AE$90,5,0)) -> 112520 | M13: 1000 | N13: 0 | O13: =(L13-M13-N13)*12.36% -> 13783.872 | P13: =L13-M13-N13+O13 -> 125303.872 | Q13: =IF(Q$8="JALGAON",HLOOKUP($A13,'[1]EX WORKS'!$D$2:$AE$90,6,0)) -> 113550 | R13: 1000 | S13: 0 | T13: =(Q13-R13-S13)*12.36% -> 13911.18 | U13: =Q13-R13-S13+T13 -> 126461.18 | V13: =IF(V$8="NAGPUR",HLOOKUP($A13,'[1]EX WORKS'!$D$2:$AE$90,7,0)) -> 114690 | W13: 1000 | X13: 0 | Y13: =(V13-W13-X13)*12.36% -> 14052.084 | Z13: =V13-W13-X13+Y13 -> 127742.084 | AA13: =IF(AA$8="AURANGABAD",HLOOKUP($A13,'[1]EX WORKS'!$D$2:$AE$90,8,0)) -> 113160 | AB13: 1000 | AC13: 0 | AD13: =(AA13-AB13-AC13)*12.36% -> 13862.976 | AE13: =AA13-AB13-AC13+AD13 -> 126022.976 | AF13: =IF(AF$8="SANGLI",HLOOKUP($A13,'[1]EX WORKS'!$D$2:$AE$90,9,0)) -> 112640 | AG13: 1000 | AH13: 0 | AI13: =(AF13-AG13-AH13)*12.36% -> 13798.704 | AJ13: =AF13-AG13-AH13+AI13 -> 125438.704
A14: B53EA0035A | B14: =IF(B$8="Daman",HLOOKUP($A14,'[1]EX WORKS'!$D$2:$AE$90,3,0)) -> 110150 | C14: 1000 | D14: 0 | E14: =(B14-C14-D14)*12.36% -> 13490.94 | F14: =B14-C14-D14+E14 -> 122640.94 | G14: =IF(G$8="SILVASSA",HLOOKUP($A14,'[1]EX WORKS'!$D$2:$AE$90,4,0)) -> 110150 | H14: 1000 | I14: 0 | J14: =(G14-H14-I14)*12.36% -> 13490.94 | K14: =G14-H14-I14+J14 -> 122640.94
A15: SHETG
A16: E45A003A | B16: =IF(B$8="Daman",HLOOKUP($A16,'[1]EX WORKS'!$D$2:$AE$90,3,0)) -> 112450 | C16: 1000 | D16: 0 | E16: =(B16-C16-D16)*12.36% -> 13775.22 | F16: =B16-C16-D16+E16 -> 125225.22 | G16: =IF(G$8="SILVASSA",HLOOKUP($A16,'[1]EX WORKS'!$D$2:$AE$90,4,0)) -> 112450 | H16: 1000 | I16: 0 | J16: =(G16-H16-I16)*12.36% -> 13775.22 | K16: =G16-H16-I16+J16 -> 125225.22 | L16: =IF(L$8="MUMBAI/BHIWANDI/THANE",HLOOKUP($A16,'[1]EX WORKS'!$D$2:$AE$90,5,0)) -> 111790 | M16: 1000 | N16: 0 | O16: =(L16-M16-N16)*12.36% -> 13693.644 | P16: =L16-M16-N16+O16 -> 124483.644 | Q16: =IF(Q$8="JALGAON",HLOOKUP($A16,'[1]EX WORKS'!$D$2:$AE$90,6,0)) -> 112890 | R16: 1000 | S16: 0 | T16: =(Q16-R16-S16)*12.36% -> 13829.604 | U16: =Q16-R16-S16+T16 -> 125719.604 | V16: =IF(V$8="NAGPUR",HLOOKUP($A16,'[1]EX WORKS'!$D$2:$AE$90,7,0)) -> 114030 | W16: 1000 | X16: 0 | Y16: =(V16-W16-X16)*12.36% -> 13970.508 | Z16: =V16-W16-X16+Y16 -> 127000.508 | AA16: =IF(AA$8="AURANGABAD",HLOOKUP($A16,'[1]EX WORKS'!$D$2:$AE$90,8,0)) -> 112520 | AB16: 1000 | AC16: 0 | AD16: =(AA16-AB16-AC16)*12.36% -> 13783.872 | AE16: =AA16-AB16-AC16+AD16 -> 125303.872 | AF16: =IF(AF$8="SANGLI",HLOOKUP($A16,'[1]EX WORKS'!$D$2:$AE$90,9,0)) -> 111880 | AG16: 1000 | AH16: 0 | AI16: =(AF16-AG16-AH16)*12.36% -> 13704.768 | AJ16: =AF16-AG16-AH16+AI16 -> 124584.768
A17: E45A003OG
A18: EXTR
A19: E52A003A | B19: =IF(B$8="Daman",HLOOKUP($A19,'[1]EX WORKS'!$D$2:$AE$90,3,0)) -> 111120 | C19: 1000 | D19: 0 | E19: =(B19-C19-D19)*12.36% -> 13610.832 | F19: =B19-C19-D19+E19 -> 123730.832 | G19: =IF(G$8="SILVASSA",HLOOKUP($A19,'[1]EX WORKS'!$D$2:$AE$90,4,0)) -> 111120 | H19: 1000 | I19: 0 | J19: =(G19-H19-I19)*12.36% -> 13610.832 | K19: =G19-H19-I19+J19 -> 123730.832 | L19: =IF(L$8="MUMBAI/BHIWANDI/THANE",HLOOKUP($A19,'[1]EX WORKS'!$D$2:$AE$90,5,0)) -> 110460 | M19: 1000 | N19: 0 | O19: =(L19-M19-N19)*12.36% -> 13529.256 | P19: =L19-M19-N19+O19 -> 122989.256 | Q19: =IF(Q$8="JALGAON",HLOOKUP($A19,'[1]EX WORKS'!$D$2:$AE$90,6,0)) -> 111560 | R19: 1000 | S19: 0 | T19: =(Q19-R19-S19)*12.36% -> 13665.216 | U19: =Q19-R19-S19+T19 -> 124225.216 | V19: =IF(V$8="NAGPUR",HLOOKUP($A19,'[1]EX WORKS'!$D$2:$AE$90,7,0)) -> 112700 | W19: 1000 | X19: 0 | Y19: =(V19-W19-X19)*12.36% -> 13806.12 | Z19: =V19-W19-X19+Y19 -> 125506.12 | AA19: =IF(AA$8="AURANGABAD",HLOOKUP($A19,'[1]EX WORKS'!$D$2:$AE$90,8,0)) -> 111180 | AB19: 1000 | AC19: 0 | AD19: =(AA19-AB19-AC19)*12.36% -> 13618.248 | AE19: =AA19-AB19-AC19+AD19 -> 123798.248 | AF19: =IF(AF$8="SANGLI",HLOOKUP($A19,'[1]EX WORKS'!$D$2:$AE$90,9,0)) -> 110550 | AG19: 1000 | AH19: 0 | AI19: =(AF19-AG19-AH19)*12.36% -> 13540.38 | AJ19: =AF19-AG19-AH19+AI19 -> 123090.38
A20: E52A003OG
A21: E52U003A | B21: =IF(B$8="Daman",HLOOKUP($A21,'[1]EX WORKS'!$D$2:$AE$90,3,0)) -> 112900 | C21: 1000 | D21: 0 | E21: =(B21-C21-D21)*12.36% -> 13830.84 | F21: =B21-C21-D21+E21 -> 125730.84 | G21: =IF(G$8="SILVASSA",HLOOKUP($A21,'[1]EX WORKS'!$D$2:$AE$90,4,0)) -> 112900 | H21: 1000 | I21: 0 | J21: =(G21-H21-I21)*12.36% -> 13830.84 | K21: =G21-H21-I21+J21 -> 125730.84 | L21: =IF(L$8="MUMBAI/BHIWANDI/THANE",HLOOKUP($A21,'[1]EX WORKS'!$D$2:$AE$90,5,0)) -> 112240 | M21: 1000 | N21: 0 | O21: =(L21-M21-N21)*12.36% -> 13749.264 | P21: =L21-M21-N21+O21 -> 124989.264 | Q21: =IF(Q$8="JALGAON",HLOOKUP($A21,'[1]EX WORKS'!$D$2:$AE$90,6,0)) -> 113340 | R21: 1000 | S21: 0 | T21: =(Q21-R21-S21)*12.36% -> 13885.224 | U21: =Q21-R21-S21+T21 -> 126225.224 | V21: =IF(V$8="NAGPUR",HLOOKUP($A21,'[1]EX WORKS'!$D$2:$AE$90,7,0)) -> 114480 | W21: 1000 | X21: 0 | Y21: =(V21-W21-X21)*12.36% -> 14026.128 | Z21: =V21-W21-X21+Y21 -> 127506.128 | AA21: =IF(AA$8="AURANGABAD",HLOOKUP($A21,'[1]EX WORKS'!$D$2:$AE$90,8,0)) -> 112960 | AB21: 1000 | AC21: 0 | AD21: =(AA21-AB21-AC21)*12.36% -> 13838.256 | AE21: =AA21-AB21-AC21+AD21 -> 125798.256 | AF21: =IF(AF$8="SANGLI",HLOOKUP($A21,'[1]EX WORKS'!$D$2:$AE$90,9,0)) -> 112330 | AG21: 1000 | AH21: 0 | AI21: =(AF21-AG21-AH21)*12.36% -> 13760.388 | AJ21: =AF21-AG21-AH21+AI21 -> 125090.388
A22: E52U003OG
A23: HM FILM
A24: F55HM0003A | B24: =IF(B$8="Daman",HLOOKUP($A24,'[1]EX WORKS'!$D$2:$AE$90,3,0)) -> 110650 | C24: 1000 | D24: 0 | E24: =(B24-C24-D24)*12.36% -> 13552.74 | F24: =B24-C24-D24+E24 -> 123202.74 | G24: =IF(G$8="SILVASSA",HLOOKUP($A24,'[1]EX WORKS'!$D$2:$AE$90,4,0)) -> 111160 | H24: 1000 | I24: 0 | J24: =(G24-H24-I24)*12.36% -> 13615.776 | K24: =G24-H24-I24+J24 -> 123775.776 | L24: =IF(L$8="MUMBAI/BHIWANDI/THANE",HLOOKUP($A24,'[1]EX WORKS'!$D$2:$AE$90,5,0)) -> 110570 | M24: 1000 | N24: 0 | O24: =(L24-M24-N24)*12.36% -> 13542.852 | P24: =L24-M24-N24+O24 -> 123112.852 | Q24: =IF(Q$8="JALGAON",HLOOKUP($A24,'[1]EX WORKS'!$D$2:$AE$90,6,0)) -> 111600 | R24: 1000 | S24: 0 | T24: =(Q24-R24-S24)*12.36% -> 13670.16 | U24: =Q24-R24-S24+T24 -> 124270.16 | V24: =IF(V$8="NAGPUR",HLOOKUP($A24,'[1]EX WORKS'!$D$2:$AE$90,7,0)) -> 112740 | W24: 1000 | X24: 0 | Y24: =(V24-W24-X24)*12.36% -> 13811.064 | Z24: =V24-W24-X24+Y24 -> 125551.064 | AA24: =IF(AA$8="AURANGABAD",HLOOKUP($A24,'[1]EX WORKS'!$D$2:$AE$90,8,0)) -> 111210 | AB24: 1000 | AC24: 0 | AD24: =(AA24-AB24-AC24)*12.36% -> 13621.956 | AE24: =AA24-AB24-AC24+AD24 -> 123831.956 | AF24: =IF(AF$8="SANGLI",HLOOKUP($A24,'[1]EX WORKS'!$D$2:$AE$90,9,0)) -> 110690 | AG24: 1000 | AH24: 0 | AI24: =(AF24-AG24-AH24)*12.36% -> 13557.684 | AJ24: =AF24-AG24-AH24+AI24 -> 123247.684
A25: F55HM0003OG
A26: IM HIGH
A27: I50A180A | B27: =IF(B$8="Daman",HLOOKUP($A27,'[1]EX WORKS'!$D$2:$AE$90,3,0)) -> 110220 | C27: 1000 | D27: 0 | E27: =(B27-C27-D27)*12.36% -> 13499.592 | F27: =B27-C27-D27+E27 -> 122719.592 | G27: =IF(G$8="SILVASSA",HLOOKUP($A27,'[1]EX WORKS'!$D$2:$AE$90,4,0)) -> 110230 | H27: 1000 | I27: 0 | J27: =(G27-H27-I27)*12.36% -> 13500.828 | K27: =G27-H27-I27+J27 -> 122730.828 | L27: =IF(L$8="MUMBAI/BHIWANDI/THANE",HLOOKUP($A27,'[1]EX WORKS'!$D$2:$AE$90,5,0)) -> 109700 | M27: 1000 | N27: 0 | O27: =(L27-M27-N27)*12.36% -> 13435.32 | P27: =L27-M27-N27+O27 -> 122135.32 | Q27: =IF(Q$8="JALGAON",HLOOKUP($A27,'[1]EX WORKS'!$D$2:$AE$90,6,0)) -> 110660 | R27: 1000 | S27: 0 | T27: =(Q27-R27-S27)*12.36% -> 13553.976 | U27: =Q27-R27-S27+T27 -> 123213.976 | V27: =IF(V$8="NAGPUR",HLOOKUP($A27,'[1]EX WORKS'!$D$2:$AE$90,7,0)) -> 111770 | W27: 1000 | X27: 0 | Y27: =(V27-W27-X27)*12.36% -> 13691.172 | Z27: =V27-W27-X27+Y27 -> 124461.172 | AA27: =IF(AA$8="AURANGABAD",HLOOKUP($A27,'[1]EX WORKS'!$D$2:$AE$90,8,0)) -> 110300 | AB27: 1000 | AC27: 0 | AD27: =(AA27-AB27-AC27)*12.36% -> 13509.48 | AE27: =AA27-AB27-AC27+AD27 -> 122809.48 | AF27: =IF(AF$8="SANGLI",HLOOKUP($A27,'[1]EX WORKS'!$D$2:$AE$90,9,0)) -> 109840 | AG27: 1000 | AH27: 0 | AI27: =(AF27-AG27-AH27)*12.36% -> 13452.624 | AJ27: =AF27-AG27-AH27+AI27 -> 122292.624
A28: I50A180OG
A29: IM LOW
A30: I60A080A | B30: =IF(B$8="Daman",HLOOKUP($A30,'[1]EX WORKS'!$D$2:$AE$90,3,0)) -> 110590 | C30: 1000 | D30: 0 | E30: =(B30-C30-D30)*12.36% -> 13545.324 | F30: =B30-C30-D30+E30 -> 123135.324 | G30: =IF(G$8="SILVASSA",HLOOKUP($A30,'[1]EX WORKS'!$D$2:$AE$90,4,0)) -> 110590 | H30: 1000 | I30: 0 | J30: =(G30-H30-I30)*12.36% -> 13545.324 | K30: =G30-H30-I30+J30 -> 123135.324 | L30: =IF(L$8="MUMBAI/BHIWANDI/THANE",HLOOKUP($A30,'[1]EX WORKS'!$D$2:$AE$90,5,0)) -> 109940 | M30: 1000 | N30: 0 | O30: =(L30-M30-N30)*12.36% -> 13464.984 | P30: =L30-M30-N30+O30 -> 122404.984 | Q30: =IF(Q$8="JALGAON",HLOOKUP($A30,'[1]EX WORKS'!$D$2:$AE$90,6,0)) -> 111030 | R30: 1000 | S30: 0 | T30: =(Q30-R30-S30)*12.36% -> 13599.708 | U30: =Q30-R30-S30+T30 -> 123629.708 | V30: =IF(V$8="NAGPUR",HLOOKUP($A30,'[1]EX WORKS'!$D$2:$AE$90,7,0)) -> 112180 | W30: 1000 | X30: 0 | Y30: =(V30-W30-X30)*12.36% -> 13741.848 | Z30: =V30-W30-X30+Y30 -> 124921.848 | AA30: =IF(AA$8="AURANGABAD",HLOOKUP($A30,'[1]EX WORKS'!$D$2:$AE$90,8,0)) -> 110660 | AB30: 1000 | AC30: 0 | AD30: =(AA30-AB30-AC30)*12.36% -> 13553.976 | AE30: =AA30-AB30-AC30+AD30 -> 123213.976 | AF30: =IF(AF$8="SANGLI",HLOOKUP($A30,'[1]EX WORKS'!$D$2:$AE$90,9,0)) -> 110020 | AG30: 1000 | AH30: 0 | AI30: =(AF30-AG30-AH30)*12.36% -> 13474.872 | AJ30: =AF30-AG30-AH30+AI30 -> 122494.872
A31: I60A080OG
A32: IM-L-UV
A33: I60U080A | B33: =IF(B$8="Daman",HLOOKUP($A33,'[1]EX WORKS'!$D$2:$AE$90,3,0)) -> 112130 | C33: 1000 | D33: 0 | E33: =(B33-C33-D33)*12.36% -> 13735.668 | F33: =B33-C33-D33+E33 -> 124865.668 | G33: =IF(G$8="SILVASSA",HLOOKUP($A33,'[1]EX WORKS'!$D$2:$AE$90,4,0)) -> 112130 | H33: 1000 | I33: 0 | J33: =(G33-H33-I33)*12.36% -> 13735.668 | K33: =G33-H33-I33+J33 -> 124865.668 | L33: =IF(L$8="MUMBAI/BHIWANDI/THANE",HLOOKUP($A33,'[1]EX WORKS'!$D$2:$AE$90,5,0)) -> 111470 | M33: 1000 | N33: 0 | O33: =(L33-M33-N33)*12.36% -> 13654.092 | P33: =L33-M33-N33+O33 -> 124124.092 | Q33: =IF(Q$8="JALGAON",HLOOKUP($A33,'[1]EX WORKS'!$D$2:$AE$90,6,0)) -> 112570 | R33: 1000 | S33: 0 | T33: =(Q33-R33-S33)*12.36% -> 13790.052 | U33: =Q33-R33-S33+T33 -> 125360.052 | V33: =IF(V$8="NAGPUR",HLOOKUP($A33,'[1]EX WORKS'!$D$2:$AE$90,7,0)) -> 113710 | W33: 1000 | X33: 0 | Y33: =(V33-W33-X33)*12.36% -> 13930.956 | Z33: =V33-W33-X33+Y33 -> 126640.956 | AA33: =IF(AA$8="AURANGABAD",HLOOKUP($A33,'[1]EX WORKS'!$D$2:$AE$90,8,0)) -> 112200 | AB33: 1000 | AC33: 0 | AD33: =(AA33-AB33-AC33)*12.36% -> 13744.32 | AE33: =AA33-AB33-AC33+AD33 -> 124944.32 | AF33: =IF(AF$8="SANGLI",HLOOKUP($A33,'[1]EX WORKS'!$D$2:$AE$90,9,0)) -> 111560 | AG33: 1000 | AH33: 0 | AI33: =(AF33-AG33-AH33)*12.36% -> 13665.216 | AJ33: =AF33-AG33-AH33+AI33 -> 124225.216
A34: I60U080OG
A35: PIPE (PE80)
A36: P54A001A | B36: =IF(B$8="Daman",HLOOKUP($A36,'[1]EX WORKS'!$D$2:$AE$90,3,0)) -> 115110 | C36: 1000 | D36: 0 | E36: =(B36-C36-D36)*12.36% -> 14103.996 | F36: =B36-C36-D36+E36 -> 128213.996 | G36: =IF(G$8="SILVASSA",HLOOKUP($A36,'[1]EX WORKS'!$D$2:$AE$90,4,0)) -> 115120 | H36: 1000 | I36: 0 | J36: =(G36-H36-I36)*12.36% -> 14105.232 | K36: =G36-H36-I36+J36 -> 128225.232 | L36: =IF(L$8="MUMBAI/BHIWANDI/THANE",HLOOKUP($A36,'[1]EX WORKS'!$D$2:$AE$90,5,0)) -> 114530 | M36: 1000 | N36: 0 | O36: =(L36-M36-N36)*12.36% -> 14032.308 | P36: =L36-M36-N36+O36 -> 127562.308 | Q36: =IF(Q$8="JALGAON",HLOOKUP($A36,'[1]EX WORKS'!$D$2:$AE$90,6,0)) -> 115560 | R36: 1000 | S36: 0 | T36: =(Q36-R36-S36)*12.36% -> 14159.616 | U36: =Q36-R36-S36+T36 -> 128719.616 | V36: =IF(V$8="NAGPUR",HLOOKUP($A36,'[1]EX WORKS'!$D$2:$AE$90,7,0)) -> 116700 | W36: 1000 | X36: 0 | Y36: =(V36-W36-X36)*12.36% -> 14300.52 | Z36: =V36-W36-X36+Y36 -> 130000.52 | AA36: =IF(AA$8="AURANGABAD",HLOOKUP($A36,'[1]EX WORKS'!$D$2:$AE$90,8,0)) -> 115170 | AB36: 1000 | AC36: 0 | AD36: =(AA36-AB36-AC36)*12.36% -> 14111.412 | AE36: =AA36-AB36-AC36+AD36 -> 128281.412 | AF36: =IF(AF$8="SANGLI",HLOOKUP($A36,'[1]EX WORKS'!$D$2:$AE$90,9,0)) -> 114650 | AG36: 1000 | AH36: 0 | AI36: =(AF36-AG36-AH36)*12.36% -> 14047.14 | AJ36: =AF36-AG36-AH36+AI36 -> 127697.14
A37: PIPE (PE100)
A38: P52A003A | B38: =IF(B$8="Daman",HLOOKUP($A38,'[1]EX WORKS'!$D$2:$AE$90,3,0)) -> 117110 | C38: 1000 | D38: 0 | E38: =(B38-C38-D38)*12.36% -> 14351.196 | F38: =B38-C38-D38+E38 -> 130461.196 | G38: =IF(G$8="SILVASSA",HLOOKUP($A38,'[1]EX WORKS'!$D$2:$AE$90,4,0)) -> 117120 | H38: 1000 | I38: 0 | J38: =(G38-H38-I38)*12.36% -> 14352.432 | K38: =G38-H38-I38+J38 -> 130472.432 | L38: =IF(L$8="MUMBAI/BHIWANDI/THANE",HLOOKUP($A38,'[1]EX WORKS'!$D$2:$AE$90,5,0)) -> 116530 | M38: 1000 | N38: 0 | O38: =(L38-M38-N38)*12.36% -> 14279.508 | P38: =L38-M38-N38+O38 -> 129809.508 | Q38: =IF(Q$8="JALGAON",HLOOKUP($A38,'[1]EX WORKS'!$D$2:$AE$90,6,0)) -> 117560 | R38: 1000 | S38: 0 | T38: =(Q38-R38-S38)*12.36% -> 14406.816 | U38: =Q38-R38-S38+T38 -> 130966.816 | V38: =IF(V$8="NAGPUR",HLOOKUP($A38,'[1]EX WORKS'!$D$2:$AE$90,7,0)) -> 118700 | W38: 1000 | X38: 0 | Y38: =(V38-W38-X38)*12.36% -> 14547.72 | Z38: =V38-W38-X38+Y38 -> 132247.72 | AA38: =IF(AA$8="AURANGABAD",HLOOKUP($A38,'[1]EX WORKS'!$D$2:$AE$90,8,0)) -> 117170 | AB38: 1000 | AC38: 0 | AD38: =(AA38-AB38-AC38)*12.36% -> 14358.612 | AE38: =AA38-AB38-AC38+AD38 -> 130528.612 | AF38: =IF(AF$8="SANGLI",HLOOKUP($A38,'[1]EX WORKS'!$D$2:$AE$90,9,0)) -> 116650 | AG38: 1000 | AH38: 0 | AI38: =(AF38-AG38-AC38)*12.36% -> 14294.34 | AJ38: =AF38-AG38-AC38+AI38 -> 129944.34
A39: RAFFIA
A40: W50A009A | B40: =IF(B$8="Daman",HLOOKUP($A40,'[1]EX WORKS'!$D$2:$AE$90,3,0)) -> 109220 | C40: 1000 | D40: 0 | E40: =(B40-C40-D40)*12.36% -> 13375.992 | F40: =B40-C40-D40+E40 -> 121595.992 | G40: =IF(G$8="SILVASSA",HLOOKUP($A40,'[1]EX WORKS'!$D$2:$AE$90,4,0)) -> 109220 | H40: 1000 | I40: 0 | J40: =(G40-H40-I40)*12.36% -> 13375.992 | K40: =G40-H40-I40+J40 -> 121595.992 | L40: =IF(L$8="MUMBAI/BHIWANDI/THANE",HLOOKUP($A40,'[1]EX WORKS'!$D$2:$AE$90,5,0)) -> 108560 | M40: 1000 | N40: 0 | O40: =(L40-M40-N40)*12.36% -> 13294.416 | P40: =L40-M40-N40+O40 -> 120854.416 | Q40: =IF(Q$8="JALGAON",HLOOKUP($A40,'[1]EX WORKS'!$D$2:$AE$90,6,0)) -> 109660 | R40: 1000 | S40: 0 | T40: =(Q40-R40-S40)*12.36% -> 13430.376 | U40: =Q40-R40-S40+T40 -> 122090.376 | V40: =IF(V$8="NAGPUR",HLOOKUP($A40,'[1]EX WORKS'!$D$2:$AE$90,7,0)) -> 110800 | W40: 1000 | X40: 0 | Y40: =(V40-W40-X40)*12.36% -> 13571.28 | Z40: =V40-W40-X40+Y40 -> 123371.28 | AA40: =IF(AA$8="AURANGABAD",HLOOKUP($A40,'[1]EX WORKS'!$D$2:$AE$90,8,0)) -> 109290 | AB40: 1000 | AC40: 0 | AD40: =(AA40-AB40-AC40)*12.36% -> 13384.644 | AE40: =AA40-AB40-AC40+AD40 -> 121674.644 | AF40: =IF(AF$8="SANGLI",HLOOKUP($A40,'[1]EX WORKS'!$D$2:$AE$90,9,0)) -> 108650 | AG40: 1000 | AH40: 0 | AI40: =(AF40-AG40-AH40)*12.36% -> 13305.54 | AJ40: =AF40-AG40-AH40+AI40 -> 120955.54
A41: T50A010A | B41: =IF(B$8="Daman",HLOOKUP($A41,'[1]EX WORKS'!$D$2:$AE$90,3,0)) -> 109470 | C41: 1000 | D41: 0 | E41: =(B41-C41-D41)*12.36% -> 13406.892 | F41: =B41-C41-D41+E41 -> 121876.892 | G41: =IF(G$8="SILVASSA",HLOOKUP($A41,'[1]EX WORKS'!$D$2:$AE$90,4,0)) -> 109470 | H41: 1000 | I41: 0 | J41: =(G41-H41-I41)*12.36% -> 13406.892 | K41: =G41-H41-I41+J41 -> 121876.892 | L41: =IF(L$8="MUMBAI/BHIWANDI/THANE",HLOOKUP($A41,'[1]EX WORKS'!$D$2:$AE$90,5,0)) -> 108810 | M41: 1000 | N41: 0 | O41: =(L41-M41-N41)*12.36% -> 13325.316 | P41: =L41-M41-N41+O41 -> 121135.316 | Q41: =IF(Q$8="JALGAON",HLOOKUP($A41,'[1]EX WORKS'!$D$2:$AE$90,6,0)) -> 109910 | R41: 1000 | S41: 0 | T41: =(Q41-R41-S41)*12.36% -> 13461.276 | U41: =Q41-R41-S41+T41 -> 122371.276 | V41: =IF(V$8="NAGPUR",HLOOKUP($A41,'[1]EX WORKS'!$D$2:$AE$90,7,0)) -> 111050 | W41: 1000 | X41: 0 | Y41: =(V41-W41-X41)*12.36% -> 13602.18 | Z41: =V41-W41-X41+Y41 -> 123652.18 | AA41: =IF(AA$8="AURANGABAD",HLOOKUP($A41,'[1]EX WORKS'!$D$2:$AE$90,8,0)) -> 109540 | AB41: 1000 | AC41: 0 | AD41: =(AA41-AB41-AC41)*12.36% -> 13415.544 | AE41: =AA41-AB41-AC41+AD41 -> 121955.544 | AF41: =IF(AF$8="SANGLI",HLOOKUP($A41,'[1]EX WORKS'!$D$2:$AE$90,9,0)) -> 108900 | AG41: 1000 | AH41: 0 | AI41: =(AF41-AG41-AH41)*12.36% -> 13336.44 | AJ41: =AF41-AG41-AH41+AI41 -> 121236.44
A42: MF
A43: W52A009A | B43: =IF(B$8="Daman",HLOOKUP($A43,'[1]EX WORKS'!$D$2:$AE$90,3,0)) -> 109720 | C43: 1000 | D43: 0 | E43: =(B43-C43-D43)*12.36% -> 13437.792 | F43: =B43-C43-D43+E43 -> 122157.792 | G43: =IF(G$8="SILVASSA",HLOOKUP($A43,'[1]EX WORKS'!$D$2:$AE$90,4,0)) -> 109720 | H43: 1000 | I43: 0 | J43: =(G43-H43-I43)*12.36% -> 13437.792 | K43: =G43-H43-I43+J43 -> 122157.792 | L43: =IF(L$8="MUMBAI/BHIWANDI/THANE",HLOOKUP($A43,'[1]EX WORKS'!$D$2:$AE$90,5,0)) -> 109060 | M43: 1000 | N43: 0 | O43: =(L43-M43-N43)*12.36% -> 13356.216 | P43: =L43-M43-N43+O43 -> 121416.216 | Q43: =IF(Q$8="JALGAON",HLOOKUP($A43,'[1]EX WORKS'!$D$2:$AE$90,6,0)) -> 110160 | R43: 1000 | S43: 0 | T43: =(Q43-R43-S43)*12.36% -> 13492.176 | U43: =Q43-R43-S43+T43 -> 122652.176 | V43: =IF(V$8="NAGPUR",HLOOKUP($A43,'[1]EX WORKS'!$D$2:$AE$90,7,0)) -> 111300 | W43: 1000 | X43: 0 | Y43: =(V43-W43-X43)*12.36% -> 13633.08 | Z43: =V43-W43-X45+Y43 -> 123933.08 | AA43: =IF(AA$8="AURANGABAD",HLOOKUP($A43,'[1]EX WORKS'!$D$2:$AE$90,8,0)) -> 109790 | AB43: 1000 | AC43: 0 | AD43: =(AA43-AB43-AC43)*12.36% -> 13446.444 | AE43: =AA43-AB43-AC45+AD43 -> 122236.444 | AF43: =IF(AF$8="SANGLI",HLOOKUP($A43,'[1]EX WORKS'!$D$2:$AE$90,9,0)) -> 109150 | AG43: 1000 | AH43: 0 | AI43: =(AF43-AG43-AH43)*12.36% -> 13367.34 | AJ43: =AF43-AG43-AH43+AI43 -> 121517.34
A44: W52A009OG
A45: W52ASR009A | B45: =IF(B$8="Daman",HLOOKUP($A45,'[1]EX WORKS'!$D$2:$AE$90,3,0)) -> 109720 | C45: 1000 | D45: 0 | E45: =(B45-C45-D45)*12.36% -> 13437.792 | F45: =B45-C45-D45+E45 -> 122157.792 | G45: =IF(G$8="SILVASSA",HLOOKUP($A45,'[1]EX WORKS'!$D$2:$AE$90,4,0)) -> 109720 | H45: 1000 | I45: 0 | J45: =(G45-H45-I45)*12.36% -> 13437.792 | K45: =G45-H45-I45+J45 -> 122157.792 | L45: =IF(L$8="MUMBAI/BHIWANDI/THANE",HLOOKUP($A45,'[1]EX WORKS'!$D$2:$AE$90,5,0)) -> 109060 | M45: 1000 | N45: 0 | O45: =(L45-M45-N45)*12.36% -> 13356.216 | P45: =L45-M45-N45+O45 -> 121416.216 | Q45: =IF(Q$8="JALGAON",HLOOKUP($A45,'[1]EX WORKS'!$D$2:$AE$90,6,0)) -> 110160 | R45: 1000 | S45: 0 | T45: =(Q45-R45-S45)*12.36% -> 13492.176 | U45: =Q45-R45-S45+T45 -> 122652.176 | V45: =IF(V$8="NAGPUR",HLOOKUP($A45,'[1]EX WORKS'!$D$2:$AE$90,7,0)) -> 111300 | W45: 1000 | X45: 0 | Y45: =(V45-W45-X45)*12.36% -> 13633.08 | Z45: =V45-W45-X47+Y45 -> 123933.08 | AA45: =IF(AA$8="AURANGABAD",HLOOKUP($A45,'[1]EX WORKS'!$D$2:$AE$90,8,0)) -> 109790 | AB45: 1000 | AC45: 0 | AD45: =(AA45-AB45-AC45)*12.36% -> 13446.444 | AE45: =AA45-AB45-AC47+AD45 -> 122236.444 | AF45: =IF(AF$8="SANGLI",HLOOKUP($A45,'[1]EX WORKS'!$D$2:$AE$90,9,0)) -> 109150 | AG45: 1000 | AH45: 0 | AI45: =(AF45-AG45-AH45)*12.36% -> 13367.34 | AJ45: =AF45-AG45-AH45+AI45 -> 121517.34
A46: W55A004A | B46: =IF(B$8="Daman",HLOOKUP($A46,'[1]EX WORKS'!$D$2:$AE$90,3,0)) -> 112720 | C46: 1000 | D46: 0 | E46: =(B46-C46-D46)*12.36% -> 13808.592 | F46: =B46-C46-D46+E46 -> 125528.592 | G46: =IF(G$8="SILVASSA",HLOOKUP($A46,'[1]EX WORKS'!$D$2:$AE$90,4,0)) -> 112720 | H46: 1000 | I46: 0 | J46: =(G46-H46-I46)*12.36% -> 13808.592 | K46: =G46-H46-I46+J46 -> 125528.592 | L46: =IF(L$8="MUMBAI/BHIWANDI/THANE",HLOOKUP($A46,'[1]EX WORKS'!$D$2:$AE$90,5,0)) -> 112060 | M46: 1000 | N46: 0 | O46: =(L46-M46-N46)*12.36% -> 13727.016 | P46: =L46-M46-N46+O46 -> 124787.016 | Q46: =IF(Q$8="JALGAON",HLOOKUP($A46,'[1]EX WORKS'!$D$2:$AE$90,6,0)) -> 113160 | R46: 1000 | S46: 0 | T46: =(Q46-R46-S46)*12.36% -> 13862.976 | U46: =Q46-R46-S46+T46 -> 126022.976 | V46: =IF(V$8="NAGPUR",HLOOKUP($A46,'[1]EX WORKS'!$D$2:$AE$90,7,0)) -> 114300 | W46: 1000 | X46: 0 | Y46: =(V46-W46-X46)*12.36% -> 14003.88 | Z46: =V46-W46-X46+Y46 -> 127303.88 | AA46: =IF(AA$8="AURANGABAD",HLOOKUP($A46,'[1]EX WORKS'!$D$2:$AE$90,8,0)) -> 112790 | AB46: 1000 | AC46: 0 | AD46: =(AA46-AB46-AC46)*12.36% -> 13817.244 | AE46: =AA46-AB46-AC48+AD46 -> 125607.244 | AF46: =IF(AF$8="SANGLI",HLOOKUP($A46,'[1]EX WORKS'!$D$2:$AE$90,9,0)) -> 112150 | AG46: 1000 | AH46: 0 | AI46: =(AF46-AG46-AH46)*12.36% -> 13738.14 | AJ46: =AF46-AG46-AH46+AI46 -> 124888.14
A47: LLDPE
A48: E20AN009A | B48: =IF(B$8="Daman",HLOOKUP($A48,'[1]EX WORKS'!$D$2:$AE$90,3,0)) -> 112980 | C48: 1000 | D48: 0 | E48: =(B48-C48-D48)*12.36% -> 13840.728 | F48: =B48-C48-D48+E48 -> 125820.728 | G48: =IF(G$8="SILVASSA",HLOOKUP($A48,'[1]EX WORKS'!$D$2:$AE$90,4,0)) -> 112980 | H48: 1000 | I48: 0 | J48: =(G48-H48-I48)*12.36% -> 13840.728 | K48: =G48-H48-I48+J48 -> 125820.728 | L48: =IF(L$8="MUMBAI/BHIWANDI/THANE",HLOOKUP($A48,'[1]EX WORKS'!$D$2:$AE$90,5,0)) -> 112330 | M48: 1000 | N48: 0 | O48: =(L48-M48-N48)*12.36% -> 13760.388 | P48: =L48-M48-N48+O48 -> 125090.388 | Q48: =IF(Q$8="JALGAON",HLOOKUP($A48,'[1]EX WORKS'!$D$2:$AE$90,6,0)) -> 113420 | R48: 1000 | S48: 0 | T48: =(Q48-R48-S48)*12.36% -> 13895.112 | U48: =Q48-R48-S48+T48 -> 126315.112 | V48: =IF(V$8="NAGPUR",HLOOKUP($A48,'[1]EX WORKS'!$D$2:$AE$90,7,0)) -> 114570 | W48: 1000 | X48: 0 | Y48: =(V48-W48-X48)*12.36% -> 14037.252 | Z48: =V48-W48-X48+Y48 -> 127607.252 | AA48: =IF(AA$8="AURANGABAD",HLOOKUP($A48,'[1]EX WORKS'!$D$2:$AE$90,8,0)) -> 113050 | AB48: 1000 | AC48: 0 | AD48: =(AA48-AB48-AC48)*12.36% -> 13849.38 | AE48: =AA48-AB48-AC48+AD48 -> 125899.38 | AF48: =IF(AF$8="SANGLI",HLOOKUP($A48,'[1]EX WORKS'!$D$2:$AE$90,9,0)) -> 112410 | AG48: 1000 | AH48: 0 | AI48: =(AF48-AG48-AH48)*12.36% -> 13770.276 | AJ48: =AF48-AG48-AH48+AI48 -> 125180.276
A49: E20AN009OG
A50: E36A060A | B50: =IF(B$8="Daman",HLOOKUP($A50,'[1]EX WORKS'!$D$2:$AE$90,3,0)) -> 115020 | C50: 1000 | D50: 0 | E50: =(B50-C50-D50)*12.36% -> 14092.872 | F50: =B50-C50-D50+E50 -> 128112.872 | G50: =IF(G$8="SILVASSA",HLOOKUP($A50,'[1]EX WORKS'!$D$2:$AE$90,4,0)) -> 115020 | H50: 1000 | I50: 0 | J50: =(G50-H50-I50)*12.36% -> 14092.872 | K50: =G50-H50-I50+J50 -> 128112.872 | L50: =IF(L$8="MUMBAI/BHIWANDI/THANE",HLOOKUP($A50,'[1]EX WORKS'!$D$2:$AE$90,5,0)) -> 114370 | M50: 1000 | N50: 0 | O50: =(L50-M50-N50)*12.36% -> 14012.532 | P50: =L50-M50-N50+O50 -> 127382.532 | Q50: =IF(Q$8="JALGAON",HLOOKUP($A50,'[1]EX WORKS'!$D$2:$AE$90,6,0)) -> 115470 | R50: 1000 | S50: 0 | T50: =(Q50-R50-S50)*12.36% -> 14148.492 | U50: =Q50-R50-S50+T50 -> 128618.492 | V50: =IF(V$8="NAGPUR",HLOOKUP($A50,'[1]EX WORKS'!$D$2:$AE$90,7,0)) -> 116610 | W50: 1000 | X50: 0 | Y50: =(V50-W50-X50)*12.36% -> 14289.396 | Z50: =V50-W50-X50+Y50 -> 129899.396 | AA50: =IF(AA$8="AURANGABAD",HLOOKUP($A50,'[1]EX WORKS'!$D$2:$AE$90,8,0)) -> 115090 | AB50: 1000 | AC50: 0 | AD50: =(AA50-AB50-AC50)*12.36% -> 14101.524 | AE50: =AA50-AB50-AC50+AD50 -> 128191.524 | AF50: =IF(AF$8="SANGLI",HLOOKUP($A50,'[1]EX WORKS'!$D$2:$AE$90,9,0)) -> 114450 | AG50: 1000 | AH50: 0 | AI50: =(AF50-AG50-AH50)*12.36% -> 14022.42 | AJ50: =AF50-AG50-AH50+AI50 -> 127472.42
A51: E36A060OG
A52: FILM
A53: F20S009A | B53: =IF(B$8="Daman",HLOOKUP($A53,'[1]EX WORKS'!$D$2:$AE$90,3,0)) -> 114480 | C53: 1000 | D53: 0 | E53: =(B53-C53-D53)*12.36% -> 14026.128 | F53: =B53-C53-D53+E53 -> 127506.128 | G53: =IF(G$8="SILVASSA",HLOOKUP($A53,'[1]EX WORKS'!$D$2:$AE$90,4,0)) -> 114480 | H53: 1000 | I53: 0 | J53: =(G53-H53-I53)*12.36% -> 14026.128 | K53: =G53-H53-I53+J53 -> 127506.128 | L53: =IF(L$8="MUMBAI/BHIWANDI/THANE",HLOOKUP($A53,'[1]EX WORKS'!$D$2:$AE$90,5,0)) -> 113830 | M53: 1000 | N53: 0 | O53: =(L53-M53-N53)*12.36% -> 13945.788 | P53: =L53-M53-N53+O53 -> 126775.788 | Q53: =IF(Q$8="JALGAON",HLOOKUP($A53,'[1]EX WORKS'!$D$2:$AE$90,6,0)) -> 114920 | R53: 1000 | S53: 0 | T53: =(Q53-R53-S53)*12.36% -> 14080.512 | U53: =Q53-R53-S53+T53 -> 128000.512 | V53: =IF(V$8="NAGPUR",HLOOKUP($A53,'[1]EX WORKS'!$D$2:$AE$90,7,0)) -> 116070 | W53: 1000 | X53: 0 | Y53: =(V53-W53-X53)*12.36% -> 14222.652 | Z53: =V53-W53-X53+Y53 -> 129292.652 | AA53: =IF(AA$8="AURANGABAD",HLOOKUP($A53,'[1]EX WORKS'!$D$2:$AE$90,8,0)) -> 114550 | AB53: 1000 | AC53: 0 | AD53: =(AA53-AB53-AC53)*12.36% -> 14034.78 | AE53: =AA53-AB53-AC53+AD53 -> 127584.78 | AF53: =IF(AF$8="SANGLI",HLOOKUP($A53,'[1]EX WORKS'!$D$2:$AE$90,9,0)) -> 113910 | AG53: 1000 | AH53: 0 | AI53: =(AF53-AG53-AH53)*12.36% -> 13955.676 | AJ53: =AF53-AG53-AH53+AI53 -> 126865.676
A54: F20S009OG
A55: D22S010A | B55: =IF(B$8="Daman",HLOOKUP($A55,'[1]EX WORKS'!$D$2:$AE$90,3,0)) -> 113480 | C55: 1000 | D55: 0 | E55: =(B55-C55-D55)*12.36% -> 13902.528 | F55: =B55-C55-D55+E55 -> 126382.528 | G55: =IF(G$8="SILVASSA",HLOOKUP($A55,'[1]EX WORKS'!$D$2:$AE$90,4,0)) -> 113480 | H55: 1000 | I55: 0 | J55: =(G55-H55-I55)*12.36% -> 13902.528 | K55: =G55-H55-I55+J55 -> 126382.528 | L55: =IF(L$8="MUMBAI/BHIWANDI/THANE",HLOOKUP($A55,'[1]EX WORKS'!$D$2:$AE$90,5,0)) -> 112830 | M55: 1000 | N55: 0 | O55: =(L55-M55-N55)*12.36% -> 13822.188 | P55: =L55-M55-N55+O55 -> 125652.188 | Q55: =IF(Q$8="JALGAON",HLOOKUP($A55,'[1]EX WORKS'!$D$2:$AE$90,6,0)) -> 113920 | R55: 1000 | S55: 0 | T55: =(Q55-R55-S55)*12.36% -> 13956.912 | U55: =Q55-R55-S55+T55 -> 126876.912 | V55: =IF(V$8="NAGPUR",HLOOKUP($A55,'[1]EX WORKS'!$D$2:$AE$90,7,0)) -> 115070 | W55: 1000 | X55: 0 | Y55: =(V55-W55-X55)*12.36% -> 14099.052 | Z55: =V55-W55-X55+Y55 -> 128169.052 | AA55: =IF(AA$8="AURANGABAD",HLOOKUP($A55,'[1]EX WORKS'!$D$2:$AE$90,8,0)) -> 113550 | AB55: 1000 | AC55: 0 | AD55: =(AA55-AB55-AC55)*12.36% -> 13911.18 | AE55: =AA55-AB55-AC55+AD55 -> 126461.18 | AF55: =IF(AF$8="SANGLI",HLOOKUP($A55,'[1]EX WORKS'!$D$2:$AE$90,9,0)) -> 112910 | AG55: 1000 | AH55: 0 | AI55: =(AF55-AG55-AH55)*12.36% -> 13832.076 | AJ55: =AF55-AG55-AH55+AI55 -> 125742.076
A56: ROTO
A57: R35A042A | B57: =IF(B$8="Daman",HLOOKUP($A57,'[1]EX WORKS'!$D$2:$AE$90,3,0)) -> 112000 | C57: 1000 | D57: 0 | E57: =(B57-C57-D57)*12.36% -> 13719.6 | F57: =B57-C57-D57+E57 -> 124719.6 | G57: =IF(G$8="SILVASSA",HLOOKUP($A57,'[1]EX WORKS'!$D$2:$AE$90,4,0)) -> 112010 | H57: 1000 | I57: 0 | J57: =(G57-H57-I57)*12.36% -> 13720.836 | K57: =G57-H57-I57+J57 -> 124730.836 | L57: =IF(L$8="MUMBAI/BHIWANDI/THANE",HLOOKUP($A57,'[1]EX WORKS'!$D$2:$AE$90,5,0)) -> 111420 | M57: 1000 | N57: 0 | O57: =(L57-M57-N57)*12.36% -> 13647.912 | P57: =L57-M57-N57+O57 -> 124067.912 | Q57: =IF(Q$8="JALGAON",HLOOKUP($A57,'[1]EX WORKS'!$D$2:$AE$90,6,0)) -> 112450 | R57: 1000 | S57: 0 | T57: =(Q57-R57-S57)*12.36% -> 13775.22 | U57: =Q57-R57-S57+T57 -> 125225.22 | V57: =IF(V$8="NAGPUR",HLOOKUP($A57,'[1]EX WORKS'!$D$2:$AE$90,7,0)) -> 113590 | W57: 1000 | X57: 0 | Y57: =(V57-W57-X57)*12.36% -> 13916.124 | Z57: =V57-W57-X57+Y57 -> 126506.124 | AA57: =IF(AA$8="AURANGABAD",HLOOKUP($A57,'[1]EX WORKS'!$D$2:$AE$90,8,0)) -> 112060 | AB57: 1000 | AC57: 0 | AD57: =(AA57-AB57-AC57)*12.36% -> 13727.016 | AE57: =AA57-AB57-AC57+AD57 -> 124787.016 | AF57: =IF(AF$8="SANGLI",HLOOKUP($A57,'[1]EX WORKS'!$D$2:$AE$90,9,0)) -> 111540 | AG57: 1000 | AH57: 0 | AI57: =(AF57-AG57-AH57)*12.36% -> 13662.744 | AJ57: =AF57-AG57-AH57+AI57 -> 124202.744
A58: R35U042A | B58: =IF(B$8="Daman",HLOOKUP($A58,'[1]EX WORKS'!$D$2:$AE$90,3,0)) -> 112860 | C58: 1000 | D58: 0 | E58: =(B58-C58-D58)*12.36% -> 13825.896 | F58: =B58-C58-D58+E58 -> 125685.896 | G58: =IF(G$8="SILVASSA",HLOOKUP($A58,'[1]EX WORKS'!$D$2:$AE$90,4,0)) -> 112870 | H58: 1000 | I58: 0 | J58: =(G58-H58-I58)*12.36% -> 13827.132 | K58: =G58-H58-I58+J58 -> 125697.132 | L58: =IF(L$8="MUMBAI/BHIWANDI/THANE",HLOOKUP($A58,'[1]EX WORKS'!$D$2:$AE$90,5,0)) -> 112280 | M58: 1000 | N58: 0 | O58: =(L58-M58-N58)*12.36% -> 13754.208 | P58: =L58-M58-N58+O58 -> 125034.208 | Q58: =IF(Q$8="JALGAON",HLOOKUP($A58,'[1]EX WORKS'!$D$2:$AE$90,6,0)) -> 113310 | R58: 1000 | S58: 0 | T58: =(Q58-R58-S58)*12.36% -> 13881.516 | U58: =Q58-R58-S58+T58 -> 126191.516 | V58: =IF(V$8="NAGPUR",HLOOKUP($A58,'[1]EX WORKS'!$D$2:$AE$90,7,0)) -> 114450 | W58: 1000 | X58: 0 | Y58: =(V58-W58-X58)*12.36% -> 14022.42 | Z58: =V58-W58-X58+Y58 -> 127472.42 | AA58: =IF(AA$8="AURANGABAD",HLOOKUP($A58,'[1]EX WORKS'!$D$2:$AE$90,8,0)) -> 112920 | AB58: 1000 | AC58: 0 | AD58: =(AA58-AB58-AC58)*12.36% -> 13833.312 | AE58: =AA58-AB58-AC58+AD58 -> 125753.312 | AF58: =IF(AF$8="SANGLI",HLOOKUP($A58,'[1]EX WORKS'!$D$2:$AE$90,9,0)) -> 112400 | AG58: 1000 | AH58: 0 | AI58: =(AF58-AG58-AH58)*12.36% -> 13769.04 | AJ58: =AF58-AG58-AH58+AI58 -> 125169.04
Z59: .
A60: NOTE: | B60: LOCATION DISCOUNT HAS BEEN DISCONTINUED
B62: THE PRICES OF OLD PLANT & NEW PLANT ARE SAME FROM DIRECT SALE

Sheet Sheet2
A2: UNITED BROTHERS
A3: CONSIGNMENT STOCKIST OF GAIL (INDIA) LTD
A4: 301,HERITAGE PLAZA, R.S.MAHARAJ MARG,( TELI GALLI CROSS LANE), ANDHERI (E), MUMBAI - 400 069
A5: EL: 26844612(4 LINES) FAX: 26822914 E-MAIL: info@unibrothers.com, prashant@unibrothers.com,jyoti@unibrotehers.com
A6: EX-WORKS PRICE OF HDPE "G-LEX / G-LENE " W.E.F. 1ST AUGUST 2014
A7: CASH / ADVANCE PAYMENT FOR MAHARASHTRA & DAMAN
B8: Freight | D8: 2959.58 | G8: Freight | I8: 2127.07 | L8: Freight | N8: 2757.59 | Q8: Freight | S8: 2950.79 | V8: Freight | X8: 2384.35 | AA8: Freight | AC8: 3304.27 | AF8: Freight 1986.51 | AG8: 2555.6 | AK8: FREIGHT | AL8: 2939.82
B9: SOLAPUR | G9: UMBERGAON | L9: PUNE | Q9: WAI | V9: NASIK | AA9: KOLHAPUR | AF9: AHMEDNAGAR | AK9: ROHA
B10: BASIC | C10: DISC | D10: LOC | E10: EXCISE | F10: EX-WKS | G10: BASIC | H10: DISC | I10: LOC | J10: EXCISE | K10: EX-WKS | L10: BASIC | M10: DISC | N10: LOC | O10: EXCISE | P10: EX-WKS | Q10: BASIC | R10: DISC | S10: LOC | T10: EXCISE | U10: EX-WKS | V10: BASIC | W10: DISC | X10: LOC | Y10: EXCISE | Z10: EX-WKS | AB10: DISC | AC10: LOC | AD10: EXCISE | AE10: EX-WKS | AF10: BASIC | AG10: DISC | AH10: LOC | AI10: EXCISE | AJ10: EX-WKS | AL10: DISC | AM10: LOC | AN10: EXCISE | AO10: EX-WKS
A11: BM
A12: B52A003A | B12: =IF(B$9="SOLAPUR",HLOOKUP($A12,'[2]EX WORKS'!$D$2:$AE$90,10,0)) -> 109030 | C12: 1000 | D12: 0 | E12: =(B12-C12-D12)*12.36% -> 13352.508 | F12: =B12-C12-D12+E12 -> 121382.508 | G12: =IF(G$9="UMBERGAON",HLOOKUP($A12,'[2]EX WORKS'!$D$2:$AE$90,11,0)) -> 109970 | H12: 1000 | I12: 0 | J12: =(G12-H12-I12)*12.36% -> 13468.692 | K12: =G12-H12-I12+J12 -> 122438.692 | L12: =IF(L$9="PUNE",HLOOKUP($A12,'[2]EX WORKS'!$D$2:$AE$90,12,0)) -> 109010 | M12: 1000 | N12: 0 | O12: =(L12-M12-N12)*12.36% -> 13350.036 | P12: =L12-M12-N12+O12 -> 121360.036 | Q12: =IF(Q$9="WAI",HLOOKUP($A12,'[2]EX WORKS'!$D$2:$AE$90,13,0)) -> 109010 | R12: 1000 | S12: 0 | T12: =(Q12-R12-S12)*12.36% -> 13350.036 | U12: =Q12-R12-S12+T12 -> 121360.036 | V12: =IF(V$9="NASIK",HLOOKUP($A12,'[2]EX WORKS'!$D$2:$AE$90,14,0)) -> 109440 | W12: 1000 | X12: 0 | Y12: =(V12-W12-X12)*12.36% -> 13403.184 | Z12: =V12-W12-X12+Y12 -> 121843.184 | AA12: =IF(AA$9="KOLHAPUR",HLOOKUP($A12,'[2]EX WORKS'!$D$2:$AE$90,15,0)) -> 108860 | AB12: 1000 | AC12: 0 | AD12: =(AA12-AB12-AC12)*12.36% -> 13331.496 | AE12: =AA12-AB12-AC12+AD12 -> 121191.496 | AF12: =IF(AF$9="AHMEDNAGAR",HLOOKUP($A12,'[2]EX WORKS'!$D$2:$AE$90,16,0)) -> 109660 | AG12: 1000 | AH12: 0 | AI12: =(AF13-AG12-AH12)*12.36% -> 13430.376 | AJ12: =AF13-AG12-AH12+AI12 -> 122090.376 | AK12: =IF(AK$9="ROHA",HLOOKUP($A12,'[2]EX WORKS'!$D$2:$AE$90,17,0)) -> 109440 | AL12: 1000 | AM12: 0 | AN12: =(AK12-AL12-AM12)*12.36% -> 13403.184 | AO12: =AK12-AL12-AM12+AN12 -> 121843.184
A13: B63A003A | B13: =IF(B$9="SOLAPUR",HLOOKUP($A13,'[2]EX WORKS'!$D$2:$AE$90,10,0)) -> 109030 | C13: 1000 | D13: 0 | E13: =(B13-C13-D13)*12.36% -> 13352.508 | F13: =B13-C13-D13+E13 -> 121382.508 | G13: =IF(G$9="UMBERGAON",HLOOKUP($A13,'[2]EX WORKS'!$D$2:$AE$90,11,0)) -> 109970 | H13: 1000 | I13: 0 | J13: =(G13-H13-I13)*12.36% -> 13468.692 | K13: =G13-H13-I13+J13 -> 122438.692 | L13: =IF(L$9="PUNE",HLOOKUP($A13,'[2]EX WORKS'!$D$2:$AE$90,12,0)) -> 109010 | M13: 1000 | N13: 0 | O13: =(L13-M13-N13)*12.36% -> 13350.036 | P13: =L13-M13-N13+O13 -> 121360.036 | Q13: =IF(Q$9="WAI",HLOOKUP($A13,'[2]EX WORKS'!$D$2:$AE$90,13,0)) -> 109010 | R13: 1000 | S13: 0 | T13: =(Q13-R13-S13)*12.36% -> 13350.036 | U13: =Q13-R13-S13+T13 -> 121360.036 | V13: =IF(V$9="NASIK",HLOOKUP($A13,'[2]EX WORKS'!$D$2:$AE$90,14,0)) -> 109440 | W13: 1000 | X13: 0 | Y13: =(V13-W13-X13)*12.36% -> 13403.184 | Z13: =V13-W13-X13+Y13 -> 121843.184 | AA13: =IF(AA$9="KOLHAPUR",HLOOKUP($A13,'[2]EX WORKS'!$D$2:$AE$90,15,0)) -> 108860 | AB13: 1000 | AC13: 0 | AD13: =(AA13-AB13-AC13)*12.36% -> 13331.496 | AE13: =AA13-AB13-AC13+AD13 -> 121191.496 | AF13: =IF(AF$9="AHMEDNAGAR",HLOOKUP($A13,'[2]EX WORKS'!$D$2:$AE$90,16,0)) -> 109660 | AG13: 1000 | AH13: 0 | AI13: =(AF14-AG13-AH13)*12.36% -> 13862.976 | AJ13: =AF14-AG13-AH13+AI13 -> 126022.976 | AK13: =IF(AK$9="ROHA",HLOOKUP($A13,'[2]EX WORKS'!$D$2:$AE$90,17,0)) -> 109440 | AL13: 1000 | AM13: 0 | AN13: =(AK13-AL13-AM13)*12.36% -> 13403.184 | AO13: =AK13-AL13-AM13+AN13 -> 121843.184
A14: B55HM0003A | B14: =IF(B$9="SOLAPUR",HLOOKUP($A14,'[2]EX WORKS'!$D$2:$AE$90,10,0)) -> 112640 | C14: 1000 | D14: 0 | E14: =(B14-C14-D14)*12.36% -> 13798.704 | F14: =B14-C14-D14+E14 -> 125438.704 | G14: =IF(G$9="UMBERGAON",HLOOKUP($A14,'[2]EX WORKS'!$D$2:$AE$90,11,0)) -> 113340 | H14: 1000 | I14: 0 | J14: =(G14-H14-I14)*12.36% -> 13885.224 | K14: =G14-H14-I14+J14 -> 126225.224 | L14: =IF(L$9="PUNE",HLOOKUP($A14,'[2]EX WORKS'!$D$2:$AE$90,12,0)) -> 112540 | M14: 1000 | N14: 0 | O14: =(L14-M14-N14)*12.36% -> 13786.344 | P14: =L14-M14-N14+O14 -> 125326.344 | Q14: =IF(Q$9="WAI",HLOOKUP($A14,'[2]EX WORKS'!$D$2:$AE$90,13,0)) -> 112540 | R14: 1000 | S14: 0 | T14: =(Q14-R14-S14)*12.36% -> 13786.344 | U14: =Q14-R14-S14+T14 -> 125326.344 | V14: =IF(V$9="NASIK",HLOOKUP($A14,'[2]EX WORKS'!$D$2:$AE$90,14,0)) -> 112890 | W14: 1000 | X14: 0 | Y14: =(V14-W14-X14)*12.36% -> 13829.604 | Z14: =V14-W14-X14+Y14 -> 125719.604 | AA14: =IF(AA$9="KOLHAPUR",HLOOKUP($A14,'[2]EX WORKS'!$D$2:$AE$90,15,0)) -> 112330 | AB14: 1000 | AC14: 0 | AD14: =(AA14-AB14-AC14)*12.36% -> 13760.388 | AE14: =AA14-AB14-AC14+AD14 -> 125090.388 | AF14: =IF(AF$9="AHMEDNAGAR",HLOOKUP($A14,'[2]EX WORKS'!$D$2:$AE$90,16,0)) -> 113160 | AG14: 1000 | AH14: 0 | AI14: =(AF14-AG14-AH14)*12.36% -> 13862.976 | AJ14: =AF14-AG14-AH14+AI14 -> 126022.976 | AK14: =IF(AK$9="ROHA",HLOOKUP($A14,'[2]EX WORKS'!$D$2:$AE$90,17,0)) -> 112890 | AL14: 1000 | AM14: 0 | AN14: =(AK14-AL14-AM14)*12.36% -> 13829.604 | AO14: =AK14-AL14-AM14+AN14 -> 125719.604
A15: B53EA0035A | G15: =IF(G$9="UMBERGAON",HLOOKUP($A15,'[2]EX WORKS'!$D$2:$AE$90,11,0)) -> 110470 | H15: 1000 | I15: 0 | J15: =(G15-H15-I15)*12.36% -> 13530.492 | K15: =G15-H15-I15+J15 -> 123000.492
A16: SHETG
A17: E45A003A | B17: =IF(B$9="SOLAPUR",HLOOKUP($A17,'[2]EX WORKS'!$D$2:$AE$90,10,0)) -> 111880 | C17: 1000 | D17: 0 | E17: =(B17-C17-D17)*12.36% -> 13704.768 | F17: =B17-C17-D17+E17 -> 124584.768 | G17: =IF(G$9="UMBERGAON",HLOOKUP($A17,'[2]EX WORKS'!$D$2:$AE$90,11,0)) -> 112580 | H17: 1000 | I17: 0 | J17: =(G17-H17-I17)*12.36% -> 13791.288 | K17: =G17-H17-I17+J17 -> 125371.288 | L17: =IF(L$9="PUNE",HLOOKUP($A17,'[2]EX WORKS'!$D$2:$AE$90,12,0)) -> 111850 | M17: 1000 | N17: 0 | O17: =(L17-M17-N17)*12.36% -> 13701.06 | P17: =L17-M17-N17+O17 -> 124551.06 | Q17: =IF(Q$9="WAI",HLOOKUP($A17,'[2]EX WORKS'!$D$2:$AE$90,13,0)) -> 111850 | R17: 1000 | S17: 0 | T17: =(Q17-R17-S17)*12.36% -> 13701.06 | U17: =Q17-R17-S17+T17 -> 124551.06 | V17: =IF(V$9="NASIK",HLOOKUP($A17,'[2]EX WORKS'!$D$2:$AE$90,14,0)) -> 112250 | W17: 1000 | X17: 0 | Y17: =(V17-W17-X17)*12.36% -> 13750.5 | Z17: =V17-W17-X17+Y17 -> 125000.5 | AA17: =IF(AA$9="KOLHAPUR",HLOOKUP($A17,'[2]EX WORKS'!$D$2:$AE$90,15,0)) -> 111680 | AB17: 1000 | AC17: 0 | AD17: =(AA17-AB17-AC17)*12.36% -> 13680.048 | AE17: =AA17-AB17-AC17+AD17 -> 124360.048 | AF17: =IF(AF$9="AHMEDNAGAR",HLOOKUP($A17,'[2]EX WORKS'!$D$2:$AE$90,16,0)) -> 112520 | AG17: 1000 | AH17: 0 | AI17: =(AF17-AG17-AH17)*12.36% -> 13783.872 | AJ17: =AF17-AG17-AH17+AI17 -> 125303.872 | AK17: =IF(AK$9="ROHA",HLOOKUP($A17,'[2]EX WORKS'!$D$2:$AE$90,17,0)) -> 112250 | AL17: 1000 | AM17: 0 | AN17: =(AK17-AL17-AM17)*12.36% -> 13750.5 | AO17: =AK17-AL17-AM17+AN17 -> 125000.5
A18: E45A003OG
A19: EXTR
A20: E52A003A | B20: =IF(B$9="SOLAPUR",HLOOKUP($A20,'[2]EX WORKS'!$D$2:$AE$90,10,0)) -> 110550 | C20: 1000 | D20: 0 | E20: =(B20-C20-D20)*12.36% -> 13540.38 | F20: =B20-C20-D20+E20 -> 123090.38 | G20: =IF(G$9="UMBERGAON",HLOOKUP($A20,'[2]EX WORKS'!$D$2:$AE$90,11,0)) -> 111180 | H20: 1000 | I20: 0 | J20: =(G20-H20-I20)*12.36% -> 13618.248 | K20: =G20-H20-I20+J20 -> 123798.248 | L20: =IF(L$9="PUNE",HLOOKUP($A20,'[2]EX WORKS'!$D$2:$AE$90,12,0)) -> 110520 | M20: 1000 | N20: 0 | O20: =(L20-M20-N20)*12.36% -> 13536.672 | P20: =L20-M20-N20+O20 -> 123056.672 | Q20: =IF(Q$9="WAI",HLOOKUP($A20,'[2]EX WORKS'!$D$2:$AE$90,13,0)) -> 110520 | R20: 1000 | S20: 0 | T20: =(Q20-R20-S20)*12.36% -> 13536.672 | U20: =Q20-R20-S20+T20 -> 123056.672 | V20: =IF(V$9="NASIK",HLOOKUP($A20,'[2]EX WORKS'!$D$2:$AE$90,14,0)) -> 110920 | W20: 1000 | X20: 0 | Y20: =(V20-W20-X20)*12.36% -> 13586.112 | Z20: =V20-W20-X20+Y20 -> 123506.112 | AA20: =IF(AA$9="KOLHAPUR",HLOOKUP($A20,'[2]EX WORKS'!$D$2:$AE$90,15,0)) -> 110350 | AB20: 1000 | AC20: 0 | AD20: =(AA20-AB20-AC20)*12.36% -> 13515.66 | AE20: =AA20-AB20-AC20+AD20 -> 122865.66 | AF20: =IF(AF$9="AHMEDNAGAR",HLOOKUP($A20,'[2]EX WORKS'!$D$2:$AE$90,16,0)) -> 111180 | AG20: 1000 | AH20: 0 | AI20: =(AF20-AG20-AH20)*12.36% -> 13618.248 | AJ20: =AF20-AG20-AH20+AI20 -> 123798.248 | AK20: =IF(AK$9="ROHA",HLOOKUP($A20,'[2]EX WORKS'!$D$2:$AE$90,17,0)) -> 110920 | AL20: 1000 | AM20: 0 | AN20: =(AK20-AL20-AM20)*12.36% -> 13586.112 | AO20: =AK20-AL20-AM20+AN20 -> 123506.112
A21: E52A003OG
A22: E52U003A | B22: =IF(B$9="SOLAPUR",HLOOKUP($A22,'[2]EX WORKS'!$D$2:$AE$90,10,0)) -> 112330 | C22: 1000 | D22: 0 | E22: =(B22-C22-D22)*12.36% -> 13760.388 | F22: =B22-C22-D22+E22 -> 125090.388 | G22: =IF(G$9="UMBERGAON",HLOOKUP($A22,'[2]EX WORKS'!$D$2:$AE$90,11,0)) -> 112960 | H22: 1000 | I22: 0 | J22: =(G22-H22-I22)*12.36% -> 13838.256 | K22: =G22-H22-I22+J22 -> 125798.256 | L22: =IF(L$9="PUNE",HLOOKUP($A22,'[2]EX WORKS'!$D$2:$AE$90,12,0)) -> 112300 | M22: 1000 | N22: 0 | O22: =(L22-M22-N22)*12.36% -> 13756.68 | P22: =L22-M22-N22+O22 -> 125056.68 | Q22: =IF(Q$9="WAI",HLOOKUP($A22,'[2]EX WORKS'!$D$2:$AE$90,13,0)) -> 112300 | R22: 1000 | S22: 0 | T22: =(Q22-R22-S22)*12.36% -> 13756.68 | U22: =Q22-R22-S22+T22 -> 125056.68 | V22: =IF(V$9="NASIK",HLOOKUP($A22,'[2]EX WORKS'!$D$2:$AE$90,14,0)) -> 112700 | W22: 1000 | X22: 0 | Y22: =(V22-W22-X22)*12.36% -> 13806.12 | Z22: =V22-W22-X22+Y22 -> 125506.12 | AA22: =IF(AA$9="KOLHAPUR",HLOOKUP($A22,'[2]EX WORKS'!$D$2:$AE$90,15,0)) -> 112130 | AB22: 1000 | AC22: 0 | AD22: =(AA22-AB22-AC22)*12.36% -> 13735.668 | AE22: =AA22-AB22-AC22+AD22 -> 124865.668 | AF22: =IF(AF$9="AHMEDNAGAR",HLOOKUP($A22,'[2]EX WORKS'!$D$2:$AE$90,16,0)) -> 112960 | AG22: 1000 | AH22: 0 | AI22: =(AF22-AG22-AH22)*12.36% -> 13838.256 | AJ22: =AF22-AG22-AH22+AI22 -> 125798.256 | AK22: =IF(AK$9="ROHA",HLOOKUP($A22,'[2]EX WORKS'!$D$2:$AE$90,17,0)) -> 112700 | AL22: 1000 | AM22: 0 | AN22: =(AK22-AL22-AM22)*12.36% -> 13806.12 | AO22: =AK22-AL22-AM22+AN22 -> 125506.12
A23: E52U003OG
A24: HM FILM
A25: F55HM0003A | B25: =IF(B$9="SOLAPUR",HLOOKUP($A25,'[2]EX WORKS'!$D$2:$AE$90,10,0)) -> 110690 | C25: 1000 | D25: 0 | E25: =(B25-C25-D25)*12.36% -> 13557.684 | F25: =B25-C25-D25+E25 -> 123247.684 | G25: =IF(G$9="UMBERGAON",HLOOKUP($A25,'[2]EX WORKS'!$D$2:$AE$90,11,0)) -> 111390 | H25: 1000 | I25: 0 | J25: =(G25-H25-I25)*12.36% -> 13644.204 | K25: =G25-H25-I25+J25 -> 124034.204 | L25: =IF(L$9="PUNE",HLOOKUP($A25,'[2]EX WORKS'!$D$2:$AE$90,12,0)) -> 110590 | M25: 1000 | N25: 0 | O25: =(L25-M25-N25)*12.36% -> 13545.324 | P25: =L25-M25-N25+O25 -> 123135.324 | Q25: =IF(Q$9="WAI",HLOOKUP($A25,'[2]EX WORKS'!$D$2:$AE$90,13,0)) -> 110590 | R25: 1000 | S25: 0 | T25: =(Q25-R25-S25)*12.36% -> 13545.324 | U25: =Q25-R25-S25+T25 -> 123135.324 | V25: =IF(V$9="NASIK",HLOOKUP($A25,'[2]EX WORKS'!$D$2:$AE$90,14,0)) -> 110940 | W25: 1000 | X25: 0 | Y25: =(V25-W25-X25)*12.36% -> 13588.584 | Z25: =V25-W25-X25+Y25 -> 123528.584 | AA25: =IF(AA$9="KOLHAPUR",HLOOKUP($A25,'[2]EX WORKS'!$D$2:$AE$90,15,0)) -> 110380 | AB25: 1000 | AC25: 0 | AD25: =(AA25-AB25-AC25)*12.36% -> 13519.368 | AE25: =AA25-AB25-AC25+AD25 -> 122899.368 | AF25: =IF(AF$9="AHMEDNAGAR",HLOOKUP($A25,'[2]EX WORKS'!$D$2:$AE$90,16,0)) -> 111210 | AG25: 1000 | AH25: 0 | AI25: =(AF25-AG25-AH25)*12.36% -> 13621.956 | AJ25: =AF25-AG25-AH25+AI25 -> 123831.956 | AK25: =IF(AK$9="ROHA",HLOOKUP($A25,'[2]EX WORKS'!$D$2:$AE$90,17,0)) -> 110940 | AL25: 1000 | AM25: 0 | AN25: =(AK25-AL25-AM25)*12.36% -> 13588.584 | AO25: =AK25-AL25-AM25+AN25 -> 123528.584
A26: F55HM0003OG
A27: IM HIGH
A28: I50A180A | B28: =IF(B$9="SOLAPUR",HLOOKUP($A28,'[2]EX WORKS'!$D$2:$AE$90,10,0)) -> 109840 | C28: 1000 | D28: 0 | E28: =(B28-C28-D28)*12.36% -> 13452.624 | F28: =B28-C28-D28+E28 -> 122292.624 | G28: =IF(G$9="UMBERGAON",HLOOKUP($A28,'[2]EX WORKS'!$D$2:$AE$90,11,0)) -> 110440 | H28: 1000 | I28: 0 | J28: =(G28-H28-I28)*12.36% -> 13526.784 | K28: =G28-H28-I28+J28 -> 122966.784 | L28: =IF(L$9="PUNE",HLOOKUP($A28,'[2]EX WORKS'!$D$2:$AE$90,12,0)) -> 109720 | M28: 1000 | N28: 0 | O28: =(L28-M28-N28)*12.36% -> 13437.792 | P28: =L28-M28-N28+O28 -> 122157.792 | Q28: =IF(Q$9="WAI",HLOOKUP($A28,'[2]EX WORKS'!$D$2:$AE$90,13,0)) -> 109720 | R28: 1000 | S28: 0 | T28: =(Q28-R28-S28)*12.36% -> 13437.792 | U28: =Q28-R28-S28+T28 -> 122157.792 | V28: =IF(V$9="NASIK",HLOOKUP($A28,'[2]EX WORKS'!$D$2:$AE$90,14,0)) -> 110040 | W28: 1000 | X28: 0 | Y28: =(V28-W28-X28)*12.36% -> 13477.344 | Z28: =V28-W28-X28+Y28 -> 122517.344 | AA28: =IF(AA$9="KOLHAPUR",HLOOKUP($A28,'[2]EX WORKS'!$D$2:$AE$90,15,0)) -> 109560 | AB28: 1000 | AC28: 0 | AD28: =(AA28-AB28-AC28)*12.36% -> 13418.016 | AE28: =AA28-AB28-AC28+AD28 -> 121978.016 | AF28: =IF(AF$9="AHMEDNAGAR",HLOOKUP($A28,'[2]EX WORKS'!$D$2:$AE$90,16,0)) -> 110300 | AG28: 1000 | AH28: 0 | AI28: =(AF28-AG28-AH28)*12.36% -> 13509.48 | AJ28: =AF28-AG28-AH28+AI28 -> 122809.48 | AK28: =IF(AK$9="ROHA",HLOOKUP($A28,'[2]EX WORKS'!$D$2:$AE$90,17,0)) -> 110040 | AL28: 1000 | AM28: 0 | AN28: =(AK28-AL28-AM28)*12.36% -> 13477.344 | AO28: =AK28-AL28-AM28+AN28 -> 122517.344
A29: I50A180OG
A30: IM LOW
A31: I60A080A | B31: =IF(B$9="SOLAPUR",HLOOKUP($A31,'[2]EX WORKS'!$D$2:$AE$90,10,0)) -> 110020 | C31: 1000 | D31: 0 | E31: =(B31-C31-D31)*12.36% -> 13474.872 | F31: =B31-C31-D31+E31 -> 122494.872 | G31: =IF(G$9="UMBERGAON",HLOOKUP($A31,'[2]EX WORKS'!$D$2:$AE$90,11,0)) -> 110680 | H31: 1000 | I31: 0 | J31: =(G31-H31-I31)*12.36% -> 13556.448 | K31: =G31-H31-I31+J31 -> 123236.448 | L31: =IF(L$9="PUNE",HLOOKUP($A31,'[2]EX WORKS'!$D$2:$AE$90,12,0)) -> 110000 | M31: 1000 | N31: 0 | O31: =(L31-M31-N31)*12.36% -> 13472.4 | P31: =L31-M31-N31+O31 -> 122472.4 | Q31: =IF(Q$9="WAI",HLOOKUP($A31,'[2]EX WORKS'!$D$2:$AE$90,13,0)) -> 110000 | R31: 1000 | S31: 0 | T31: =(Q31-R31-S31)*12.36% -> 13472.4 | U31: =Q31-R31-S31+T31 -> 122472.4 | V31: =IF(V$9="NASIK",HLOOKUP($A31,'[2]EX WORKS'!$D$2:$AE$90,14,0)) -> 110400 | W31: 1000 | X31: 0 | Y31: =(V31-W31-X31)*12.36% -> 13521.84 | Z31: =V31-W31-X31+Y31 -> 122921.84 | AA31: =IF(AA$9="KOLHAPUR",HLOOKUP($A31,'[2]EX WORKS'!$D$2:$AE$90,15,0)) -> 109830 | AB31: 1000 | AC31: 0 | AD31: =(AA31-AB31-AC31)*12.36% -> 13451.388 | AE31: =AA31-AB31-AC31+AD31 -> 122281.388 | AF31: =IF(AF$9="AHMEDNAGAR",HLOOKUP($A31,'[2]EX WORKS'!$D$2:$AE$90,16,0)) -> 110660 | AG31: 1000 | AH31: 0 | AI31: =(AF31-AG31-AH31)*12.36% -> 13553.976 | AJ31: =AF31-AG31-AH31+AI31 -> 123213.976 | AK31: =IF(AK$9="ROHA",HLOOKUP($A31,'[2]EX WORKS'!$D$2:$AE$90,17,0)) -> 110400 | AL31: 1000 | AM31: 0 | AN31: =(AK31-AL31-AM31)*12.36% -> 13521.84 | AO31: =AK31-AL31-AM31+AN31 -> 122921.84
A32: I60A080OG
A33: IM-L-UV
A34: I60U080A | B34: =IF(B$9="SOLAPUR",HLOOKUP($A34,'[2]EX WORKS'!$D$2:$AE$90,10,0)) -> 111560 | C34: 1000 | D34: 0 | E34: =(B34-C34-D34)*12.36% -> 13665.216 | F34: =B34-C34-D34+E34 -> 124225.216 | G34: =IF(G$9="UMBERGAON",HLOOKUP($A34,'[2]EX WORKS'!$D$2:$AE$90,11,0)) -> 112180 | H34: 1000 | I34: 0 | J34: =(G34-H34-I34)*12.36% -> 13741.848 | K34: =G34-H34-I34+J34 -> 124921.848 | L34: =IF(L$9="PUNE",HLOOKUP($A34,'[2]EX WORKS'!$D$2:$AE$90,12,0)) -> 111530 | M34: 1000 | N34: 0 | O34: =(L34-M34-N34)*12.36% -> 13661.508 | P34: =L34-M34-N34+O34 -> 124191.508 | Q34: =IF(Q$9="WAI",HLOOKUP($A34,'[2]EX WORKS'!$D$2:$AE$90,13,0)) -> 111530 | R34: 1000 | S34: 0 | T34: =(Q34-R34-S34)*12.36% -> 13661.508 | U34: =Q34-R34-S34+T34 -> 124191.508 | V34: =IF(V$9="NASIK",HLOOKUP($A34,'[2]EX WORKS'!$D$2:$AE$90,14,0)) -> 111930 | W34: 1000 | X34: 0 | Y34: =(V34-W34-X34)*12.36% -> 13710.948 | Z34: =V34-W34-X34+Y34 -> 124640.948 | AA34: =IF(AA$9="KOLHAPUR",HLOOKUP($A34,'[2]EX WORKS'!$D$2:$AE$90,15,0)) -> 111360 | AB34: 1000 | AC34: 0 | AD34: =(AA34-AB34-AC34)*12.36% -> 13640.496 | AE34: =AA34-AB34-AC34+AD34 -> 124000.496 | AF34: =IF(AF$9="AHMEDNAGAR",HLOOKUP($A34,'[2]EX WORKS'!$D$2:$AE$90,16,0)) -> 112200 | AG34: 1000 | AH34: 0 | AI34: =(AF34-AG34-AH34)*12.36% -> 13744.32 | AJ34: =AF34-AG34-AH34+AI34 -> 124944.32 | AK34: =IF(AK$9="ROHA",HLOOKUP($A34,'[2]EX WORKS'!$D$2:$AE$90,17,0)) -> 111930 | AL34: 1000 | AM34: 0 | AN34: =(AK34-AL34-AM34)*12.36% -> 13710.948 | AO34: =AK34-AL34-AM34+AN34 -> 124640.948
A35: I60U080OG
A36: PIPE (PE80)
A37: P54A001A | B37: =IF(B$9="SOLAPUR",HLOOKUP($A37,'[2]EX WORKS'!$D$2:$AE$90,10,0)) -> 114650 | C37: 1000 | D37: 0 | E37: =(B37-C37-D37)*12.36% -> 14047.14 | F37: =B37-C37-D37+E37 -> 127697.14 | G37: =IF(G$9="UMBERGAON",HLOOKUP($A37,'[2]EX WORKS'!$D$2:$AE$90,11,0)) -> 115350 | H37: 1000 | I37: 0 | J37: =(G37-H37-I37)*12.36% -> 14133.66 | K37: =G37-H37-I37+J37 -> 128483.66 | L37: =IF(L$9="PUNE",HLOOKUP($A37,'[2]EX WORKS'!$D$2:$AE$90,12,0)) -> 114550 | M37: 1000 | N37: 0 | O37: =(L37-M37-N37)*12.36% -> 14034.78 | P37: =L37-M37-N37+O37 -> 127584.78 | Q37: =IF(Q$9="WAI",HLOOKUP($A37,'[2]EX WORKS'!$D$2:$AE$90,13,0)) -> 114550 | R37: 1000 | S37: 0 | T37: =(Q37-R37-S37)*12.36% -> 14034.78 | U37: =Q37-R37-S37+T37 -> 127584.78 | V37: =IF(V$9="NASIK",HLOOKUP($A37,'[2]EX WORKS'!$D$2:$AE$90,14,0)) -> 114900 | W37: 1000 | X37: 0 | Y37: =(V37-W37-X37)*12.36% -> 14078.04 | Z37: =V37-W37-X37+Y37 -> 127978.04 | AA37: =IF(AA$9="KOLHAPUR",HLOOKUP($A37,'[2]EX WORKS'!$D$2:$AE$90,15,0)) -> 114340 | AB37: 1000 | AC37: 0 | AD37: =(AA37-AB37-AC37)*12.36% -> 14008.824 | AE37: =AA37-AB37-AC37+AD37 -> 127348.824 | AF37: =IF(AF$9="AHMEDNAGAR",HLOOKUP($A37,'[2]EX WORKS'!$D$2:$AE$90,16,0)) -> 115170 | AG37: 1000 | AH37: 0 | AI37: =(AF37-AG37-AH37)*12.36% -> 14111.412 | AJ37: =AF37-AG37-AH37+AI37 -> 128281.412 | AK37: =IF(AK$9="ROHA",HLOOKUP($A37,'[2]EX WORKS'!$D$2:$AE$90,17,0)) -> 114900 | AL37: 1000 | AM37: 0 | AN37: =(AK37-AL37-AM37)*12.36% -> 14078.04 | AO37: =AK37-AL37-AM37+AN37 -> 127978.04
A38: PIPE (PE100)
A39: P52A003A | B39: =IF(B$9="SOLAPUR",HLOOKUP($A39,'[2]EX WORKS'!$D$2:$AE$90,10,0)) -> 116650 | C39: 1000 | D39: 0 | E39: =(B39-C39-D39)*12.36% -> 14294.34 | F39: =B39-C39-D39+E39 -> 129944.34 | G39: =IF(G$9="UMBERGAON",HLOOKUP($A39,'[2]EX WORKS'!$D$2:$AE$90,11,0)) -> 117350 | H39: 1000 | I39: 0 | J39: =(G39-H39-I39)*12.36% -> 14380.86 | K39: =G39-H39-I39+J39 -> 130730.86 | L39: =IF(L$9="PUNE",HLOOKUP($A39,'[2]EX WORKS'!$D$2:$AE$90,12,0)) -> 116550 | M39: 1000 | N39: 0 | O39: =(L39-M39-N39)*12.36% -> 14281.98 | P39: =L39-M39-N39+O39 -> 129831.98 | Q39: =IF(Q$9="WAI",HLOOKUP($A39,'[2]EX WORKS'!$D$2:$AE$90,13,0)) -> 116550 | R39: 1000 | S39: 0 | T39: =(Q39-R39-S39)*12.36% -> 14281.98 | U39: =Q39-R39-S39+T39 -> 129831.98 | V39: =IF(V$9="NASIK",HLOOKUP($A39,'[2]EX WORKS'!$D$2:$AE$90,14,0)) -> 116900 | W39: 1000 | X39: 0 | Y39: =(V39-W39-X39)*12.36% -> 14325.24 | Z39: =V39-W39-X39+Y39 -> 130225.24 | AA39: =IF(AA$9="KOLHAPUR",HLOOKUP($A39,'[2]EX WORKS'!$D$2:$AE$90,15,0)) -> 116340 | AB39: 1000 | AC39: 0 | AD39: =(AA39-AB39-AC39)*12.36% -> 14256.024 | AE39: =AA39-AB39-AC39+AD39 -> 129596.024 | AF39: =IF(AF$9="AHMEDNAGAR",HLOOKUP($A39,'[2]EX WORKS'!$D$2:$AE$90,16,0)) -> 117170 | AG39: 1000 | AH39: 0 | AI39: =(AF39-AG39-AH39)*12.36% -> 14358.612 | AJ39: =AF39-AG39-AH39+AI39 -> 130528.612 | AK39: =IF(AK$9="ROHA",HLOOKUP($A39,'[2]EX WORKS'!$D$2:$AE$90,17,0)) -> 116900 | AL39: 1000 | AM39: 0 | AN39: =(AK39-AL39-AM39)*12.36% -> 14325.24 | AO39: =AK39-AL39-AM39+AN39 -> 130225.24
A40: RAFFIA
A41: W50A009A | B41: =IF(B$9="SOLAPUR",HLOOKUP($A41,'[2]EX WORKS'!$D$2:$AE$90,10,0)) -> 108650 | C41: 1000 | D41: 0 | E41: =(B41-C41-D41)*12.36% -> 13305.54 | F41: =B41-C41-D41+E41 -> 120955.54 | G41: =IF(G$9="UMBERGAON",HLOOKUP($A41,'[2]EX WORKS'!$D$2:$AE$90,11,0)) -> 109180 | H41: 1000 | I41: 0 | J41: =(G41-H41-I41)*12.36% -> 13371.048 | K41: =G41-H41-I41+J41 -> 121551.048 | L41: =IF(L$9="PUNE",HLOOKUP($A41,'[2]EX WORKS'!$D$2:$AE$90,12,0)) -> 108620 | M41: 1000 | N41: 0 | O41: =(L41-M41-N41)*12.36% -> 13301.832 | P41: =L41-M41-N41+O41 -> 120921.832 | Q41: =IF(Q$9="WAI",HLOOKUP($A41,'[2]EX WORKS'!$D$2:$AE$90,13,0)) -> 108620 | R41: 1000 | S41: 0 | T41: =(Q41-R41-S41)*12.36% -> 13301.832 | U41: =Q41-R41-S41+T41 -> 120921.832 | V41: =IF(V$9="NASIK",HLOOKUP($A41,'[2]EX WORKS'!$D$2:$AE$90,14,0)) -> 109020 | W41: 1000 | X41: 0 | Y41: =(V41-W41-X41)*12.36% -> 13351.272 | Z41: =V41-W41-X41+Y41 -> 121371.272 | AA41: =IF(AA$9="KOLHAPUR",HLOOKUP($A41,'[2]EX WORKS'!$D$2:$AE$90,15,0)) -> 108450 | AB41: 1000 | AC41: 0 | AD41: =(AA41-AB41-AC41)*12.36% -> 13280.82 | AE41: =AA41-AB41-AC41+AD41 -> 120730.82 | AF41: =IF(AF$9="AHMEDNAGAR",HLOOKUP($A41,'[2]EX WORKS'!$D$2:$AE$90,16,0)) -> 109290 | AG41: 1000 | AH41: 0 | AI41: =(AF41-AG41-AH41)*12.36% -> 13384.644 | AJ41: =AF41-AG41-AH41+AI41 -> 121674.644 | AK41: =IF(AK$9="ROHA",HLOOKUP($A41,'[2]EX WORKS'!$D$2:$AE$90,17,0)) -> 109020 | AL41: 1000 | AM41: 0 | AN41: =(AK41-AL41-AM41)*12.36% -> 13351.272 | AO41: =AK41-AL41-AM41+AN41 -> 121371.272
A42: T50A010A | B42: =IF(B$9="SOLAPUR",HLOOKUP($A42,'[2]EX WORKS'!$D$2:$AE$90,10,0)) -> 108900 | C42: 1000 | D42: 0 | E42: =(B42-C42-D42)*12.36% -> 13336.44 | F42: =B42-C42-D42+E42 -> 121236.44 | G42: =IF(G$9="UMBERGAON",HLOOKUP($A42,'[2]EX WORKS'!$D$2:$AE$90,11,0)) -> 109430 | H42: 1000 | I42: 0 | J42: =(G42-H42-I42)*12.36% -> 13401.948 | K42: =G42-H42-I42+J42 -> 121831.948 | L42: =IF(L$9="PUNE",HLOOKUP($A42,'[2]EX WORKS'!$D$2:$AE$90,12,0)) -> 108870 | M42: 1000 | N42: 0 | O42: =(L42-M42-N42)*12.36% -> 13332.732 | P42: =L42-M42-N42+O42 -> 121202.732 | Q42: =IF(Q$9="WAI",HLOOKUP($A42,'[2]EX WORKS'!$D$2:$AE$90,13,0)) -> 108870 | R42: 1000 | S42: 0 | T42: =(Q42-R42-S42)*12.36% -> 13332.732 | U42: =Q42-R42-S42+T42 -> 121202.732 | V42: =IF(V$9="NASIK",HLOOKUP($A42,'[2]EX WORKS'!$D$2:$AE$90,14,0)) -> 109270 | W42: 1000 | X42: 0 | Y42: =(V42-W42-X42)*12.36% -> 13382.172 | Z42: =V42-W42-X42+Y42 -> 121652.172 | AA42: =IF(AA$9="KOLHAPUR",HLOOKUP($A42,'[2]EX WORKS'!$D$2:$AE$90,15,0)) -> 108700 | AB42: 1000 | AC42: 0 | AD42: =(AA42-AB42-AC42)*12.36% -> 13311.72 | AE42: =AA42-AB42-AC42+AD42 -> 121011.72 | AF42: =IF(AF$9="AHMEDNAGAR",HLOOKUP($A42,'[2]EX WORKS'!$D$2:$AE$90,16,0)) -> 109540 | AG42: 1000 | AH42: 0 | AI42: =(AF42-AG42-AH42)*12.36% -> 13415.544 | AJ42: =AF42-AG42-AH42+AI42 -> 121955.544 | AK42: =IF(AK$9="ROHA",HLOOKUP($A42,'[2]EX WORKS'!$D$2:$AE$90,17,0)) -> 109270 | AL42: 1000 | AM42: 0 | AN42: =(AK42-AL42-AM42)*12.36% -> 13382.172 | AO42: =AK42-AL42-AM42+AN42 -> 121652.172
A43: MF
A44: W52A009A | B44: =IF(B$9="SOLAPUR",HLOOKUP($A44,'[2]EX WORKS'!$D$2:$AE$90,10,0)) -> 109150 | C44: 1000 | D44: 0 | E44: =(B44-C44-D44)*12.36% -> 13367.34 | F44: =B44-C44-D44+E44 -> 121517.34 | G44: =IF(G$9="UMBERGAON",HLOOKUP($A44,'[2]EX WORKS'!$D$2:$AE$90,11,0)) -> 109680 | H44: 1000 | I44: 0 | J44: =(G44-H44-I44)*12.36% -> 13432.848 | K44: =G44-H44-I44+J44 -> 122112.848 | L44: =IF(L$9="PUNE",HLOOKUP($A44,'[2]EX WORKS'!$D$2:$AE$90,12,0)) -> 109120 | M44: 1000 | N44: 0 | O44: =(L44-M44-N44)*12.36% -> 13363.632 | P44: =L44-M44-N44+O44 -> 121483.632 | Q44: =IF(Q$9="WAI",HLOOKUP($A44,'[2]EX WORKS'!$D$2:$AE$90,13,0)) -> 109120 | R44: 1000 | S44: 0 | T44: =(Q44-R44-S44)*12.36% -> 13363.632 | U44: =Q44-R44-S44+T44 -> 121483.632 | V44: =IF(V$9="NASIK",HLOOKUP($A44,'[2]EX WORKS'!$D$2:$AE$90,14,0)) -> 109520 | W44: 1000 | X44: 0 | Y44: =(V44-W44-X44)*12.36% -> 13413.072 | Z44: =V44-W44-X44+Y44 -> 121933.072 | AA44: =IF(AA$9="KOLHAPUR",HLOOKUP($A44,'[2]EX WORKS'!$D$2:$AE$90,15,0)) -> 108950 | AB44: 1000 | AC44: 0 | AD44: =(AA44-AB44-AC44)*12.36% -> 13342.62 | AE44: =AA44-AB44-AC44+AD44 -> 121292.62 | AF44: =IF(AF$9="AHMEDNAGAR",HLOOKUP($A44,'[2]EX WORKS'!$D$2:$AE$90,16,0)) -> 109790 | AG44: 1000 | AH44: 0 | AI44: =(AF44-AG44-AH44)*12.36% -> 13446.444 | AJ44: =AF44-AG44-AH44+AI44 -> 122236.444 | AK44: =IF(AK$9="ROHA",HLOOKUP($A44,'[2]EX WORKS'!$D$2:$AE$90,17,0)) -> 109520 | AL44: 1000 | AM44: 0 | AN44: =(AK44-AL44-AM44)*12.36% -> 13413.072 | AO44: =AK44-AL44-AM44+AN44 -> 121933.072
A45: W52A009OG
A46: W52ASR009A | B46: =IF(B$9="SOLAPUR",HLOOKUP($A46,'[2]EX WORKS'!$D$2:$AE$90,10,0)) -> 109150 | C46: 1000 | D46: 0 | E46: =(B46-C46-D46)*12.36% -> 13367.34 | F46: =B46-C46-D46+E46 -> 121517.34 | G46: =IF(G$9="UMBERGAON",HLOOKUP($A46,'[2]EX WORKS'!$D$2:$AE$90,11,0)) -> 109680 | H46: 1000 | I46: 0 | J46: =(G46-H46-I46)*12.36% -> 13432.848 | K46: =G46-H46-I46+J46 -> 122112.848 | L46: =IF(L$9="PUNE",HLOOKUP($A46,'[2]EX WORKS'!$D$2:$AE$90,12,0)) -> 109120 | M46: 1000 | N46: 0 | O46: =(L46-M46-N46)*12.36% -> 13363.632 | P46: =L46-M46-N46+O46 -> 121483.632 | Q46: =IF(Q$9="WAI",HLOOKUP($A46,'[2]EX WORKS'!$D$2:$AE$90,13,0)) -> 109120 | R46: 1000 | S46: 0 | T46: =(Q46-R46-S46)*12.36% -> 13363.632 | U46: =Q46-R46-S46+T46 -> 121483.632 | V46: =IF(V$9="NASIK",HLOOKUP($A46,'[2]EX WORKS'!$D$2:$AE$90,14,0)) -> 109520 | W46: 1000 | X46: 0 | Y46: =(V46-W46-X46)*12.36% -> 13413.072 | Z46: =V46-W46-X46+Y46 -> 121933.072 | AA46: =IF(AA$9="KOLHAPUR",HLOOKUP($A46,'[2]EX WORKS'!$D$2:$AE$90,15,0)) -> 108950 | AB46: 1000 | AC46: 0 | AD46: =(AA46-AB46-AC46)*12.36% -> 13342.62 | AE46: =AA46-AB46-AC46+AD46 -> 121292.62 | AF46: =IF(AF$9="AHMEDNAGAR",HLOOKUP($A46,'[2]EX WORKS'!$D$2:$AE$90,16,0)) -> 109790 | AG46: 1000 | AH46: 0 | AI46: =(AF46-AG46-AH46)*12.36% -> 13446.444 | AJ46: =AF46-AG46-AH46+AI46 -> 122236.444 | AK46: =IF(AK$9="ROHA",HLOOKUP($A46,'[2]EX WORKS'!$D$2:$AE$90,17,0)) -> 109520 | AL46: 1000 | AM46: 0 | AN46: =(AK46-AL46-AM46)*12.36% -> 13413.072 | AO46: =AK46-AL46-AM46+AN46 -> 121933.072
A47: W55A004A | B47: =IF(B$9="SOLAPUR",HLOOKUP($A47,'[2]EX WORKS'!$D$2:$AE$90,10,0)) -> 112150 | C47: 1000 | D47: 0 | E47: =(B47-C47-D47)*12.36% -> 13738.14 | F47: =B47-C47-D47+E47 -> 124888.14 | G47: =IF(G$9="UMBERGAON",HLOOKUP($A47,'[2]EX WORKS'!$D$2:$AE$90,11,0)) -> 112680 | H47: 1000 | I47: 0 | J47: =(G47-H47-I47)*12.36% -> 13803.648 | K47: =G47-H47-I47+J47 -> 125483.648 | L47: =IF(L$9="PUNE",HLOOKUP($A47,'[2]EX WORKS'!$D$2:$AE$90,12,0)) -> 112120 | M47: 1000 | N47: 0 | O47: =(L47-M47-N47)*12.36% -> 13734.432 | P47: =L47-M47-N47+O47 -> 124854.432 | Q47: =IF(Q$9="WAI",HLOOKUP($A47,'[2]EX WORKS'!$D$2:$AE$90,13,0)) -> 112120 | R47: 1000 | S47: 0 | T47: =(Q47-R47-S47)*12.36% -> 13734.432 | U47: =Q47-R47-S47+T47 -> 124854.432 | V47: =IF(V$9="NASIK",HLOOKUP($A47,'[2]EX WORKS'!$D$2:$AE$90,14,0)) -> 112520 | W47: 1000 | X47: 0 | Y47: =(V47-W47-X47)*12.36% -> 13783.872 | Z47: =V47-W47-X47+Y47 -> 125303.872 | AA47: =IF(AA$9="KOLHAPUR",HLOOKUP($A47,'[2]EX WORKS'!$D$2:$AE$90,15,0)) -> 111950 | AB47: 1000 | AC47: 0 | AD47: =(AA47-AB47-AC47)*12.36% -> 13713.42 | AE47: =AA47-AB47-AC47+AD47 -> 124663.42 | AF47: =IF(AF$9="AHMEDNAGAR",HLOOKUP($A47,'[2]EX WORKS'!$D$2:$AE$90,16,0)) -> 112790 | AG47: 1000 | AH47: 0 | AI47: =(AF47-AG47-AH47)*12.36% -> 13817.244 | AJ47: =AF47-AG47-AH47+AI47 -> 125607.244 | AK47: =IF(AK$9="ROHA",HLOOKUP($A47,'[2]EX WORKS'!$D$2:$AE$90,17,0)) -> 112520 | AL47: 1000 | AM47: 0 | AN47: =(AK47-AL47-AM47)*12.36% -> 13783.872 | AO47: =AK47-AL47-AM47+AN47 -> 125303.872
A48: LLDPE
A49: E20AN009A | B49: =IF(B$9="SOLAPUR",HLOOKUP($A49,'[2]EX WORKS'!$D$2:$AE$90,10,0)) -> 112410 | C49: 1000 | D49: 0 | E49: =(B49-C49-D49)*12.36% -> 13770.276 | F49: =B49-C49-D49+E49 -> 125180.276 | G49: =IF(G$9="UMBERGAON",HLOOKUP($A49,'[2]EX WORKS'!$D$2:$AE$90,11,0)) -> 113080 | H49: 1000 | I49: 0 | J49: =(G49-H49-I49)*12.36% -> 13853.088 | K49: =G49-H49-I49+J49 -> 125933.088 | L49: =IF(L$9="PUNE",HLOOKUP($A49,'[2]EX WORKS'!$D$2:$AE$90,12,0)) -> 112380 | M49: 1000 | N49: 0 | O49: =(L49-M49-N49)*12.36% -> 13766.568 | P49: =L49-M49-N49+O49 -> 125146.568 | Q49: =IF(Q$9="WAI",HLOOKUP($A49,'[2]EX WORKS'!$D$2:$AE$90,13,0)) -> 112380 | R49: 1000 | S49: 0 | T49: =(Q49-R49-S49)*12.36% -> 13766.568 | U49: =Q49-R49-S49+T49 -> 125146.568 | V49: =IF(V$9="NASIK",HLOOKUP($A49,'[2]EX WORKS'!$D$2:$AE$90,14,0)) -> 112790 | W49: 1000 | X49: 0 | Y49: =(V49-W49-X49)*12.36% -> 13817.244 | Z49: =V49-W49-X49+Y49 -> 125607.244 | AA49: =IF(AA$9="KOLHAPUR",HLOOKUP($A49,'[2]EX WORKS'!$D$2:$AE$90,15,0)) -> 112210 | AB49: 1000 | AC49: 0 | AD49: =(AA49-AB49-AC49)*12.36% -> 13745.556 | AE49: =AA49-AB49-AC49+AD49 -> 124955.556 | AF49: =IF(AF$9="AHMEDNAGAR",HLOOKUP($A49,'[2]EX WORKS'!$D$2:$AE$90,16,0)) -> 113050 | AG49: 1000 | AH49: 0 | AI49: =(AF49-AG49-AH49)*12.36% -> 13849.38 | AJ49: =AF49-AG49-AH49+AI49 -> 125899.38 | AK49: =IF(AK$9="ROHA",HLOOKUP($A49,'[2]EX WORKS'!$D$2:$AE$90,17,0)) -> 112790 | AL49: 1000 | AM49: 0 | AN49: =(AK49-AL49-AM49)*12.36% -> 13817.244 | AO49: =AK49-AL49-AM49+AN49 -> 125607.244
A50: E20AN009OG
A51: E36A060A | B51: =IF(B$9="SOLAPUR",HLOOKUP($A51,'[2]EX WORKS'!$D$2:$AE$90,10,0)) -> 114450 | C51: 1000 | D51: 0 | E51: =(B51-C51-D51)*12.36% -> 14022.42 | F51: =B51-C51-D51+E51 -> 127472.42 | G51: =IF(G$9="UMBERGAON",HLOOKUP($A51,'[2]EX WORKS'!$D$2:$AE$90,11,0)) -> 115080 | H51: 1000 | I51: 0 | J51: =(G51-H51-I51)*12.36% -> 14100.288 | K51: =G51-H51-I51+J51 -> 128180.288 | L51: =IF(L$9="PUNE",HLOOKUP($A51,'[2]EX WORKS'!$D$2:$AE$90,12,0)) -> 114430 | M51: 1000 | N51: 0 | O51: =(L51-M51-N51)*12.36% -> 14019.948 | P51: =L51-M51-N51+O51 -> 127449.948 | Q51: =IF(Q$9="WAI",HLOOKUP($A51,'[2]EX WORKS'!$D$2:$AE$90,13,0)) -> 114430 | R51: 1000 | S51: 0 | T51: =(Q51-R51-S51)*12.36% -> 14019.948 | U51: =Q51-R51-S51+T51 -> 127449.948 | V51: =IF(V$9="NASIK",HLOOKUP($A51,'[2]EX WORKS'!$D$2:$AE$90,14,0)) -> 114830 | W51: 1000 | X51: 0 | Y51: =(V51-W51-X51)*12.36% -> 14069.388 | Z51: =V51-W51-X51+Y51 -> 127899.388 | AA51: =IF(AA$9="KOLHAPUR",HLOOKUP($A51,'[2]EX WORKS'!$D$2:$AE$90,15,0)) -> 114260 | AB51: 1000 | AC51: 0 | AD51: =(AA51-AB51-AC51)*12.36% -> 13998.936 | AE51: =AA51-AB51-AC51+AD51 -> 127258.936 | AF51: =IF(AF$9="AHMEDNAGAR",HLOOKUP($A51,'[2]EX WORKS'!$D$2:$AE$90,16,0)) -> 115090 | AG51: 1000 | AH51: 0 | AI51: =(AF51-AG51-AH51)*12.36% -> 14101.524 | AJ51: =AF51-AG51-AH51+AI51 -> 128191.524 | AK51: =IF(AK$9="ROHA",HLOOKUP($A51,'[2]EX WORKS'!$D$2:$AE$90,17,0)) -> 114830 | AL51: 1000 | AM51: 0 | AN51: =(AK51-AL51-AM51)*12.36% -> 14069.388 | AO51: =AK51-AL51-AM51+AN51 -> 127899.388
A52: E36A060OG
A53: FILM
A54: F20S009A | B54: =IF(B$9="SOLAPUR",HLOOKUP($A54,'[2]EX WORKS'!$D$2:$AE$90,10,0)) -> 113910 | C54: 1000 | D54: 0 | E54: =(B54-C54-D54)*12.36% -> 13955.676 | F54: =B54-C54-D54+E54 -> 126865.676 | G54: =IF(G$9="UMBERGAON",HLOOKUP($A54,'[2]EX WORKS'!$D$2:$AE$90,11,0)) -> 114580 | H54: 1000 | I54: 0 | J54: =(G54-H54-I54)*12.36% -> 14038.488 | K54: =G54-H54-I54+J54 -> 127618.488 | L54: =IF(L$9="PUNE",HLOOKUP($A54,'[2]EX WORKS'!$D$2:$AE$90,12,0)) -> 113880 | M54: 1000 | N54: 0 | O54: =(L54-M54-N54)*12.36% -> 13951.968 | P54: =L54-M54-N54+O54 -> 126831.968 | Q54: =IF(Q$9="WAI",HLOOKUP($A54,'[2]EX WORKS'!$D$2:$AE$90,13,0)) -> 113880 | R54: 1000 | S54: 0 | T54: =(Q54-R54-S54)*12.36% -> 13951.968 | U54: =Q54-R54-S54+T54 -> 126831.968 | V54: =IF(V$9="NASIK",HLOOKUP($A54,'[2]EX WORKS'!$D$2:$AE$90,14,0)) -> 114290 | W54: 1000 | X54: 0 | Y54: =(V54-W54-X54)*12.36% -> 14002.644 | Z54: =V54-W54-X54+Y54 -> 127292.644 | AA54: =IF(AA$9="KOLHAPUR",HLOOKUP($A54,'[2]EX WORKS'!$D$2:$AE$90,15,0)) -> 113710 | AB54: 1000 | AC54: 0 | AD54: =(AA54-AB54-AC54)*12.36% -> 13930.956 | AE54: =AA54-AB54-AC54+AD54 -> 126640.956 | AF54: =IF(AF$9="AHMEDNAGAR",HLOOKUP($A54,'[2]EX WORKS'!$D$2:$AE$90,16,0)) -> 114550 | AG54: 1000 | AH54: 0 | AI54: =(AF54-AG54-AH54)*12.36% -> 14034.78 | AJ54: =AF54-AG54-AH54+AI54 -> 127584.78 | AK54: =IF(AK$9="ROHA",HLOOKUP($A54,'[2]EX WORKS'!$D$2:$AE$90,17,0)) -> 114290 | AL54: 1000 | AM54: 0 | AN54: =(AK54-AL54-AM54)*12.36% -> 14002.644 | AO54: =AK54-AL54-AM54+AN54 -> 127292.644
A55: F20S009OG
A56: D22S010A | B56: =IF(B$9="SOLAPUR",HLOOKUP($A56,'[2]EX WORKS'!$D$2:$AE$90,10,0)) -> 112910 | C56: 1000 | D56: 0 | E56: =(B56-C56-D56)*12.36% -> 13832.076 | F56: =B56-C56-D56+E56 -> 125742.076 | G56: =IF(G$9="UMBERGAON",HLOOKUP($A56,'[2]EX WORKS'!$D$2:$AE$90,11,0)) -> 113580 | H56: 1000 | I56: 0 | J56: =(G56-H56-I56)*12.36% -> 13914.888 | K56: =G56-H56-I56+J56 -> 126494.888 | L56: =IF(L$9="PUNE",HLOOKUP($A56,'[2]EX WORKS'!$D$2:$AE$90,12,0)) -> 112880 | M56: 1000 | N56: 0 | O56: =(L56-M56-N56)*12.36% -> 13828.368 | P56: =L56-M56-N56+O56 -> 125708.368 | Q56: =IF(Q$9="WAI",HLOOKUP($A56,'[2]EX WORKS'!$D$2:$AE$90,13,0)) -> 112880 | R56: 1000 | S56: 0 | T56: =(Q56-R56-S56)*12.36% -> 13828.368 | U56: =Q56-R56-S56+T56 -> 125708.368 | V56: =IF(V$9="NASIK",HLOOKUP($A56,'[2]EX WORKS'!$D$2:$AE$90,14,0)) -> 113290 | W56: 1000 | X56: 0 | Y56: =(V56-W56-X56)*12.36% -> 13879.044 | Z56: =V56-W56-X56+Y56 -> 126169.044 | AA56: =IF(AA$9="KOLHAPUR",HLOOKUP($A56,'[2]EX WORKS'!$D$2:$AE$90,15,0)) -> 112710 | AB56: 1000 | AC56: 0 | AD56: =(AA56-AB56-AC56)*12.36% -> 13807.356 | AE56: =AA56-AB56-AC56+AD56 -> 125517.356 | AF56: =IF(AF$9="AHMEDNAGAR",HLOOKUP($A56,'[2]EX WORKS'!$D$2:$AE$90,16,0)) -> 113550 | AG56: 1000 | AH56: 0 | AI56: =(AF56-AG56-AH56)*12.36% -> 13911.18 | AJ56: =AF56-AG56-AH56+AI56 -> 126461.18 | AK56: =IF(AK$9="ROHA",HLOOKUP($A56,'[2]EX WORKS'!$D$2:$AE$90,17,0)) -> 113290 | AL56: 1000 | AM56: 0 | AN56: =(AK56-AL56-AM56)*12.36% -> 13879.044 | AO56: =AK56-AL56-AM56+AN56 -> 126169.044
A57: ROTO
A58: R35A042A | B58: =IF(B$9="SOLAPUR",HLOOKUP($A58,'[2]EX WORKS'!$D$2:$AE$90,10,0)) -> 111540 | C58: 1000 | D58: 0 | E58: =(B58-C58-D58)*12.36% -> 13662.744 | F58: =B58-C58-D58+E58 -> 124202.744 | G58: =IF(G$9="UMBERGAON",HLOOKUP($A58,'[2]EX WORKS'!$D$2:$AE$90,11,0)) -> 112240 | H58: 1000 | I58: 0 | J58: =(G58-H58-I58)*12.36% -> 13749.264 | K58: =G58-H58-I58+J58 -> 124989.264 | L58: =IF(L$9="PUNE",HLOOKUP($A58,'[2]EX WORKS'!$D$2:$AE$90,12,0)) -> 111440 | M58: 1000 | N58: 0 | O58: =(L58-M58-N58)*12.36% -> 13650.384 | P58: =L58-M58-N58+O58 -> 124090.384 | Q58: =IF(Q$9="WAI",HLOOKUP($A58,'[2]EX WORKS'!$D$2:$AE$90,13,0)) -> 111440 | R58: 1000 | S58: 0 | T58: =(Q58-R58-S58)*12.36% -> 13650.384 | U58: =Q58-R58-S58+T58 -> 124090.384 | V58: =IF(V$9="NASIK",HLOOKUP($A58,'[2]EX WORKS'!$D$2:$AE$90,14,0)) -> 111790 | W58: 1000 | X58: 0 | Y58: =(V58-W58-X58)*12.36% -> 13693.644 | Z58: =V58-W58-X58+Y58 -> 124483.644 | AA58: =IF(AA$9="KOLHAPUR",HLOOKUP($A58,'[2]EX WORKS'!$D$2:$AE$90,15,0)) -> 111230 | AB58: 1000 | AC58: 0 | AD58: =(AA58-AB58-AC58)*12.36% -> 13624.428 | AE58: =AA58-AB58-AC58+AD58 -> 123854.428 | AF58: =IF(AF$9="AHMEDNAGAR",HLOOKUP($A58,'[2]EX WORKS'!$D$2:$AE$90,16,0)) -> 112060 | AG58: 1000 | AH58: 0 | AI58: =(AF58-AG58-AH58)*12.36% -> 13727.016 | AJ58: =AF58-AG58-AH58+AI58 -> 124787.016 | AK58: =IF(AK$9="ROHA",HLOOKUP($A58,'[2]EX WORKS'!$D$2:$AE$90,17,0)) -> 111790 | AL58: 1000 | AM58: 0 | AN58: =(AK58-AL58-AM58)*12.36% -> 13693.644 | AO58: =AK58-AL58-AM58+AN58 -> 124483.644
A59: R35U042A | B59: =IF(B$9="SOLAPUR",HLOOKUP($A59,'[2]EX WORKS'!$D$2:$AE$90,10,0)) -> 112400 | C59: 1000 | D59: 0 | E59: =(B59-C59-D59)*12.36% -> 13769.04 | F59: =B59-C59-D59+E59 -> 125169.04 | G59: =IF(G$9="UMBERGAON",HLOOKUP($A59,'[2]EX WORKS'!$D$2:$AE$90,11,0)) -> 113100 | H59: 1000 | I59: 0 | J59: =(G59-H59-I59)*12.36% -> 13855.56 | K59: =G59-H59-I59+J59 -> 125955.56 | L59: =IF(L$9="PUNE",HLOOKUP($A59,'[2]EX WORKS'!$D$2:$AE$90,12,0)) -> 112300 | M59: 1000 | N59: 0 | O59: =(L59-M59-N59)*12.36% -> 13756.68 | P59: =L59-M59-N59+O59 -> 125056.68 | Q59: =IF(Q$9="WAI",HLOOKUP($A59,'[2]EX WORKS'!$D$2:$AE$90,13,0)) -> 112300 | R59: 1000 | S59: 0 | T59: =(Q59-R59-S59)*12.36% -> 13756.68 | U59: =Q59-R59-S59+T59 -> 125056.68 | V59: =IF(V$9="NASIK",HLOOKUP($A59,'[2]EX WORKS'!$D$2:$AE$90,14,0)) -> 112650 | W59: 1000 | X59: 0 | Y59: =(V59-W59-X59)*12.36% -> 13799.94 | Z59: =V59-W59-X59+Y59 -> 125449.94 | AA59: =IF(AA$9="KOLHAPUR",HLOOKUP($A59,'[2]EX WORKS'!$D$2:$AE$90,15,0)) -> 112090 | AB59: 1000 | AC59: 0 | AD59: =(AA59-AB59-AC59)*12.36% -> 13730.724 | AE59: =AA59-AB59-AC59+AD59 -> 124820.724 | AF59: =IF(AF$9="AHMEDNAGAR",HLOOKUP($A59,'[2]EX WORKS'!$D$2:$AE$90,16,0)) -> 112920 | AG59: 1000 | AH59: 0 | AI59: =(AF59-AG59-AH59)*12.36% -> 13833.312 | AJ59: =AF59-AG59-AH59+AI59 -> 125753.312 | AK59: =IF(AK$9="ROHA",HLOOKUP($A59,'[2]EX WORKS'!$D$2:$AE$90,17,0)) -> 112650 | AL59: 1000 | AM59: 0 | AN59: =(AK59-AL59-AM59)*12.36% -> 13799.94 | AO59: =AK59-AL59-AM59+AN59 -> 125449.94
A61: NOTE: | B61: LOCATION DISCOUNT HAS BEEN DISCONTINUED
B63: THE PRICES OF OLD PLANT & NEW PLANT ARE SAME FROM DIRECT SALE

Sheet Sheet3
A2: UNITED BROTHERS
A4: 301,HERITAGE PLAZA, R.S.MAHARAJ MARG,( TELI GALLI CROSS LANE), ANDHERI (E), MUMBAI - 400 069
A5: EL: 26844612(4 LINES) FAX: 26822914 E-MAIL: info@unibrothers.com , prashant@unibrothers.com, jyoti@unibrothers.com
A6: EX-WORKS PRICE OF HDPE "G-LEX / G-LENE " W.E.F. 1ST AUGUST 2014
A7: CASH / ADVANCE PAYMENT FOR MAHARASHTRA & DAMAN
B8: Freight | D8: 2596.11 | G8: Freight | I8: 4922.62 | L8: Freight | N8: 2666.65 | Q8: Freight 1247.06 | V8: Freight | X8: 5350.78 | AA8: Freight
D9: BARJORA | G9: HOSUR | L9: JAMMU | Q9: NOIDA | V9: PONDICHERRY | AA9: BARODA
B10: BASIC | C10: DISC | D10: LOC | E10: EXCISE | F10: EX-WKS | G10: BASIC | H10: DISC | I10: LOC | J10: EXCISE | K10: EX-WKS | L10: BASIC | M10: DISC | N10: LOC | O10: EXCISE | P10: EX-WKS | Q10: BASIC | R10: DISC | S10: LOC | T10: EXCISE | U10: EX-WKS | W10: DISC | X10: LOC | Y10: EXCISE | Z10: EX-WKS | AB10: DISC | AC10: LOC | AD10: EXCISE | AE10: EX-WKS
A11: BM
A12: B52A003A | B12: =IF(D$9="BARJORA",HLOOKUP($A12,'[2]EX WORKS'!$D$2:$AE$90,18,0)) -> 108630 | C12: 1000 | D12: 0 | E12: =(B12-C12-D12)*12.36% -> 13303.068 | F12: =B12-C12-D12+E12 -> 120933.068 | G12: =IF(G$9="HOSUR",HLOOKUP($A12,'[2]EX WORKS'!$D$2:$AE$90,19,0)) -> 106910 | H12: 1000 | I12: 0 | J12: =(G12-H12-I12)*12.36% -> 13090.476 | K12: =G12-H12-I12+J12 -> 119000.476 | L12: =IF(L$9="JAMMU",HLOOKUP($A12,'[2]EX WORKS'!$D$2:$AE$90,20,0)) -> 112030 | M12: 1000 | N12: 0 | O12: =(L12-M12-N12)*12.36% -> 13723.308 | P12: =L12-M12-N12+O12 -> 124753.308 | Q12: =IF(Q$9="NOIDA",HLOOKUP($A12,'[2]EX WORKS'!$D$2:$AE$90,21,0)) -> 113990 | R12: 1000 | S12: 0 | T12: =(Q12-R12-S12)*12.36% -> 13965.564 | U12: =Q12-R12-S12+T12 -> 126955.564 | V12: =IF(V$9="PONDICHERRY",HLOOKUP($A12,'[2]EX WORKS'!$D$2:$AE$90,22,0)) -> 107040 | W12: 1000 | X12: 0 | Y12: =(V12-W12-X12)*12.36% -> 13106.544 | Z12: =V12-W12-X12+Y12 -> 119146.544 | AA12: =IF(AA$9="BARODA",HLOOKUP($A12,'[2]EX WORKS'!$D$2:$AE$90,23,0)) -> 110450 | AB12: 1000 | AC12: 0 | AD12: =(AA12-AB12-AC12)*12.36% -> 13528.02 | AE12: =AA12-AB12-AC12+AD12 -> 122978.02
A13: B63A003A | B13: =IF(D$9="BARJORA",HLOOKUP($A13,'[2]EX WORKS'!$D$2:$AE$90,18,0)) -> 108630 | C13: 1000 | D13: 0 | E13: =(B13-C13-D13)*12.36% -> 13303.068 | F13: =B13-C13-D13+E13 -> 120933.068 | G13: =IF(G$9="HOSUR",HLOOKUP($A13,'[2]EX WORKS'!$D$2:$AE$90,19,0)) -> 106910 | H13: 1000 | I13: 0 | J13: =(G13-H13-I13)*12.36% -> 13090.476 | K13: =G13-H13-I13+J13 -> 119000.476 | L13: =IF(L$9="JAMMU",HLOOKUP($A13,'[2]EX WORKS'!$D$2:$AE$90,20,0)) -> 112030 | M13: 1000 | N13: 0 | O13: =(L13-M13-N13)*12.36% -> 13723.308 | P13: =L13-M13-N13+O13 -> 124753.308 | Q13: =IF(Q$9="NOIDA",HLOOKUP($A13,'[2]EX WORKS'!$D$2:$AE$90,21,0)) -> 113990 | R13: 1000 | S13: 0 | T13: =(Q13-R13-S13)*12.36% -> 13965.564 | U13: =Q13-R13-S13+T13 -> 126955.564 | V13: =IF(V$9="PONDICHERRY",HLOOKUP($A13,'[2]EX WORKS'!$D$2:$AE$90,22,0)) -> 107040 | W13: 1000 | X13: 0 | Y13: =(V13-W13-X13)*12.36% -> 13106.544 | Z13: =V13-W13-X13+Y13 -> 119146.544 | AA13: =IF(AA$9="BARODA",HLOOKUP($A13,'[2]EX WORKS'!$D$2:$AE$90,23,0)) -> 110450 | AB13: 1000 | AC13: 0 | AD13: =(AA13-AB13-AC13)*12.36% -> 13528.02 | AE13: =AA13-AB13-AC13+AD13 -> 122978.02
A14: B55HM0003A | B14: =IF(D$9="BARJORA",HLOOKUP($A14,'[2]EX WORKS'!$D$2:$AE$90,18,0)) -> 114420 | C14: 1000 | D14: 0 | E14: =(B14-C14-D14)*12.36% -> 14018.712 | F14: =B14-C14-D14+E14 -> 127438.712 | G14: =IF(G$9="HOSUR",HLOOKUP($A14,'[2]EX WORKS'!$D$2:$AE$90,19,0)) -> 110650 | H14: 1000 | I14: 0 | J14: =(G14-H14-I14)*12.36% -> 13552.74 | K14: =G14-H14-I14+J14 -> 123202.74 | L14: =IF(L$9="JAMMU",HLOOKUP($A14,'[2]EX WORKS'!$D$2:$AE$90,20,0)) -> 115670 | M14: 1000 | N14: 0 | O14: =(L14-M14-N14)*12.36% -> 14173.212 | P14: =L14-M14-N14+O14 -> 128843.212 | Q14: =IF(Q$9="NOIDA",HLOOKUP($A14,'[2]EX WORKS'!$D$2:$AE$90,21,0)) -> 116720 | R14: 1000 | S14: 0 | T14: =(Q14-R14-S14)*12.36% -> 14302.992 | U14: =Q14-R14-S14+T14 -> 130022.992 | V14: =IF(V$9="PONDICHERRY",HLOOKUP($A14,'[2]EX WORKS'!$D$2:$AE$90,22,0)) -> 111680 | W14: 1000 | X14: 0 | Y14: =(V14-W14-X14)*12.36% -> 13680.048 | Z14: =V14-W14-X14+Y14 -> 124360.048 | AA14: =IF(AA$9="BARODA",HLOOKUP($A14,'[2]EX WORKS'!$D$2:$AE$90,23,0)) -> 113810 | AB14: 1000 | AC14: 0 | AD14: =(AA14-AB14-AC14)*12.36% -> 13943.316 | AE14: =AA14-AB14-AC14+AD14 -> 126753.316
A15: SHETG
A16: E45A003A | B16: =IF(D$9="BARJORA",HLOOKUP($A16,'[2]EX WORKS'!$D$2:$AE$90,18,0)) -> 112560 | C16: 1000 | D16: 0 | E16: =(B16-C16-D16)*12.36% -> 13788.816 | F16: =B16-C16-D16+E16 -> 125348.816 | G16: =IF(G$9="HOSUR",HLOOKUP($A16,'[2]EX WORKS'!$D$2:$AE$90,19,0)) -> 109670 | H16: 1000 | I16: 0 | J16: =(G16-H16-I16)*12.36% -> 13431.612 | K16: =G16-H16-I16+J16 -> 122101.612 | L16: =IF(L$9="JAMMU",HLOOKUP($A16,'[2]EX WORKS'!$D$2:$AE$90,20,0)) -> 115020 | M16: 1000 | N16: 0 | O16: =(L16-M16-N16)*12.36% -> 14092.872 | P16: =L16-M16-N16+O16 -> 128112.872 | Q16: =IF(Q$9="NOIDA",HLOOKUP($A16,'[2]EX WORKS'!$D$2:$AE$90,21,0)) -> 116060 | R16: 1000 | S16: 0 | T16: =(Q16-R16-S16)*12.36% -> 14221.416 | U16: =Q16-R16-S16+T16 -> 129281.416 | V16: =IF(V$9="PONDICHERRY",HLOOKUP($A16,'[2]EX WORKS'!$D$2:$AE$90,22,0)) -> 109820 | W16: 1000 | X16: 0 | Y16: =(V16-W16-X16)*12.36% -> 13450.152 | Z16: =V16-W16-X16+Y16 -> 122270.152 | AA16: =IF(AA$9="BARODA",HLOOKUP($A16,'[2]EX WORKS'!$D$2:$AE$90,23,0)) -> 113090 | AB16: 1000 | AC16: 0 | AD16: =(AA16-AB16-AC16)*12.36% -> 13854.324 | AE16: =AA16-AB16-AC16+AD16 -> 125944.324
A17: E45A003OG
A18: EXTR
A19: E52A003A | B19: =IF(D$9="BARJORA",HLOOKUP($A19,'[2]EX WORKS'!$D$2:$AE$90,18,0)) -> 110080 | C19: 1000 | D19: 0 | E19: =(B19-C19-D19)*12.36% -> 13482.288 | F19: =B19-C19-D19+E19 -> 122562.288 | G19: =IF(G$9="HOSUR",HLOOKUP($A19,'[2]EX WORKS'!$D$2:$AE$90,19,0)) -> 108340 | H19: 1000 | I19: 0 | J19: =(G19-H19-I19)*12.36% -> 13267.224 | K19: =G19-H19-I19+J19 -> 120607.224 | L19: =IF(L$9="JAMMU",HLOOKUP($A19,'[2]EX WORKS'!$D$2:$AE$90,20,0)) -> 113690 | M19: 1000 | N19: 0 | O19: =(L19-M19-N19)*12.36% -> 13928.484 | P19: =L19-M19-N19+O19 -> 126618.484 | Q19: =IF(Q$9="NOIDA",HLOOKUP($A19,'[2]EX WORKS'!$D$2:$AE$90,21,0)) -> 114730 | R19: 1000 | S19: 0 | T19: =(Q19-R19-S19)*12.36% -> 14057.028 | U19: =Q19-R19-S19+T19 -> 127787.028 | V19: =IF(V$9="PONDICHERRY",HLOOKUP($A19,'[2]EX WORKS'!$D$2:$AE$90,22,0)) -> 108490 | W19: 1000 | X19: 0 | Y19: =(V19-W19-X19)*12.36% -> 13285.764 | Z19: =V19-W19-X19+Y19 -> 120775.764 | AA19: =IF(AA$9="BARODA",HLOOKUP($A19,'[2]EX WORKS'!$D$2:$AE$90,23,0)) -> 111690 | AB19: 1000 | AC19: 0 | AD19: =(AA19-AB19-AC19)*12.36% -> 13681.284 | AE19: =AA19-AB19-AC19+AD19 -> 124371.284
A20: E52A003OG
A21: E52U003A | B21: =IF(D$9="BARJORA",HLOOKUP($A21,'[2]EX WORKS'!$D$2:$AE$90,18,0)) -> 111860 | C21: 1000 | D21: 0 | E21: =(B21-C21-D21)*12.36% -> 13702.296 | F21: =B21-C21-D21+E21 -> 124562.296 | G21: =IF(G$9="HOSUR",HLOOKUP($A21,'[2]EX WORKS'!$D$2:$AE$90,19,0)) -> 110120 | H21: 1000 | I21: 0 | J21: =(G21-H21-I21)*12.36% -> 13487.232 | K21: =G21-H21-I21+J21 -> 122607.232 | L21: =IF(L$9="JAMMU",HLOOKUP($A21,'[2]EX WORKS'!$D$2:$AE$90,20,0)) -> 115470 | M21: 1000 | N21: 0 | O21: =(L21-M21-N21)*12.36% -> 14148.492 | P21: =L21-M21-N21+O21 -> 128618.492 | Q21: =IF(Q$9="NOIDA",HLOOKUP($A21,'[2]EX WORKS'!$D$2:$AE$90,21,0)) -> 116510 | R21: 1000 | S21: 0 | T21: =(Q21-R21-S21)*12.36% -> 14277.036 | U21: =Q21-R21-S21+T21 -> 129787.036 | V21: =IF(V$9="PONDICHERRY",HLOOKUP($A21,'[2]EX WORKS'!$D$2:$AE$90,22,0)) -> 110270 | W21: 1000 | X21: 0 | Y21: =(V21-W21-X21)*12.36% -> 13505.772 | Z21: =V21-W21-X21+Y21 -> 122775.772 | AA21: =IF(AA$9="BARODA",HLOOKUP($A21,'[2]EX WORKS'!$D$2:$AE$90,23,0)) -> 113470 | AB21: 1000 | AC21: 0 | AD21: =(AA21-AB21-AC21)*12.36% -> 13901.292 | AE21: =AA21-AB21-AC21+AD21 -> 126371.292
A22: E52U003OG
A23: HM FILM
A24: F55HM0003A | B24: =IF(D$9="BARJORA",HLOOKUP($A24,'[2]EX WORKS'!$D$2:$AE$90,18,0)) -> 110100 | C24: 1000 | D24: 0 | E24: =(B24-C24-D24)*12.36% -> 13484.76 | F24: =B24-C24-D24+E24 -> 122584.76 | G24: =IF(G$9="HOSUR",HLOOKUP($A24,'[2]EX WORKS'!$D$2:$AE$90,19,0)) -> 109200 | H24: 1000 | I24: 0 | J24: =(G24-H24-I24)*12.36% -> 13373.52 | K24: =G24-H24-I24+J24 -> 121573.52 | L24: =IF(L$9="JAMMU",HLOOKUP($A24,'[2]EX WORKS'!$D$2:$AE$90,20,0)) -> 113720 | M24: 1000 | N24: 0 | O24: =(L24-M24-N24)*12.36% -> 13932.192 | P24: =L24-M24-N24+O24 -> 126652.192 | Q24: =IF(Q$9="NOIDA",HLOOKUP($A24,'[2]EX WORKS'!$D$2:$AE$90,21,0)) -> 115770 | R24: 1000 | S24: 0 | T24: =(Q24-R24-S24)*12.36% -> 14185.572 | U24: =Q24-R24-S24+T24 -> 128955.572 | V24: =IF(V$9="PONDICHERRY",HLOOKUP($A24,'[2]EX WORKS'!$D$2:$AE$90,22,0)) -> 110210 | W24: 1000 | X24: 0 | Y24: =(V24-W24-X24)*12.36% -> 13498.356 | Z24: =V24-W24-X24+Y24 -> 122708.356 | AA24: =IF(AA$9="BARODA",HLOOKUP($A24,'[2]EX WORKS'!$D$2:$AE$90,23,0)) -> 111860 | AB24: 1000 | AC24: 0 | AD24: =(AA24-AB24-AC24)*12.36% -> 13702.296 | AE24: =AA24-AB24-AC24+AD24 -> 124562.296
A25: F55HM0003OG
A26: IM HIGH
A27: I50A180A | B27: =IF(D$9="BARJORA",HLOOKUP($A27,'[2]EX WORKS'!$D$2:$AE$90,18,0)) -> 109660 | C27: 1000 | D27: 0 | E27: =(B27-C27-D27)*12.36% -> 13430.376 | F27: =B27-C27-D27+E27 -> 122090.376 | G27: =IF(G$9="HOSUR",HLOOKUP($A27,'[2]EX WORKS'!$D$2:$AE$90,19,0)) -> 107760 | H27: 1000 | I27: 0 | J27: =(G27-H27-I27)*12.36% -> 13195.536 | K27: =G27-H27-I27+J27 -> 119955.536 | L27: =IF(L$9="JAMMU",HLOOKUP($A27,'[2]EX WORKS'!$D$2:$AE$90,20,0)) -> 112840 | M27: 1000 | N27: 0 | O27: =(L27-M27-N27)*12.36% -> 13823.424 | P27: =L27-M27-N27+O27 -> 125663.424 | Q27: =IF(Q$9="NOIDA",HLOOKUP($A27,'[2]EX WORKS'!$D$2:$AE$90,21,0)) -> 113760 | R27: 1000 | S27: 0 | T27: =(Q27-R27-S27)*12.36% -> 13937.136 | U27: =Q27-R27-S27+T27 -> 126697.136 | V27: =IF(V$9="PONDICHERRY",HLOOKUP($A27,'[2]EX WORKS'!$D$2:$AE$90,22,0)) -> 108280 | W27: 1000 | X27: 0 | Y27: =(V27-W27-X27)*12.36% -> 13259.808 | Z27: =V27-W27-X27+Y27 -> 120539.808 | AA27: =IF(AA$9="BARODA",HLOOKUP($A27,'[2]EX WORKS'!$D$2:$AE$90,23,0)) -> 110890 | AB27: 1000 | AC27: 0 | AD27: =(AA27-AB27-AC27)*12.36% -> 13582.404 | AE27: =AA27-AB27-AC27+AD27 -> 123472.404
A28: I50A180OG
A29: IM LOW
A30: I60A080A | B30: =IF(D$9="BARJORA",HLOOKUP($A30,'[2]EX WORKS'!$D$2:$AE$90,18,0)) -> 110710 | C30: 1000 | D30: 0 | E30: =(B30-C30-D30)*12.36% -> 13560.156 | F30: =B30-C30-D30+E30 -> 123270.156 | G30: =IF(G$9="HOSUR",HLOOKUP($A30,'[2]EX WORKS'!$D$2:$AE$90,19,0)) -> 107820 | H30: 1000 | I30: 0 | J30: =(G30-H30-I30)*12.36% -> 13202.952 | K30: =G30-H30-I30+J30 -> 120022.952 | L30: =IF(L$9="JAMMU",HLOOKUP($A30,'[2]EX WORKS'!$D$2:$AE$90,20,0)) -> 113170 | M30: 1000 | N30: 0 | O30: =(L30-M30-N30)*12.36% -> 13864.212 | P30: =L30-M30-N30+O30 -> 126034.212 | Q30: =IF(Q$9="NOIDA",HLOOKUP($A30,'[2]EX WORKS'!$D$2:$AE$90,21,0)) -> 114210 | R30: 1000 | S30: 0 | T30: =(Q30-R30-S30)*12.36% -> 13992.756 | U30: =Q30-R30-S30+T30 -> 127202.756 | V30: =IF(V$9="PONDICHERRY",HLOOKUP($A30,'[2]EX WORKS'!$D$2:$AE$90,22,0)) -> 107970 | W30: 1000 | X30: 0 | Y30: =(V30-W30-X30)*12.36% -> 13221.492 | Z30: =V30-W30-X30+Y30 -> 120191.492 | AA30: =IF(AA$9="BARODA",HLOOKUP($A30,'[2]EX WORKS'!$D$2:$AE$90,23,0)) -> 111190 | AB30: 1000 | AC30: 0 | AD30: =(AA30-AB30-AC30)*12.36% -> 13619.484 | AE30: =AA30-AB30-AC30+AD30 -> 123809.484
A31: I60A080OG
A32: IM-L-UV
A33: I60U080A | B33: =IF(D$9="BARJORA",HLOOKUP($A33,'[2]EX WORKS'!$D$2:$AE$90,18,0)) -> 112240 | C33: 1000 | D33: 0 | E33: =(B33-C33-D33)*12.36% -> 13749.264 | F33: =B33-C33-D33+E33 -> 124989.264 | G33: =IF(G$9="HOSUR",HLOOKUP($A33,'[2]EX WORKS'!$D$2:$AE$90,19,0)) -> 109350 | H33: 1000 | I33: 0 | J33: =(G33-H33-I33)*12.36% -> 13392.06 | K33: =G33-H33-I33+J33 -> 121742.06 | L33: =IF(L$9="JAMMU",HLOOKUP($A33,'[2]EX WORKS'!$D$2:$AE$90,20,0)) -> 114700 | M33: 1000 | N33: 0 | O33: =(L33-M33-N33)*12.36% -> 14053.32 | P33: =L33-M33-N33+O33 -> 127753.32 | Q33: =IF(Q$9="NOIDA",HLOOKUP($A33,'[2]EX WORKS'!$D$2:$AE$90,21,0)) -> 115740 | R33: 1000 | S33: 0 | T33: =(Q33-R33-S33)*12.36% -> 14181.864 | U33: =Q33-R33-S33+T33 -> 128921.864 | V33: =IF(V$9="PONDICHERRY",HLOOKUP($A33,'[2]EX WORKS'!$D$2:$AE$90,22,0)) -> 109500 | W33: 1000 | X33: 0 | Y33: =(V33-W33-X33)*12.36% -> 13410.6 | Z33: =V33-W33-X33+Y33 -> 121910.6 | AA33: =IF(AA$9="BARODA",HLOOKUP($A33,'[2]EX WORKS'!$D$2:$AE$90,23,0)) -> 112690 | AB33: 1000 | AC33: 0 | AD33: =(AA33-AB33-AC33)*12.36% -> 13804.884 | AE33: =AA33-AB33-AC33+AD33 -> 125494.884
A34: I60U080OG
A35: PIPE (PE80)
A36: P54A001A | B36: =IF(D$9="BARJORA",HLOOKUP($A36,'[2]EX WORKS'!$D$2:$AE$90,18,0)) -> 116070 | C36: 1000 | D36: 0 | E36: =(B36-C36-D36)*12.36% -> 14222.652 | F36: =B36-C36-D36+E36 -> 129292.652 | G36: =IF(G$9="HOSUR",HLOOKUP($A36,'[2]EX WORKS'!$D$2:$AE$90,19,0)) -> 112660 | H36: 1000 | I36: 0 | J36: =(G36-H36-I36)*12.36% -> 13801.176 | K36: =G36-H36-I36+J36 -> 125461.176 | L36: =IF(L$9="JAMMU",HLOOKUP($A36,'[2]EX WORKS'!$D$2:$AE$90,20,0)) -> 117680 | M36: 1000 | N36: 0 | O36: =(L36-M36-N36)*12.36% -> 14421.648 | P36: =L36-M36-N36+O36 -> 131101.648 | Q36: =IF(Q$9="NOIDA",HLOOKUP($A36,'[2]EX WORKS'!$D$2:$AE$90,21,0)) -> 118730 | R36: 1000 | S36: 0 | T36: =(Q36-R36-S36)*12.36% -> 14551.428 | U36: =Q36-R36-S36+T36 -> 132281.428 | V36: =IF(V$9="PONDICHERRY",HLOOKUP($A36,'[2]EX WORKS'!$D$2:$AE$90,22,0)) -> 113730 | W36: 1000 | X36: 0 | Y36: =(V36-W36-X36)*12.36% -> 13933.428 | Z36: =V36-W36-X36+Y36 -> 126663.428 | AA36: =IF(AA$9="BARODA",HLOOKUP($A36,'[2]EX WORKS'!$D$2:$AE$90,23,0)) -> 115820 | AB36: 1000 | AC36: 0 | AD36: =(AA36-AB36-AC36)*12.36% -> 14191.752 | AE36: =AA36-AB36-AC36+AD36 -> 129011.752
A37: P54A001OG
A38: PIPE (PE100)
A39: P52A003A | B39: =IF(D$9="BARJORA",HLOOKUP($A39,'[2]EX WORKS'!$D$2:$AE$90,18,0)) -> 118080 | C39: 1000 | D39: 0 | E39: =(B39-C39-D39)*12.36% -> 14471.088 | F39: =B39-C39-D39+E39 -> 131551.088 | G39: =IF(G$9="HOSUR",HLOOKUP($A39,'[2]EX WORKS'!$D$2:$AE$90,19,0)) -> 114660 | H39: 1000 | I39: 0 | J39: =(G39-H39-I39)*12.36% -> 14048.376 | K39: =G39-H39-I39+J39 -> 127708.376 | L39: =IF(L$9="JAMMU",HLOOKUP($A39,'[2]EX WORKS'!$D$2:$AE$90,20,0)) -> 119680 | M39: 1000 | N39: 0 | O39: =(L39-M39-N39)*12.36% -> 14668.848 | P39: =L39-M39-N39+O39 -> 133348.848 | Q39: =IF(Q$9="NOIDA",HLOOKUP($A39,'[2]EX WORKS'!$D$2:$AE$90,21,0)) -> 120730 | R39: 1000 | S39: 0 | T39: =(Q39-R39-S39)*12.36% -> 14798.628 | U39: =Q39-R39-S39+T39 -> 134528.628 | V39: =IF(V$9="PONDICHERRY",HLOOKUP($A39,'[2]EX WORKS'!$D$2:$AE$90,22,0)) -> 115740 | W39: 1000 | X39: 0 | Y39: =(V39-W39-X39)*12.36% -> 14181.864 | Z39: =V39-W39-X39+Y39 -> 128921.864 | AA39: =IF(AA$9="BARODA",HLOOKUP($A39,'[2]EX WORKS'!$D$2:$AE$90,23,0)) -> 117820 | AB39: 1000 | AC39: 0 | AD39: =(AA39-AB39-AC39)*12.36% -> 14438.952 | AE39: =AA39-AB39-AC39+AD39 -> 131258.952
A40: RAFFIA
A41: W50A009A | B41: =IF(D$9="BARJORA",HLOOKUP($A41,'[2]EX WORKS'!$D$2:$AE$90,18,0)) -> 108930 | C41: 1000 | D41: 0 | E41: =(B41-C41-D41)*12.36% -> 13340.148 | F41: =B41-C41-D41+E41 -> 121270.148 | G41: =IF(G$9="HOSUR",HLOOKUP($A41,'[2]EX WORKS'!$D$2:$AE$90,19,0)) -> 106440 | H41: 1000 | I41: 0 | J41: =(G41-H41-I41)*12.36% -> 13032.384 | K41: =G41-H41-I41+J41 -> 118472.384 | L41: =IF(L$9="JAMMU",HLOOKUP($A41,'[2]EX WORKS'!$D$2:$AE$90,20,0)) -> 111790 | M41: 1000 | N41: 0 | O41: =(L41-M41-N41)*12.36% -> 13693.644 | P41: =L41-M41-N41+O41 -> 124483.644 | Q41: =IF(Q$9="NOIDA",HLOOKUP($A41,'[2]EX WORKS'!$D$2:$AE$90,21,0)) -> 112830 | R41: 1000 | S41: 0 | T41: =(Q41-R41-S41)*12.36% -> 13822.188 | U41: =Q41-R41-S41+T41 -> 125652.188 | V41: =IF(V$9="PONDICHERRY",HLOOKUP($A41,'[2]EX WORKS'!$D$2:$AE$90,22,0)) -> 106590 | W41: 1000 | X41: 0 | Y41: =(V41-W41-X41)*12.36% -> 13050.924 | Z41: =V41-W41-X41+Y41 -> 118640.924 | AA41: =IF(AA$9="BARODA",HLOOKUP($A41,'[2]EX WORKS'!$D$2:$AE$90,23,0)) -> 109690 | AB41: 1000 | AC41: 0 | AD41: =(AA41-AB41-AC41)*12.36% -> 13434.084 | AE41: =AA41-AB41-AC41+AD41 -> 122124.084
A42: T50A010A | B42: =IF(D$9="BARJORA",HLOOKUP($A42,'[2]EX WORKS'!$D$2:$AE$90,18,0)) -> 109180 | C42: 1000 | D42: 0 | E42: =(B42-C42-D42)*12.36% -> 13371.048 | F42: =B42-C42-D42+E42 -> 121551.048 | G42: =IF(G$9="HOSUR",HLOOKUP($A42,'[2]EX WORKS'!$D$2:$AE$90,19,0)) -> 106690 | H42: 1000 | I42: 0 | J42: =(G42-H42-I42)*12.36% -> 13063.284 | K42: =G42-H42-I42+J42 -> 118753.284 | L42: =IF(L$9="JAMMU",HLOOKUP($A42,'[2]EX WORKS'!$D$2:$AE$90,20,0)) -> 112040 | M42: 1000 | N42: 0 | O42: =(L42-M42-N42)*12.36% -> 13724.544 | P42: =L42-M42-N42+O42 -> 124764.544 | Q42: =IF(Q$9="NOIDA",HLOOKUP($A42,'[2]EX WORKS'!$D$2:$AE$90,21,0)) -> 113080 | R42: 1000 | S42: 0 | T42: =(Q42-R42-S42)*12.36% -> 13853.088 | U42: =Q42-R42-S42+T42 -> 125933.088 | V42: =IF(V$9="PONDICHERRY",HLOOKUP($A42,'[2]EX WORKS'!$D$2:$AE$90,22,0)) -> 107340 | W42: 1000 | X42: 0 | Y42: =(V42-W42-X42)*12.36% -> 13143.624 | Z42: =V42-W42-X42+Y42 -> 119483.624 | AA42: =IF(AA$9="BARODA",HLOOKUP($A42,'[2]EX WORKS'!$D$2:$AE$90,23,0)) -> 109940 | AB42: 1000 | AC42: 0 | AD42: =(AA42-AB42-AC42)*12.36% -> 13464.984 | AE42: =AA42-AB42-AC42+AD42 -> 122404.984
A43: MF
A44: W52A009A | B44: =IF(D$9="BARJORA",HLOOKUP($A44,'[2]EX WORKS'!$D$2:$AE$90,18,0)) -> 109830 | C44: 1000 | D44: 0 | E44: =(B44-C44-D44)*12.36% -> 13451.388 | F44: =B44-C44-D44+E44 -> 122281.388 | G44: =IF(G$9="HOSUR",HLOOKUP($A44,'[2]EX WORKS'!$D$2:$AE$90,19,0)) -> 106940 | H44: 1000 | I44: 0 | J44: =(G44-H44-I44)*12.36% -> 13094.184 | K44: =G44-H44-I44+J44 -> 119034.184 | L44: =IF(L$9="JAMMU",HLOOKUP($A44,'[2]EX WORKS'!$D$2:$AE$90,20,0)) -> 112290 | M44: 1000 | N44: 0 | O44: =(L44-M44-N44)*12.36% -> 13755.444 | P44: =L44-M44-N44+O44 -> 125045.444 | Q44: =IF(Q$9="NOIDA",HLOOKUP($A44,'[2]EX WORKS'!$D$2:$AE$90,21,0)) -> 113330 | R44: 1000 | S44: 0 | T44: =(Q44-R44-S44)*12.36% -> 13883.988 | U44: =Q44-R44-S44+T44 -> 126213.988 | V44: =IF(V$9="PONDICHERRY",HLOOKUP($A44,'[2]EX WORKS'!$D$2:$AE$90,22,0)) -> 107090 | W44: 1000 | X44: 0 | Y44: =(V44-W44-X44)*12.36% -> 13112.724 | Z44: =V44-W44-X44+Y44 -> 119202.724 | AA44: =IF(AA$9="BARODA",HLOOKUP($A44,'[2]EX WORKS'!$D$2:$AE$90,23,0)) -> 110190 | AB44: 1000 | AC44: 0 | AD44: =(AA44-AB44-AC44)*12.36% -> 13495.884 | AE44: =AA44-AB44-AC44+AD44 -> 122685.884
A45: W52A009OG
A46: W52ASR009A | B46: =IF(D$9="BARJORA",HLOOKUP($A46,'[2]EX WORKS'!$D$2:$AE$90,18,0)) -> 109830 | C46: 1000 | D46: 0 | E46: =(B46-C46-D46)*12.36% -> 13451.388 | F46: =B46-C46-D46+E46 -> 122281.388 | G46: =IF(G$9="HOSUR",HLOOKUP($A46,'[2]EX WORKS'!$D$2:$AE$90,19,0)) -> 106940 | H46: 1000 | I46: 0 | J46: =(G46-H46-I46)*12.36% -> 13094.184 | K46: =G46-H46-I46+J46 -> 119034.184 | L46: =IF(L$9="JAMMU",HLOOKUP($A46,'[2]EX WORKS'!$D$2:$AE$90,20,0)) -> 112290 | M46: 1000 | N46: 0 | O46: =(L46-M46-N46)*12.36% -> 13755.444 | P46: =L46-M46-N46+O46 -> 125045.444 | Q46: =IF(Q$9="NOIDA",HLOOKUP($A46,'[2]EX WORKS'!$D$2:$AE$90,21,0)) -> 113330 | R46: 1000 | S46: 0 | T46: =(Q46-R46-S46)*12.36% -> 13883.988 | U46: =Q46-R46-S46+T46 -> 126213.988 | V46: =IF(V$9="PONDICHERRY",HLOOKUP($A46,'[2]EX WORKS'!$D$2:$AE$90,22,0)) -> 107090 | W46: 1000 | X46: 0 | Y46: =(V46-W46-X46)*12.36% -> 13112.724 | Z46: =V46-W46-X46+Y46 -> 119202.724 | AA46: =IF(AA$9="BARODA",HLOOKUP($A46,'[2]EX WORKS'!$D$2:$AE$90,23,0)) -> 110190 | AB46: 1000 | AC46: 0 | AD46: =(AA46-AB46-AC46)*12.36% -> 13495.884 | AE46: =AA46-AB46-AC46+AD46 -> 122685.884
A47: W55A004A | B47: =IF(D$9="BARJORA",HLOOKUP($A47,'[2]EX WORKS'!$D$2:$AE$90,18,0)) -> 112830 | C47: 1000 | D47: 0 | E47: =(B47-C47-D47)*12.36% -> 13822.188 | F47: =B47-C47-D47+E47 -> 125652.188 | G47: =IF(G$9="HOSUR",HLOOKUP($A47,'[2]EX WORKS'!$D$2:$AE$90,19,0)) -> 109940 | H47: 1000 | I47: 0 | J47: =(G47-H47-I47)*12.36% -> 13464.984 | K47: =G47-H47-I47+J47 -> 122404.984 | L47: =IF(L$9="JAMMU",HLOOKUP($A47,'[2]EX WORKS'!$D$2:$AE$90,20,0)) -> 115290 | M47: 1000 | N47: 0 | O47: =(L47-M47-N47)*12.36% -> 14126.244 | P47: =L47-M47-N47+O47 -> 128416.244 | Q47: =IF(Q$9="NOIDA",HLOOKUP($A47,'[2]EX WORKS'!$D$2:$AE$90,21,0)) -> 116330 | R47: 1000 | S47: 0 | T47: =(Q47-R47-S47)*12.36% -> 14254.788 | U47: =Q47-R47-S47+T47 -> 129584.788 | V47: =IF(V$9="PONDICHERRY",HLOOKUP($A47,'[2]EX WORKS'!$D$2:$AE$90,22,0)) -> 110090 | W47: 1000 | X47: 0 | Y47: =(V47-W47-X47)*12.36% -> 13483.524 | Z47: =V47-W47-X47+Y47 -> 122573.524 | AA47: =IF(AA$9="BARODA",HLOOKUP($A47,'[2]EX WORKS'!$D$2:$AE$90,23,0)) -> 113190 | AB47: 1000 | AC47: 0 | AD47: =(AA47-AB47-AC47)*12.36% -> 13866.684 | AE47: =AA47-AB47-AC47+AD47 -> 126056.684
A48: LLDPE
A49: E20AN009A | B49: =IF(D$9="BARJORA",HLOOKUP($A49,'[2]EX WORKS'!$D$2:$AE$90,18,0)) -> 111800 | C49: 1000 | D49: 0 | E49: =(B49-C49-D49)*12.36% -> 13694.88 | F49: =B49-C49-D49+E49 -> 124494.88 | G49: =IF(G$9="HOSUR",HLOOKUP($A49,'[2]EX WORKS'!$D$2:$AE$90,19,0)) -> 110210 | H49: 1000 | I49: 0 | J49: =(G49-H49-I49)*12.36% -> 13498.356 | K49: =G49-H49-I49+J49 -> 122708.356 | L49: =IF(L$9="JAMMU",HLOOKUP($A49,'[2]EX WORKS'!$D$2:$AE$90,20,0)) -> 115560 | M49: 1000 | N49: 0 | O49: =(L49-M49-N49)*12.36% -> 14159.616 | P49: =L49-M49-N49+O49 -> 128719.616 | Q49: =IF(Q$9="NOIDA",HLOOKUP($A49,'[2]EX WORKS'!$D$2:$AE$90,21,0)) -> 116600 | R49: 1000 | S49: 0 | T49: =(Q49-R49-S49)*12.36% -> 14288.16 | U49: =Q49-R49-S49+T49 -> 129888.16 | V49: =IF(V$9="PONDICHERRY",HLOOKUP($A49,'[2]EX WORKS'!$D$2:$AE$90,22,0)) -> 110360 | W49: 1000 | X49: 0 | Y49: =(V49-W49-X49)*12.36% -> 13516.896 | Z49: =V49-W49-X49+Y49 -> 122876.896 | AA49: =IF(AA$9="BARODA",HLOOKUP($A49,'[2]EX WORKS'!$D$2:$AE$90,23,0)) -> 113590 | AB49: 1000 | AC49: 0 | AD49: =(AA49-AB49-AC49)*12.36% -> 13916.124 | AE49: =AA49-AB49-AC49+AD49 -> 126506.124
A50: E20AN009OG
A51: E36A060A | B51: =IF(D$9="BARJORA",HLOOKUP($A51,'[2]EX WORKS'!$D$2:$AE$90,18,0)) -> 115440 | C51: 1000 | D51: 0 | E51: =(B51-C51-D51)*12.36% -> 14144.784 | F51: =B51-C51-D51+E51 -> 128584.784 | G51: =IF(G$9="HOSUR",HLOOKUP($A51,'[2]EX WORKS'!$D$2:$AE$90,19,0)) -> 112250 | H51: 1000 | I51: 0 | J51: =(G51-H51-I51)*12.36% -> 13750.5 | K51: =G51-H51-I51+J51 -> 125000.5 | L51: =IF(L$9="JAMMU",HLOOKUP($A51,'[2]EX WORKS'!$D$2:$AE$90,20,0)) -> 117600 | M51: 1000 | N51: 0 | O51: =(L51-M51-N51)*12.36% -> 14411.76 | P51: =L51-M51-N51+O51 -> 131011.76 | Q51: =IF(Q$9="NOIDA",HLOOKUP($A51,'[2]EX WORKS'!$D$2:$AE$90,21,0)) -> 118640 | R51: 1000 | S51: 0 | T51: =(Q51-R51-S51)*12.36% -> 14540.304 | U51: =Q51-R51-S51+T51 -> 132180.304 | V51: =IF(V$9="PONDICHERRY",HLOOKUP($A51,'[2]EX WORKS'!$D$2:$AE$90,22,0)) -> 112400 | W51: 1000 | X51: 0 | Y51: =(V51-W51-X51)*12.36% -> 13769.04 | Z51: =V51-W51-X51+Y51 -> 125169.04 | AA51: =IF(AA$9="BARODA",HLOOKUP($A51,'[2]EX WORKS'!$D$2:$AE$90,23,0)) -> 115590 | AB51: 1000 | AC51: 0 | AD51: =(AA51-AB51-AC51)*12.36% -> 14163.324 | AE51: =AA51-AB51-AC51+AD51 -> 128753.324
A52: E36A060OG
A53: FILM
A54: F20S009A | B54: =IF(D$9="BARJORA",HLOOKUP($A54,'[2]EX WORKS'!$D$2:$AE$90,18,0)) -> 113300 | C54: 1000 | D54: 0 | E54: =(B54-C54-D54)*12.36% -> 13880.28 | F54: =B54-C54-D54+E54 -> 126180.28 | G54: =IF(G$9="HOSUR",HLOOKUP($A54,'[2]EX WORKS'!$D$2:$AE$90,19,0)) -> 111710 | H54: 1000 | I54: 0 | J54: =(G54-H54-I54)*12.36% -> 13683.756 | K54: =G54-H54-I54+J54 -> 124393.756 | L54: =IF(L$9="JAMMU",HLOOKUP($A54,'[2]EX WORKS'!$D$2:$AE$90,20,0)) -> 117060 | M54: 1000 | N54: 0 | O54: =(L54-M54-N54)*12.36% -> 14345.016 | P54: =L54-M54-N54+O54 -> 130405.016 | Q54: =IF(Q$9="NOIDA",HLOOKUP($A54,'[2]EX WORKS'!$D$2:$AE$90,21,0)) -> 118100 | R54: 1000 | S54: 0 | T54: =(Q54-R54-S54)*12.36% -> 14473.56 | U54: =Q54-R54-S54+T54 -> 131573.56 | V54: =IF(V$9="PONDICHERRY",HLOOKUP($A54,'[2]EX WORKS'!$D$2:$AE$90,22,0)) -> 111860 | W54: 1000 | X54: 0 | Y54: =(V54-W54-X54)*12.36% -> 13702.296 | Z54: =V54-W54-X54+Y54 -> 124562.296 | AA54: =IF(AA$9="BARODA",HLOOKUP($A54,'[2]EX WORKS'!$D$2:$AE$90,23,0)) -> 115090 | AB54: 1000 | AC54: 0 | AD54: =(AA54-AB54-AC54)*12.36% -> 14101.524 | AE54: =AA54-AB54-AC54+AD54 -> 128191.524
A55: F20S009OG
A56: D22S010A | B56: =IF(D$9="BARJORA",HLOOKUP($A56,'[2]EX WORKS'!$D$2:$AE$90,18,0)) -> 112300 | C56: 1000 | D56: 0 | E56: =(B56-C56-D56)*12.36% -> 13756.68 | F56: =B56-C56-D56+E56 -> 125056.68 | G56: =IF(G$9="HOSUR",HLOOKUP($A56,'[2]EX WORKS'!$D$2:$AE$90,19,0)) -> 110710 | H56: 1000 | I56: 0 | J56: =(G56-H56-I56)*12.36% -> 13560.156 | K56: =G56-H56-I56+J56 -> 123270.156 | L56: =IF(L$9="JAMMU",HLOOKUP($A56,'[2]EX WORKS'!$D$2:$AE$90,20,0)) -> 116060 | M56: 1000 | N56: 0 | O56: =(L56-M56-N56)*12.36% -> 14221.416 | P56: =L56-M56-N56+O56 -> 129281.416 | Q56: =IF(Q$9="NOIDA",HLOOKUP($A56,'[2]EX WORKS'!$D$2:$AE$90,21,0)) -> 117100 | R56: 1000 | S56: 0 | T56: =(Q56-R56-S56)*12.36% -> 14349.96 | U56: =Q56-R56-S56+T56 -> 130449.96 | V56: =IF(V$9="PONDICHERRY",HLOOKUP($A56,'[2]EX WORKS'!$D$2:$AE$90,22,0)) -> 110860 | W56: 1000 | X56: 0 | Y56: =U56-V56-W56+X56 -> 18589.96 | Z56: =V56-W56-X56+Y56 -> 128449.96 | AA56: =IF(AA$9="BARODA",HLOOKUP($A56,'[2]EX WORKS'!$D$2:$AE$90,23,0)) -> 114090 | AB56: 1000 | AC56: 0 | AD56: =(AA56-AB56-AC56)*12.36% -> 13977.924 | AE56: =AA56-AB56-AC56+AD56 -> 127067.924
A57: ROTO
A58: R35A042A | B58: =IF(D$9="BARJORA",HLOOKUP($A58,'[2]EX WORKS'!$D$2:$AE$90,18,0)) -> 113220 | C58: 1000 | D58: 0 | E58: =(B58-C58-D58)*12.36% -> 13870.392 | F58: =B58-C58-D58+E58 -> 126090.392 | G58: =IF(G$9="HOSUR",HLOOKUP($A58,'[2]EX WORKS'!$D$2:$AE$90,19,0)) -> 109200 | H58: 1000 | I58: 0 | J58: =(G58-H58-I58)*12.36% -> 13373.52 | K58: =G58-H58-I58+J58 -> 121573.52 | L58: =IF(L$9="JAMMU",HLOOKUP($A58,'[2]EX WORKS'!$D$2:$AE$90,20,0)) -> 114570 | M58: 1000 | N58: 0 | O58: =(L58-M58-N58)*12.36% -> 14037.252 | P58: =L58-M58-N58+O58 -> 127607.252 | Q58: =IF(Q$9="NOIDA",HLOOKUP($A58,'[2]EX WORKS'!$D$2:$AE$90,21,0)) -> 115620 | R58: 1000 | S58: 0 | T58: =(Q58-R58-S58)*12.36% -> 14167.032 | U58: =Q58-R58-S58+T58 -> 128787.032 | V58: =IF(V$9="PONDICHERRY",HLOOKUP($A58,'[2]EX WORKS'!$D$2:$AE$90,22,0)) -> 109870 | W58: 1000 | X58: 0 | Y58: =(V58-W58-X58)*12.36% -> 13456.332 | Z58: =V58-W58-X58+Y58 -> 122326.332 | AA58: =IF(AA$9="BARODA",HLOOKUP($A58,'[2]EX WORKS'!$D$2:$AE$90,23,0)) -> 112710 | AB58: 1000 | AC58: 0 | AD58: =(AA58-AB58-AC58)*12.36% -> 13807.356 | AE58: =AA58-AB58-AC58+AD58 -> 125517.356
A59: R35U042A | B59: =IF(D$9="BARJORA",HLOOKUP($A59,'[2]EX WORKS'!$D$2:$AE$90,18,0)) -> 114500 | C59: 1000 | D59: 0 | E59: =(B59-C59-D59)*12.36% -> 14028.6 | F59: =B59-C59-D59+E59 -> 127528.6 | G59: =IF(G$9="HOSUR",HLOOKUP($A59,'[2]EX WORKS'!$D$2:$AE$90,19,0)) -> 110060 | H59: 1000 | I59: 0 | J59: =(G59-H59-I59)*12.36% -> 13479.816 | K59: =G59-H59-I59+J59 -> 122539.816 | L59: =IF(L$9="JAMMU",HLOOKUP($A59,'[2]EX WORKS'!$D$2:$AE$90,20,0)) -> 115430 | M59: 1000 | N59: 0 | O59: =(L59-M59-N59)*12.36% -> 14143.548 | P59: =L59-M59-N59+O59 -> 128573.548 | Q59: =IF(Q$9="NOIDA",HLOOKUP($A59,'[2]EX WORKS'!$D$2:$AE$90,21,0)) -> 116880 | R59: 1000 | S59: 0 | T59: =(Q59-R59-S59)*12.36% -> 14322.768 | U59: =Q59-R59-S59+T59 -> 130202.768 | V59: =IF(V$9="PONDICHERRY",HLOOKUP($A59,'[2]EX WORKS'!$D$2:$AE$90,22,0)) -> 110750 | W59: 1000 | X59: 0 | Y59: =(V59-W59-X59)*12.36% -> 13565.1 | Z59: =V59-W59-X59+Y59 -> 123315.1 | AA59: =IF(AA$9="BARODA",HLOOKUP($A59,'[2]EX WORKS'!$D$2:$AE$90,23,0)) -> 113570 | AB59: 1000 | AC59: 0 | AD59: =(AA59-AB59-AC59)*12.36% -> 13913.652 | AE59: =AA59-AB59-AC59+AD59 -> 126483.652
A61: NOTE: | B61: LOCATION DISCOUNT HAS BEEN DISCONTINUED
B63: THE PRICES OF OLD PLANT & NEW PLANT ARE SAME FROM DIRECT SALE

Sheet Sheet4
A1: UNITED BROTHERS
A2: CONSIGNMENT STOCKIST OF GAIL (INDIA) LTD
A3: 301,HERITAGE PLAZA, R.S.MAHARAJ MARG,( TELI GALLI CROSS LANE), ANDHERI (E), MUMBAI - 400 069
A4: TEL: 26844612(4 LINES) FAX: 26822914 E-MAIL: info@unibrothers.com ,prashant@unibrothers.com ,jyoti@unibrothers.com
A5: EX-WORKS PRICE OF HDPE "G-LEX / G-LENE " W.E.F.1ST AUGUST 2014
A6: CASH / ADVANCE PAYMENT FOR MAHARASHTRA & DAMAN
B7: Freight 1021.10 | G7: Freight 3316.32 | N7: FREIGHT 1822.44 | R7: FREIGHT 5622.05 | V7: Freight 2136.03
B8: ALWAR | G8: HYDERABAD | L8: BADDI | Q8: UDMALPET | V8: BHAVNAGAR
B9: BASIC | C9: DISC | D9: LOC | E9: EXCISE | F9: EX-WKS | G9: BASIC | H9: DISC | I9: LOC | J9: EXCISE | K9: EX-WKS | L9: BASIC | M9: DISC | N9: LOC | O9: EXCISE | P9: EX-WKS | Q9: BASIC | R9: DISC | S9: LOC | T9: EXCISE | U9: EX-WKS | W9: DISC | X9: LOC | Y9: EXCISE | Z9: EX-WKS
A10: BM
A11: B52A003A | B11: =IF(B$8="ALWAR",HLOOKUP($A11,'[2]EX WORKS'!$D$2:$AE$90,24,0)) -> 112220 | C11: 1000 | D11: 0 | E11: =(B11-C11-D11)*12.36% -> 13746.792 | F11: =B11-C11-D11+E11 -> 124966.792 | G11: =IF(G$8="HYDERABAD",HLOOKUP($A11,'[2]EX WORKS'!$D$2:$AE$90,25,0)) -> 109150 | H11: 1000 | I11: 0 | J11: =(G11-H11-I11)*12.36% -> 13367.34 | K11: =G11-H11-I11+J11 -> 121517.34 | L11: =IF(L$8="BADDI",HLOOKUP($A11,'[2]EX WORKS'!$D$2:$AE$90,26,0)) -> 111770 | M11: 1000 | N11: 0 | O11: =(L11-M11-N11)*12.36% -> 13691.172 | P11: =L11-M11-N11+O11 -> 124461.172 | Q11: =IF(Q$8="UDMALPET",HLOOKUP($A11,'[2]EX WORKS'!$D$2:$AE$90,27,0)) -> 106960 | R11: 1000 | S11: 0 | T11: =(Q11-R11-S11)*12.36% -> 13096.656 | U11: =Q11-R11-S11+T11 -> 119056.656 | V11: =IF(V$8="BHAVNAGAR",HLOOKUP($A11,'[2]EX WORKS'!$D$2:$AE$90,28,0)) -> 110360 | W11: 1000 | X11: 0 | Y11: =(V11-W11-X11)*12.36% -> 13516.896 | Z11: =V11-W11-X11+Y11 -> 122876.896
A12: B63A003A | B12: =IF(B$8="ALWAR",HLOOKUP($A12,'[2]EX WORKS'!$D$2:$AE$90,24,0)) -> 112220 | C12: 1000 | D12: 0 | E12: =(B12-C12-D12)*12.36% -> 13746.792 | F12: =B12-C12-D12+E12 -> 124966.792 | G12: =IF(G$8="HYDERABAD",HLOOKUP($A12,'[2]EX WORKS'!$D$2:$AE$90,25,0)) -> 109150 | H12: 1000 | I12: 0 | J12: =(G12-H12-I12)*12.36% -> 13367.34 | K12: =G12-H12-I12+J12 -> 121517.34 | L12: =IF(L$8="BADDI",HLOOKUP($A12,'[2]EX WORKS'!$D$2:$AE$90,26,0)) -> 111770 | M12: 1000 | N12: 0 | O12: =(L12-M12-N12)*12.36% -> 13691.172 | P12: =L12-M12-N12+O12 -> 124461.172 | Q12: =IF(Q$8="UDMALPET",HLOOKUP($A12,'[2]EX WORKS'!$D$2:$AE$90,27,0)) -> 106960 | R12: 1000 | S12: 0 | T12: =(Q12-R12-S12)*12.36% -> 13096.656 | U12: =Q12-R12-S12+T12 -> 119056.656 | V12: =IF(V$8="BHAVNAGAR",HLOOKUP($A12,'[2]EX WORKS'!$D$2:$AE$90,28,0)) -> 110360 | W12: 1000 | X12: 0 | Y12: =(V12-W12-X12)*12.36% -> 13516.896 | Z12: =V12-W12-X12+Y12 -> 122876.896
A13: B55HM0003A | B13: =IF(B$8="ALWAR",HLOOKUP($A13,'[2]EX WORKS'!$D$2:$AE$90,24,0)) -> 115920 | C13: 1000 | D13: 0 | E13: =(B13-C13-D13)*12.36% -> 14204.112 | F13: =B13-C13-D13+E13 -> 129124.112 | G13: =IF(G$8="HYDERABAD",HLOOKUP($A13,'[2]EX WORKS'!$D$2:$AE$90,25,0)) -> 112690 | H13: 1000 | I13: 0 | J13: =(G13-H13-I13)*12.36% -> 13804.884 | K13: =G13-H13-I13+J13 -> 125494.884 | L13: =IF(L$8="BADDI",HLOOKUP($A13,'[2]EX WORKS'!$D$2:$AE$90,26,0)) -> 115930 | M13: 1000 | N13: 0 | O13: =(L13-M13-N13)*12.36% -> 14205.348 | P13: =L13-M13-N13+O13 -> 129135.348 | Q13: =IF(Q$8="UDMALPET",HLOOKUP($A13,'[2]EX WORKS'!$D$2:$AE$90,27,0)) -> 110610 | R13: 1000 | S13: 0 | T13: =(Q13-R13-S13)*12.36% -> 13547.796 | U13: =Q13-R13-S13+T13 -> 123157.796 | V13: =IF(V$8="BHAVNAGAR",HLOOKUP($A13,'[2]EX WORKS'!$D$2:$AE$90,28,0)) -> 113720 | W13: 1000 | X13: 0 | Y13: =(V13-W13-X13)*12.36% -> 13932.192 | Z13: =V13-W13-X13+Y13 -> 126652.192
A14: SHETG
A15: E45A003A | B15: =IF(B$8="ALWAR",HLOOKUP($A15,'[2]EX WORKS'!$D$2:$AE$90,24,0)) -> 115280 | C15: 1000 | D15: 0 | E15: =(B15-C15-D15)*12.36% -> 14125.008 | F15: =B15-C15-D15+E15 -> 128405.008 | G15: =IF(G$8="HYDERABAD",HLOOKUP($A15,'[2]EX WORKS'!$D$2:$AE$90,25,0)) -> 112010 | H15: 1000 | I15: 0 | J15: =(G15-H15-I15)*12.36% -> 13720.836 | K15: =G15-H15-I15+J15 -> 124730.836 | L15: =IF(L$8="BADDI",HLOOKUP($A15,'[2]EX WORKS'!$D$2:$AE$90,26,0)) -> 115330 | M15: 1000 | N15: 0 | O15: =(L15-M15-N15)*12.36% -> 14131.188 | P15: =L15-M15-N15+O15 -> 128461.188 | Q15: =IF(Q$8="UDMALPET",HLOOKUP($A15,'[2]EX WORKS'!$D$2:$AE$90,27,0)) -> 109720 | R15: 1000 | S15: 0 | T15: =(Q15-R15-S15)*12.36% -> 13437.792 | U15: =Q15-R15-S15+T15 -> 122157.792 | V15: =IF(V$8="BHAVNAGAR",HLOOKUP($A15,'[2]EX WORKS'!$D$2:$AE$90,28,0)) -> 113000 | W15: 1000 | X15: 0 | Y15: =(V15-W15-X15)*12.36% -> 13843.2 | Z15: =V15-W15-X15+Y15 -> 125843.2
A16: E45A003OG
A17: EXTR
A18: E52A003A | B18: =IF(B$8="ALWAR",HLOOKUP($A18,'[2]EX WORKS'!$D$2:$AE$90,24,0)) -> 113950 | C18: 1000 | D18: 0 | E18: =(B18-C18-D18)*12.36% -> 13960.62 | F18: =B18-C18-D18+E18 -> 126910.62 | G18: =IF(G$8="HYDERABAD",HLOOKUP($A18,'[2]EX WORKS'!$D$2:$AE$90,25,0)) -> 110680 | H18: 1000 | I18: 0 | J18: =(G18-H18-I18)*12.36% -> 13556.448 | K18: =G18-H18-I18+J18 -> 123236.448 | L18: =IF(L$8="BADDI",HLOOKUP($A18,'[2]EX WORKS'!$D$2:$AE$90,26,0)) -> 114000 | M18: 1000 | N18: 0 | O18: =(L18-M18-N18)*12.36% -> 13966.8 | P18: =L18-M18-N18+O18 -> 126966.8 | Q18: =IF(Q$8="UDMALPET",HLOOKUP($A18,'[2]EX WORKS'!$D$2:$AE$90,27,0)) -> 108390 | R18: 1000 | S18: 0 | T18: =(Q18-R18-S18)*12.36% -> 13273.404 | U18: =Q18-R18-S18+T18 -> 120663.404 | V18: =IF(V$8="BHAVNAGAR",HLOOKUP($A18,'[2]EX WORKS'!$D$2:$AE$90,28,0)) -> 111600 | W18: 1000 | X18: 0 | Y18: =(V18-W18-X18)*12.36% -> 13670.16 | Z18: =V18-W18-X18+Y18 -> 124270.16
A19: E52A003OG
A20: E52U003A | B20: =IF(B$8="ALWAR",HLOOKUP($A20,'[2]EX WORKS'!$D$2:$AE$90,24,0)) -> 115730 | C20: 1000 | D20: 0 | E20: =(B20-C20-D20)*12.36% -> 14180.628 | F20: =B20-C20-D20+E20 -> 128910.628 | G20: =IF(G$8="HYDERABAD",HLOOKUP($A20,'[2]EX WORKS'!$D$2:$AE$90,25,0)) -> 112460 | H20: 1000 | I20: 0 | J20: =(G20-H20-I20)*12.36% -> 13776.456 | K20: =G20-H20-I20+J20 -> 125236.456 | L20: =IF(L$8="BADDI",HLOOKUP($A20,'[2]EX WORKS'!$D$2:$AE$90,26,0)) -> 115780 | M20: 1000 | N20: 0 | O20: =(L20-M20-N20)*12.36% -> 14186.808 | P20: =L20-M20-N20+O20 -> 128966.808 | Q20: =IF(Q$8="UDMALPET",HLOOKUP($A20,'[2]EX WORKS'!$D$2:$AE$90,27,0)) -> 110170 | R20: 1000 | S20: 0 | T20: =(Q20-R20-S20)*12.36% -> 13493.412 | U20: =Q20-R20-S20+T20 -> 122663.412 | V20: =IF(V$8="BHAVNAGAR",HLOOKUP($A20,'[2]EX WORKS'!$D$2:$AE$90,28,0)) -> 113380 | W20: 1000 | X20: 0 | Y20: =(V20-W20-X20)*12.36% -> 13890.168 | Z20: =V20-W20-X20+Y20 -> 126270.168
A21: E52U003OG
A22: HM FILM
A23: F55HM0003A | B23: =IF(B$8="ALWAR",HLOOKUP($A23,'[2]EX WORKS'!$D$2:$AE$90,24,0)) -> 113970 | C23: 1000 | D23: 0 | E23: =(B23-C23-D23)*12.36% -> 13963.092 | F23: =B23-C23-D23+E23 -> 126933.092 | G23: =IF(G$8="HYDERABAD",HLOOKUP($A23,'[2]EX WORKS'!$D$2:$AE$90,25,0)) -> 109990 | H23: 1000 | I23: 0 | J23: =(G23-H23-I23)*12.36% -> 13471.164 | K23: =G23-H23-I23+J23 -> 122461.164 | L23: =IF(L$8="BADDI",HLOOKUP($A23,'[2]EX WORKS'!$D$2:$AE$90,26,0)) -> 113230 | M23: 1000 | N23: 0 | O23: =(L23-M23-N23)*12.36% -> 13871.628 | P23: =L23-M23-N23+O23 -> 126101.628 | Q23: =IF(Q$8="UDMALPET",HLOOKUP($A23,'[2]EX WORKS'!$D$2:$AE$90,27,0)) -> 109160 | R23: 1000 | S23: 0 | T23: =(Q23-R23-S23)*12.36% -> 13368.576 | U23: =Q23-R23-S23+T23 -> 121528.576 | V23: =IF(V$8="BHAVNAGAR",HLOOKUP($A23,'[2]EX WORKS'!$D$2:$AE$90,28,0)) -> 111770 | W23: 1000 | X23: 0 | Y23: =(V23-W23-X23)*12.36% -> 13691.172 | Z23: =V23-W23-X23+Y23 -> 124461.172
A24: F55HM0003OG
A25: IM HIGH
A26: I50A180A | B26: =IF(B$8="ALWAR",HLOOKUP($A26,'[2]EX WORKS'!$D$2:$AE$90,24,0)) -> 112950 | C26: 1000 | D26: 0 | E26: =(B26-C26-D26)*12.36% -> 13837.02 | F26: =B26-C26-D26+E26 -> 125787.02 | G26: =IF(G$8="HYDERABAD",HLOOKUP($A26,'[2]EX WORKS'!$D$2:$AE$90,25,0)) -> 109930 | H26: 1000 | I26: 0 | J26: =(G26-H26-I26)*12.36% -> 13463.748 | K26: =G26-H26-I26+J26 -> 122393.748 | L26: =IF(L$8="BADDI",HLOOKUP($A26,'[2]EX WORKS'!$D$2:$AE$90,26,0)) -> 112520 | M26: 1000 | N26: 0 | O26: =(L26-M26-N26)*12.36% -> 13783.872 | P26: =L26-M26-N26+O26 -> 125303.872 | Q26: =IF(Q$8="UDMALPET",HLOOKUP($A26,'[2]EX WORKS'!$D$2:$AE$90,27,0)) -> 107920 | R26: 1000 | S26: 0 | T26: =(Q26-R26-S26)*12.36% -> 13215.312 | U26: =Q26-R26-S26+T26 -> 120135.312 | V26: =IF(V$8="BHAVNAGAR",HLOOKUP($A26,'[2]EX WORKS'!$D$2:$AE$90,28,0)) -> 110850 | W26: 1000 | X26: 0 | Y26: =(V26-W26-X26)*12.36% -> 13577.46 | Z26: =V26-W26-X26+Y26 -> 123427.46
A27: I50A180OG
A28: IM LOW
A29: I60A080A | B29: =IF(B$8="ALWAR",HLOOKUP($A29,'[2]EX WORKS'!$D$2:$AE$90,24,0)) -> 113420 | C29: 1000 | D29: 0 | E29: =(B29-C29-D29)*12.36% -> 13895.112 | F29: =B29-C29-D29+E29 -> 126315.112 | G29: =IF(G$8="HYDERABAD",HLOOKUP($A29,'[2]EX WORKS'!$D$2:$AE$90,25,0)) -> 110150 | H29: 1000 | I29: 0 | J29: =(G29-H29-I29)*12.36% -> 13490.94 | K29: =G29-H29-I29+J29 -> 122640.94 | L29: =IF(L$8="BADDI",HLOOKUP($A29,'[2]EX WORKS'!$D$2:$AE$90,26,0)) -> 113480 | M29: 1000 | N29: 0 | O29: =(L29-M29-N29)*12.36% -> 13902.528 | P29: =L29-M29-N29+O29 -> 126382.528 | Q29: =IF(Q$8="UDMALPET",HLOOKUP($A29,'[2]EX WORKS'!$D$2:$AE$90,27,0)) -> 107870 | R29: 1000 | S29: 0 | T29: =(Q29-R29-S29)*12.36% -> 13209.132 | U29: =Q29-R29-S29+T29 -> 120079.132 | V29: =IF(V$8="BHAVNAGAR",HLOOKUP($A29,'[2]EX WORKS'!$D$2:$AE$90,28,0)) -> 111100 | W29: 1000 | X29: 0 | Y29: =(V29-W29-X29)*12.36% -> 13608.36 | Z29: =V29-W29-X29+Y29 -> 123708.36
A30: I60A080OG
A31: IM-L-UV
A32: I60U080A | B32: =IF(B$8="ALWAR",HLOOKUP($A32,'[2]EX WORKS'!$D$2:$AE$90,24,0)) -> 114960 | C32: 1000 | D32: 0 | E32: =(B32-C32-D32)*12.36% -> 14085.456 | F32: =B32-C32-D32+E32 -> 128045.456 | G32: =IF(G$8="HYDERABAD",HLOOKUP($A32,'[2]EX WORKS'!$D$2:$AE$90,25,0)) -> 111690 | H32: 1000 | I32: 0 | J32: =(G32-H32-I32)*12.36% -> 13681.284 | K32: =G32-H32-I32+J32 -> 124371.284 | L32: =IF(L$8="BADDI",HLOOKUP($A32,'[2]EX WORKS'!$D$2:$AE$90,26,0)) -> 115010 | M32: 1000 | N32: 0 | O32: =(L32-M32-N32)*12.36% -> 14091.636 | P32: =L32-M32-N32+O32 -> 128101.636 | Q32: =IF(Q$8="UDMALPET",HLOOKUP($A32,'[2]EX WORKS'!$D$2:$AE$90,27,0)) -> 109410 | R32: 1000 | S32: 0 | T32: =(Q32-R32-S32)*12.36% -> 13399.476 | U32: =Q32-R32-S32+T32 -> 121809.476 | V32: =IF(V$8="BHAVNAGAR",HLOOKUP($A32,'[2]EX WORKS'!$D$2:$AE$90,28,0)) -> 112600 | W32: 1000 | X32: 0 | Y32: =(V32-W32-X32)*12.36% -> 13793.76 | Z32: =V32-W32-X32+Y32 -> 125393.76
A33: I60U080OG
A34: PIPE (PE80)
A35: P54A001A | B35: =IF(B$8="ALWAR",HLOOKUP($A35,'[2]EX WORKS'!$D$2:$AE$90,24,0)) -> 117930 | C35: 1000 | D35: 0 | E35: =(B35-C35-D35)*12.36% -> 14452.548 | F35: =B35-C35-D35+E35 -> 131382.548 | G35: =IF(G$8="HYDERABAD",HLOOKUP($A35,'[2]EX WORKS'!$D$2:$AE$90,25,0)) -> 114700 | H35: 1000 | I35: 0 | J35: =(G35-H35-I35)*12.36% -> 14053.32 | K35: =G35-H35-I35+J35 -> 127753.32 | L35: =IF(L$8="BADDI",HLOOKUP($A35,'[2]EX WORKS'!$D$2:$AE$90,26,0)) -> 117940 | M35: 1000 | N35: 0 | O35: =(L35-M35-N35)*12.36% -> 14453.784 | P35: =L35-M35-N35+O35 -> 131393.784 | Q35: =IF(Q$8="UDMALPET",HLOOKUP($A35,'[2]EX WORKS'!$D$2:$AE$90,27,0)) -> 112620 | R35: 1000 | S35: 0 | T35: =(Q35-R35-S35)*12.36% -> 13796.232 | U35: =Q35-R35-S35+T35 -> 125416.232 | V35: =IF(V$8="BHAVNAGAR",HLOOKUP($A35,'[2]EX WORKS'!$D$2:$AE$90,28,0)) -> 115730 | W35: 1000 | X35: 0 | Y35: =(V35-W35-X35)*12.36% -> 14180.628 | Z35: =V35-W35-X35+Y35 -> 128910.628
A36: PIPE (PE100)
A37: P52A003A | B37: =IF(B$8="ALWAR",HLOOKUP($A37,'[2]EX WORKS'!$D$2:$AE$90,24,0)) -> 119930 | C37: 1000 | D37: 0 | E37: =(B37-C37-D37)*12.36% -> 14699.748 | F37: =B37-C37-D37+E37 -> 133629.748 | G37: =IF(G$8="HYDERABAD",HLOOKUP($A37,'[2]EX WORKS'!$D$2:$AE$90,25,0)) -> 116700 | H37: 1000 | I37: 0 | J37: =(G37-H37-I37)*12.36% -> 14300.52 | K37: =G37-H37-I37+J37 -> 130000.52 | L37: =IF(L$8="BADDI",HLOOKUP($A37,'[2]EX WORKS'!$D$2:$AE$90,26,0)) -> 119940 | M37: 1000 | N37: 0 | O37: =(L37-M37-N37)*12.36% -> 14700.984 | P37: =L37-M37-N37+O37 -> 133640.984 | Q37: =IF(Q$8="UDMALPET",HLOOKUP($A37,'[2]EX WORKS'!$D$2:$AE$90,27,0)) -> 114620 | R37: 1000 | S37: 0 | T37: =(Q37-R37-S37)*12.36% -> 14043.432 | U37: =Q37-R37-S37+T37 -> 127663.432 | V37: =IF(V$8="BHAVNAGAR",HLOOKUP($A37,'[2]EX WORKS'!$D$2:$AE$90,28,0)) -> 117730 | W37: 1000 | X37: 0 | Y37: =(V37-W37-X37)*12.36% -> 14427.828 | Z37: =V37-W37-X37+Y37 -> 131157.828
A38: RAFFIA
A39: W50A009A | B39: =IF(B$8="ALWAR",HLOOKUP($A39,'[2]EX WORKS'!$D$2:$AE$90,24,0)) -> 112050 | C39: 1000 | D39: 0 | E39: =(B39-C39-D39)*12.36% -> 13725.78 | F39: =B39-C39-D39+E39 -> 124775.78 | G39: =IF(G$8="HYDERABAD",HLOOKUP($A39,'[2]EX WORKS'!$D$2:$AE$90,25,0)) -> 108780 | H39: 1000 | I39: 0 | J39: =(G39-H39-I39)*12.36% -> 13321.608 | K39: =G39-H39-I39+J39 -> 121101.608 | L39: =IF(L$8="BADDI",HLOOKUP($A39,'[2]EX WORKS'!$D$2:$AE$90,26,0)) -> 112100 | M39: 1000 | N39: 0 | O39: =(L39-M39-N39)*12.36% -> 13731.96 | P39: =L39-M39-N39+O39 -> 124831.96 | Q39: =IF(Q$8="UDMALPET",HLOOKUP($A39,'[2]EX WORKS'!$D$2:$AE$90,27,0)) -> 106500 | R39: 1000 | S39: 0 | T39: =(Q39-R39-S39)*12.36% -> 13039.8 | U39: =Q39-R39-S39+T39 -> 118539.8 | V39: =IF(V$8="BHAVNAGAR",HLOOKUP($A39,'[2]EX WORKS'!$D$2:$AE$90,28,0)) -> 109600 | W39: 1000 | X39: 0 | Y39: =(V39-W39-X39)*12.36% -> 13422.96 | Z39: =V39-W39-X39+Y39 -> 122022.96
A40: T50A010A | B40: =IF(B$8="ALWAR",HLOOKUP($A40,'[2]EX WORKS'!$D$2:$AE$90,24,0)) -> 112800 | C40: 1000 | D40: 0 | E40: =(B40-C40-D40)*12.36% -> 13818.48 | F40: =B40-C40-D40+E40 -> 125618.48 | G40: =IF(G$8="HYDERABAD",HLOOKUP($A40,'[2]EX WORKS'!$D$2:$AE$90,25,0)) -> 109030 | H40: 1000 | I40: 0 | J40: =(G40-H40-I40)*12.36% -> 13352.508 | K40: =G40-H40-I40+J40 -> 121382.508 | L40: =IF(L$8="BADDI",HLOOKUP($A40,'[2]EX WORKS'!$D$2:$AE$90,26,0)) -> 112350 | M40: 1000 | N40: 0 | O40: =(L40-M40-N40)*12.36% -> 13762.86 | P40: =L40-M40-N40+O40 -> 125112.86 | Q40: =IF(Q$8="UDMALPET",HLOOKUP($A40,'[2]EX WORKS'!$D$2:$AE$90,27,0)) -> 107250 | R40: 1000 | S40: 0 | T40: =(Q40-R40-S40)*12.36% -> 13132.5 | U40: =Q40-R40-S40+T40 -> 119382.5 | V40: =IF(V$8="BHAVNAGAR",HLOOKUP($A40,'[2]EX WORKS'!$D$2:$AE$90,28,0)) -> 109850 | W40: 1000 | X40: 0 | Y40: =(V40-W40-X40)*12.36% -> 13453.86 | Z40: =V40-W40-X40+Y40 -> 122303.86
A41: MF
A42: W52A009A | B42: =IF(B$8="ALWAR",HLOOKUP($A42,'[2]EX WORKS'!$D$2:$AE$90,24,0)) -> 112550 | C42: 1000 | D42: 0 | E42: =(B42-C42-D42)*12.36% -> 13787.58 | F42: =B42-C42-D42+E42 -> 125337.58 | G42: =IF(G$8="HYDERABAD",HLOOKUP($A42,'[2]EX WORKS'!$D$2:$AE$90,25,0)) -> 109280 | H42: 1000 | I42: 0 | J42: =(G42-H42-I42)*12.36% -> 13383.408 | K42: =G42-H42-I42+J42 -> 121663.408 | L42: =IF(L$8="BADDI",HLOOKUP($A42,'[2]EX WORKS'!$D$2:$AE$90,26,0)) -> 112600 | M42: 1000 | N42: 0 | O42: =(L42-M42-N42)*12.36% -> 13793.76 | P42: =L42-M42-N42+O42 -> 125393.76 | Q42: =IF(Q$8="UDMALPET",HLOOKUP($A42,'[2]EX WORKS'!$D$2:$AE$90,27,0)) -> 107000 | R42: 1000 | S42: 0 | T42: =(Q42-R42-S42)*12.36% -> 13101.6 | U42: =Q42-R42-S42+T42 -> 119101.6 | V42: =IF(V$8="BHAVNAGAR",HLOOKUP($A42,'[2]EX WORKS'!$D$2:$AE$90,28,0)) -> 110100 | W42: 1000 | X42: 0 | Y42: =(V42-W42-X42)*12.36% -> 13484.76 | Z42: =V42-W42-X42+Y42 -> 122584.76
A43: W52A009OG
A44: W52ASR009A | B44: =IF(B$8="ALWAR",HLOOKUP($A44,'[2]EX WORKS'!$D$2:$AE$90,24,0)) -> 112550 | C44: 1000 | D44: 0 | E44: =(B44-C44-D44)*12.36% -> 13787.58 | F44: =B44-C44-D44+E44 -> 125337.58 | G44: =IF(G$8="HYDERABAD",HLOOKUP($A44,'[2]EX WORKS'!$D$2:$AE$90,25,0)) -> 109280 | H44: 1000 | I44: 0 | J44: =(G44-H44-I44)*12.36% -> 13383.408 | K44: =G44-H44-I44+J44 -> 121663.408 | L44: =IF(L$8="BADDI",HLOOKUP($A44,'[2]EX WORKS'!$D$2:$AE$90,26,0)) -> 112600 | M44: 1000 | N44: 0 | O44: =(L44-M44-N44)*12.36% -> 13793.76 | P44: =L44-M44-N44+O44 -> 125393.76 | Q44: =IF(Q$8="UDMALPET",HLOOKUP($A44,'[2]EX WORKS'!$D$2:$AE$90,27,0)) -> 107000 | R44: 1000 | S44: 0 | T44: =(Q44-R44-S44)*12.36% -> 13101.6 | U44: =Q44-R44-S44+T44 -> 119101.6 | V44: =IF(V$8="BHAVNAGAR",HLOOKUP($A44,'[2]EX WORKS'!$D$2:$AE$90,28,0)) -> 110100 | W44: 1000 | X44: 0 | Y44: =(V44-W44-X44)*12.36% -> 13484.76 | Z44: =V44-W44-X44+Y44 -> 122584.76
A45: W55A004A | B45: =IF(B$8="ALWAR",HLOOKUP($A45,'[2]EX WORKS'!$D$2:$AE$90,24,0)) -> 115550 | C45: 1000 | D45: 0 | E45: =(B45-C45-D45)*12.36% -> 14158.38 | F45: =B45-C45-D45+E45 -> 128708.38 | G45: =IF(G$8="HYDERABAD",HLOOKUP($A45,'[2]EX WORKS'!$D$2:$AE$90,25,0)) -> 112280 | H45: 1000 | I45: 0 | J45: =(G45-H45-I45)*12.36% -> 13754.208 | K45: =G45-H45-I45+J45 -> 125034.208 | L45: =IF(L$8="BADDI",HLOOKUP($A45,'[2]EX WORKS'!$D$2:$AE$90,26,0)) -> 115600 | M45: 1000 | N45: 0 | O45: =(L45-M45-N45)*12.36% -> 14164.56 | P45: =L45-M45-N45+O45 -> 128764.56 | Q45: =IF(Q$8="UDMALPET",HLOOKUP($A45,'[2]EX WORKS'!$D$2:$AE$90,27,0)) -> 110000 | R45: 1000 | S45: 0 | T45: =(Q45-R45-S45)*12.36% -> 13472.4 | U45: =Q45-R45-S45+T45 -> 122472.4 | V45: =IF(V$8="BHAVNAGAR",HLOOKUP($A45,'[2]EX WORKS'!$D$2:$AE$90,28,0)) -> 113100 | W45: 1000 | X45: 0 | Y45: =(V45-W45-X45)*12.36% -> 13855.56 | Z45: =V45-W45-X45+Y45 -> 125955.56
A46: LLDPE
A47: E20AN009A | B47: =IF(B$8="ALWAR",HLOOKUP($A47,'[2]EX WORKS'!$D$2:$AE$90,24,0)) -> 115810 | C47: 1000 | D47: 0 | E47: =(B47-C47-D47)*12.36% -> 14190.516 | F47: =B47-C47-D47+E47 -> 129000.516 | G47: =IF(G$8="HYDERABAD",HLOOKUP($A47,'[2]EX WORKS'!$D$2:$AE$90,25,0)) -> 112540 | H47: 1000 | I47: 0 | J47: =(G47-H47-I47)*12.36% -> 13786.344 | K47: =G47-H47-I47+J47 -> 125326.344 | L47: =IF(L$8="BADDI",HLOOKUP($A47,'[2]EX WORKS'!$D$2:$AE$90,26,0)) -> 115860 | M47: 1000 | N47: 0 | O47: =(L47-M47-N47)*12.36% -> 14196.696 | P47: =L47-M47-N47+O47 -> 129056.696 | Q47: =IF(Q$8="UDMALPET",HLOOKUP($A47,'[2]EX WORKS'!$D$2:$AE$90,27,0)) -> 110260 | R47: 1000 | S47: 0 | T47: =(Q47-R47-S47)*12.36% -> 13504.536 | U47: =Q47-R47-S47+T47 -> 122764.536 | V47: =IF(V$8="BHAVNAGAR",HLOOKUP($A47,'[2]EX WORKS'!$D$2:$AE$90,28,0)) -> 113500 | W47: 1000 | X47: 0 | Y47: =(V47-W47-X47)*12.36% -> 13905 | Z47: =V47-W47-X47+Y47 -> 126405
A48: E20AN009OG
A49: E36A060A | B49: =IF(B$8="ALWAR",HLOOKUP($A49,'[2]EX WORKS'!$D$2:$AE$90,24,0)) -> 117850 | C49: 1000 | D49: 0 | E49: =(B49-C49-D49)*12.36% -> 14442.66 | F49: =B49-C49-D49+E49 -> 131292.66 | G49: =IF(G$8="HYDERABAD",HLOOKUP($A49,'[2]EX WORKS'!$D$2:$AE$90,25,0)) -> 114580 | H49: 1000 | I49: 0 | J49: =(G49-H49-I49)*12.36% -> 14038.488 | K49: =G49-H49-I49+J49 -> 127618.488 | L49: =IF(L$8="BADDI",HLOOKUP($A49,'[2]EX WORKS'!$D$2:$AE$90,26,0)) -> 117910 | M49: 1000 | N49: 0 | O49: =(L49-M49-N49)*12.36% -> 14450.076 | P49: =L49-M49-N49+O49 -> 131360.076 | Q49: =IF(Q$8="UDMALPET",HLOOKUP($A49,'[2]EX WORKS'!$D$2:$AE$90,27,0)) -> 112300 | R49: 1000 | S49: 0 | T49: =(Q49-R49-S49)*12.36% -> 13756.68 | U49: =Q49-R49-S49+T49 -> 125056.68 | V49: =IF(V$8="BHAVNAGAR",HLOOKUP($A49,'[2]EX WORKS'!$D$2:$AE$90,28,0)) -> 115500 | W49: 1000 | X49: 0 | Y49: =(V49-W49-X49)*12.36% -> 14152.2 | Z49: =V49-W49-X49+Y49 -> 128652.2
A50: E36A060OG
A51: FILM
A52: F20S009A | B52: =IF(B$8="ALWAR",HLOOKUP($A52,'[2]EX WORKS'!$D$2:$AE$90,24,0)) -> 117310 | C52: 1000 | D52: 0 | E52: =(B52-C52-D52)*12.36% -> 14375.916 | F52: =B52-C52-D52+E52 -> 130685.916 | G52: =IF(G$8="HYDERABAD",HLOOKUP($A52,'[2]EX WORKS'!$D$2:$AE$90,25,0)) -> 114040 | H52: 1000 | I52: 0 | J52: =(G52-H52-I52)*12.36% -> 13971.744 | K52: =G52-H52-I52+J52 -> 127011.744 | L52: =IF(L$8="BADDI",HLOOKUP($A52,'[2]EX WORKS'!$D$2:$AE$90,26,0)) -> 117360 | M52: 1000 | N52: 0 | O52: =(L52-M52-N52)*12.36% -> 14382.096 | P52: =L52-M52-N52+O52 -> 130742.096 | Q52: =IF(Q$8="UDMALPET",HLOOKUP($A52,'[2]EX WORKS'!$D$2:$AE$90,27,0)) -> 111760 | R52: 1000 | S52: 0 | T52: =(Q52-R52-S52)*12.36% -> 13689.936 | U52: =Q52-R52-S52+T52 -> 124449.936 | V52: =IF(V$8="BHAVNAGAR",HLOOKUP($A52,'[2]EX WORKS'!$D$2:$AE$90,28,0)) -> 115000 | W52: 1000 | X52: 0 | Y52: =(V52-W52-X52)*12.36% -> 14090.4 | Z52: =V52-W52-X52+Y52 -> 128090.4
A53: F20S009OG
A54: D22S010A | B54: =IF(B$8="ALWAR",HLOOKUP($A54,'[2]EX WORKS'!$D$2:$AE$90,24,0)) -> 116310 | C54: 1000 | D54: 0 | E54: =(B54-C54-D54)*12.36% -> 14252.316 | F54: =B54-C54-D54+E54 -> 129562.316 | G54: =IF(G$8="HYDERABAD",HLOOKUP($A54,'[2]EX WORKS'!$D$2:$AE$90,25,0)) -> 113040 | H54: 1000 | I54: 0 | J54: =(G54-H54-I54)*12.36% -> 13848.144 | K54: =G54-H54-I54+J54 -> 125888.144 | L54: =IF(L$8="BADDI",HLOOKUP($A54,'[2]EX WORKS'!$D$2:$AE$90,26,0)) -> 116360 | M54: 1000 | N54: 0 | O54: =(L54-M54-N54)*12.36% -> 14258.496 | P54: =L54-M54-N54+O54 -> 129618.496 | Q54: =IF(Q$8="UDMALPET",HLOOKUP($A54,'[2]EX WORKS'!$D$2:$AE$90,27,0)) -> 110760 | R54: 1000 | S54: 0 | T54: =(Q54-R54-S54)*12.36% -> 13566.336 | U54: =Q54-R54-S54+T54 -> 123326.336 | V54: =IF(V$8="BHAVNAGAR",HLOOKUP($A54,'[2]EX WORKS'!$D$2:$AE$90,28,0)) -> 114000 | W54: 1000 | X54: 0 | Y54: =(V54-W54-X54)*12.36% -> 13966.8 | Z54: =V54-W54-X54+Y54 -> 126966.8
A55: ROTO
A56: R35A042A | B56: =IF(B$8="ALWAR",HLOOKUP($A56,'[2]EX WORKS'!$D$2:$AE$90,24,0)) -> 114820 | C56: 1000 | D56: 0 | E56: =(B56-C56-D56)*12.36% -> 14068.152 | F56: =B56-C56-D56+E56 -> 127888.152 | G56: =IF(G$8="HYDERABAD",HLOOKUP($A56,'[2]EX WORKS'!$D$2:$AE$90,25,0)) -> 111590 | H56: 1000 | I56: 0 | J56: =(G56-H56-I56)*12.36% -> 13668.924 | K56: =G56-H56-I56+J56 -> 124258.924 | L56: =IF(L$8="BADDI",HLOOKUP($A56,'[2]EX WORKS'!$D$2:$AE$90,26,0)) -> 114830 | M56: 1000 | N56: 0 | O56: =(L56-M56-N56)*12.36% -> 14069.388 | P56: =L56-M56-N56+O56 -> 127899.388 | Q56: =IF(Q$8="UDMALPET",HLOOKUP($A56,'[2]EX WORKS'!$D$2:$AE$90,27,0)) -> 109360 | R56: 1000 | S56: 0 | T56: =(Q56-R56-S56)*12.36% -> 13393.296 | U56: =Q56-R56-S56+T56 -> 121753.296 | V56: =IF(V$8="BHAVNAGAR",HLOOKUP($A56,'[2]EX WORKS'!$D$2:$AE$90,28,0)) -> 112620 | W56: 1000 | X56: 0 | Y56: =(V56-W56-X56)*12.36% -> 13796.232 | Z56: =V56-W56-X56+Y56 -> 125416.232
A57: R35U042A | B57: =IF(B$8="ALWAR",HLOOKUP($A57,'[2]EX WORKS'!$D$2:$AE$90,24,0)) -> 115680 | C57: 1000 | D57: 0 | E57: =(B57-C57-D57)*12.36% -> 14174.448 | F57: =B57-C57-D57+E57 -> 128854.448 | G57: =IF(G$8="HYDERABAD",HLOOKUP($A57,'[2]EX WORKS'!$D$2:$AE$90,25,0)) -> 112450 | H57: 1000 | I57: 0 | J57: =(G57-H57-I57)*12.36% -> 13775.22 | K57: =G57-H57-I57+J57 -> 125225.22 | L57: =IF(L$8="BADDI",HLOOKUP($A57,'[2]EX WORKS'!$D$2:$AE$90,26,0)) -> 115690 | M57: 1000 | N57: 0 | O57: =(L57-M57-N57)*12.36% -> 14175.684 | P57: =L57-M57-N57+O57 -> 128865.684 | Q57: =IF(Q$8="UDMALPET",HLOOKUP($A57,'[2]EX WORKS'!$D$2:$AE$90,27,0)) -> 110220 | R57: 1000 | S57: 0 | T57: =(Q57-R57-S57)*12.36% -> 13499.592 | U57: =Q57-R57-S57+T57 -> 122719.592 | V57: =IF(V$8="BHAVNAGAR",HLOOKUP($A57,'[2]EX WORKS'!$D$2:$AE$90,28,0)) -> 113480 | W57: 1000 | X57: 0 | Y57: =(V57-W57-X57)*12.36% -> 13902.528 | Z57: =V57-W57-X57+Y57 -> 126382.528
A59: NOTE: | B59: LOCATION DISCOUNT HAS BEEN DISCONTINUED
B61: THE PRICES OF OLD PLANT & NEW PLANT ARE SAME FROM DIRECT SALE

Sheet STOCK POINT PRICE
A2: UNITED BROTHERS
A3: CONSIGNMENT STOCKIST OF GAIL (INDIA) LTD
A4: 301,HERITAGE PLAZA, R.S.MAHARAJ MARG,( TELI GALLI CROSS LANE), ANDHERI (E), MUMBAI - 400 069
A5: TEL: 26844612(4 LINES) FAX: 26822914 E-MAIL:info@unibrothers.com,prashant@unibrothers.com,jyoti@unibrothers.com
A6: PRICE OF HDPE "G-LEX / G-LENE " W.E.F 1ST AUGUST 2014
C8: DAMAN | D8: BHIWANDI | E8: PUNE
C9: ST.PT. | D9: ST.PT. | E9: ST.PT. | G9: FREIGHT
B10: BM | G10: ALWAR | H10: 1021.1
B11: B52A003A | C11: 126190 | D11: 126590 | E11: 126710 | G11: AHMEDNAGAR | H11: 2555.6
B12: B52A003NA | C12: 126190 | D12: 126590 | E12: 126710 | G12: AURANGABAD | H12: 2347.02
B13: B63A003A | C13: 126190 | D13: 126590 | E13: 126710 | G13: BHAVNAGAR | H13: 2136.03
B14: B63A003NA | C14: 126190 | D14: 126590 | E14: 126710 | G14: BADDI | H14: 1822.44
B15: B55HM0003A | C15: 129510 | D15: 129410 | E15: 129550 | G15: BHIWANDI | H15: 2696.11
B16: B55HM0003NA | C16: 129510 | D16: 129410 | E16: 129550 | G16: BARJORA | H16: 2596.11
B17: B53EA0035A | C17: 126750 | D17: 127150 | E17: 127270 | G17: DAMAN | H17: 2156.68
B18: SHETG | G18: HYDERABAD | H18: 3316.32
B19: E45A003A | C19: 128780 | D19: 128590 | E19: 128780 | G19: HOSUR | H19: 4922.62
G20: JALGAON | H20: 2046.23
B21: EXTR | G21: JAMMU | H21: 2660.65
B22: E52A003A | C22: 127280 | D22: 127100 | E22: 127280 | G22: KOLHAPUR | H22: 3304.27
B23: E52A003NA | C23: 127280 | D23: 127100 | E23: 127280 | G23: NAGPUR | H23: 1755.44
B24: E52U003A | C24: 129280 | D24: 129100 | E24: 129280 | G24: NASIK | H24: 2384.35
B25: E52U003NA | C25: 129280 | D25: 129100 | E25: 129280 | G25: NOIDA | H25: 1247.06
B26: HM FILM | G26: PUNE | H26: 2757.59
B27: F55HM0003A | C27: 126750 | D27: 127220 | E27: 127360 | G27: PONDICHERRY | H27: 5350.78
B28: F55HM0003NA | C28: 126750 | D28: 127220 | E28: 127360 | G28: ROHA | H28: 2814.81
B29: IM HIGH | G29: SILVASSA | H29: 2169.74
B30: I50A180A | C30: 126270 | D30: 126240 | E30: 126380 | G30: SANGLI | H30: 3205.47
G31: SOLAPUR | H31: 2959.58
B32: IM LOW | G32: TARAPUR | H32: 2726.85
B33: I60A080A | C33: 126690 | D33: 126510 | E33: 126700 | G33: THANE | H33: 2696.11
G34: UMBERGAON | H34: 2127.07
B35: IM-L-UV | G35: UDMALPET | H35: 5622.05
B36: I60U080A | C36: 128420 | D36: 128230 | E36: 128420 | G36: WAI | H36: 2950.79
B38: PIPE (PE80)
B39: P54A001A | C39: 131770 | D39: 131670 | E39: 131810
B40: P54A001NA | C40: 131770 | D40: 131670 | E40: 131810
B41: PIPE (PE100)
B42: P52A003A | C42: 134010 | D42: 133920 | E42: 134060
B43: P52A003NA | C43: 134010 | D43: 133920 | E43: 134060
B44: RAFFIA
B45: W50A009A | C45: 125150 | D45: 124960 | E45: 125150 | G45: QUANTITY DISCOUNT
B46: T50A010A | C46: 125430 | D46: 125240 | E46: 125430
B47: MF | G47: QTY MTS | H47: AMT
B48: W55A004A | C48: 129080 | D48: 128890 | E48: 129080 | G48: >=10 | H48: 300
B49: W55A004NA | C49: 129080 | D49: 128890 | E49: 129080 | G49: >=30 | H49: 400
B50: W52A009A | C50: 125710 | D50: 125520 | E50: 125710 | G50: >=50 | H50: 500
B51: W52A009NA | C51: 125710 | D51: 125520 | E51: 125710 | G51: >=100 | H51: 600
B52: W52ASR009A | C52: 125710 | D52: 125520 | E52: 125710 | G52: >=200 | H52: 700
B53: W52ASR009NA | C53: 125710 | D53: 125520 | E53: 125710 | G53: >=300 | H53: 750
B54: LLDPE | G54: >=400 | H54: 800
G55: >=600 | H55: 900
B56: E36A060A | C56: 131660 | D56: 131490 | E56: 131680
B58: FILM
B59: F20S009A | C59: 131060 | D59: 130880 | E59: 131060
B60: F20S009OG
B61: D22S010A | C61: 129930 | D61: 129760 | E61: 129940
B62: E20AN009A | C62: 129370 | D62: 129200 | E62: 129370
B63: ROTO
B64: R35A042A | C64: 128270 | D64: 128170 | E64: 128320
B65: R35U042A | C65: 129240 | D65: 128170 | E65: 128320
B67: * Ex Works Cash Discount (Rs.1000/-)
B68: 1. Freight & Transportation will be extra and at buyers account, on Ex-Works sale
B69: 2. The price of B Grade will be Rs.500/- PMT less than Prime Grade for Ex.Works sale and Rs.580/- P.M.T. less for Stock Point Sales.
B70: 3. The price of Old Plant & New Plant are same from Direct Sale
B71: 4. The price of Standardised Grade will be Rs.500/-PMT less than Prime Grade for Ex.Wks.sale and Rs.580/-P.M.T.less for St.Pt. Sales.
B72: 5. 14 days interest free credit is applicable in lieu of this credit a Cash Discount of Rs.800/- PMT is offered in the
B73: basic price in case of Cash Payment in Ex-Works Sale.
B74: 6. Stock point Price is net price
B75: 7. Cash/quantity Discount is not applicable for OG & PS Grade.
B76: 8. CST & Transportation will be charged extra & at buyers account on Exworks sale
B77: 9. CST / Vat & Transporation will be charged extra & at buyers account on Stock Point sale
B78: 10. The prices are subject to change without any prior notice those prevailing at the time of delivery will be applicable.
B79: 11. C-Form is mandatory for all Ex-works Sales w.e.f.1st April'2002.
B80: 12. Gas Authority Of India Ltd. changed to GAIL (India) Ltd. w.e.f. 1st January 2003.
B81: 13. CST @ 2% WILL BE APPLICABLE
B82: 14. Payment will be accepted through RTGS only.
B84: JYOTI | C84: 9930945123
B85: ASHISH | C85: 9029914092
